Service Area,Service Division,Expense Type,Expense Code,Detailed Expense Type,Payment Date,Transaction Number,Amount Exc VAT,Supplier Name
Children and Young Peoples Services,Head of Childrens Social Care,Third Party Payments 4THIRD,425021,Rendered by Voluntary Organisations,01/11/2018,3510186-TS08,"12,000.00",A SIGNIFICANT OTHER LTD T/A GREEN TOWERS CHILDRENS HOME.
Children and Young Peoples Services,Head of Education and Skills,Transport,230007,Contract Hire,01/11/2018,3510188-537,900.00,ACE TAXIS (WINSTON).
Children and Young Peoples Services,Head of Education and Skills,Transport,230007,Contract Hire,01/11/2018,3510188-538,750.00,ACE TAXIS (WINSTON).
Resources,Legal & Democratic Services,Supplies and Services,340001,Postages E340,01/11/2018,3510189-PSI0071321,"3,163.76",ADARE INSPIRED COMMUNICATIONS.
Resources,Legal & Democratic Services,Supplies and Services,332029,Printing Stationery and Gen Off Exps,01/11/2018,3510189-PSI0071329,"1,400.00",ADARE INSPIRED COMMUNICATIONS.
Regeneration and Local Services,Technical Services,Supplies and Services,304221,Equipment and Materials,01/11/2018,3510190-27273570,938.44,AGGREGATE INDUSTRIES UK LTD.
Regeneration and Local Services,Technical Services,Supplies and Services,304221,Equipment and Materials,01/11/2018,3510190-27273571,"2,181.30",AGGREGATE INDUSTRIES UK LTD.
Regeneration and Local Services,Technical Services,Supplies and Services,304221,Equipment and Materials,01/11/2018,3510190-27273572,930.60,AGGREGATE INDUSTRIES UK LTD.
Regeneration and Local Services,Technical Services,Supplies and Services,304221,Equipment and Materials,01/11/2018,3510190-27273573,929.66,AGGREGATE INDUSTRIES UK LTD.
Regeneration and Local Services,Technical Services,Supplies and Services,304221,Equipment and Materials,01/11/2018,3510190-27273575,574.44,AGGREGATE INDUSTRIES UK LTD.
Resources,Legal & Democratic Services,Supplies and Services,338057,Services,01/11/2018,3510194-0000031608,965.00,ALERE FORENSICS.
Regeneration and Local Services,Economic Development and Housing,Supplies and Services,338094,Services,01/11/2018,3510195-5507,600.00,ALINGTON HOUSE COMMUNITY ASSOCIATION.
Adult and Health Services,Public Health,Third Party Payments 4THIRD,460803,Contract Payments,01/11/2018,3510209-DPQX/00000166NRT,534.32,ASDA PHARMACY.*
Children and Young Peoples Services,Head of Education and Skills,Supplies and Services,338001,Services,01/11/2018,3510212-18038680,"7,100.00",ATKINS GLOBAL.
Children and Young Peoples Services,"Head of Early Help, Inclusion and Vulnerable Children",Supplies and Services,372009,Subscriptions E372,01/11/2018,3510216-141007856,966.00,BARNARDO SERVICES LTD.
Children and Young Peoples Services,Head of Education and Skills,Supplies and Services,336005,Advertising E336,01/11/2018,3510218-448938,950.00,BAUER RADIO LTD.
Regeneration and Local Services,Transport and Contracted Services,Third Party Payments 4THIRD,440999,Other third party payments E440,01/11/2018,3510219-61202,"6,514.32",BAYDALE CONTROL SYSTEMS LTD.
Adult and Health Services,Public Health,Third Party Payments 4THIRD,460803,Contract Payments,01/11/2018,3510222-FNQL/00000121NRT,649.43,BESTWAY NATIONAL CHEMIST LTD T/A WELL.
Adult and Health Services,Public Health,Third Party Payments 4THIRD,460803,Contract Payments,01/11/2018,3510241-DZJM/00000182NRT,652.00,BOOTS THE CHEMISTS LTD.*
Regeneration and Local Services,Technical Services,Third Party Payments 4THIRD,430100,Rendered by Private Contractors,01/11/2018,3510245-1278011008,"7,154.68",BOUYGUES E&S INFRASTRUCTURE UK LTD.
Resources,Legal & Democratic Services,Supplies and Services,360099,Insurances,01/11/2018,3510247-7564,"2,481.05",BRADLEY HALL LTD.
Resources,Legal & Democratic Services,Supplies and Services,384999,Miscellaneous Expenses,01/11/2018,3510247-10154,"13,921.61",BRADLEY HALL LTD.
Resources,Legal & Democratic Services,Supplies and Services,384199,Miscellaneous Expenses,01/11/2018,3510247-11325,"2,436.75",BRADLEY HALL LTD.
Regeneration and Local Services,Spatial Policy Planning Assets & Environment,Supplies and Services,304259,Equipment and Materials,01/11/2018,3510256-136547,"2,321.28",CALE BRIPARC LTD.
Regeneration and Local Services,Direct Services,Supplies and Services,304259,Equipment and Materials,01/11/2018,3510258-CN19780081,"1,062.60",CANNON HYGIENE LTD.
Regeneration and Local Services,Technical Services,Supplies and Services,304221,Equipment and Materials,01/11/2018,3510268-OP/I021600,510.00,CENTREWIRE LTD.
Adult and Health Services,Public Health,Third Party Payments 4THIRD,460803,Contract Payments,01/11/2018,3510272-FDDM/00000120NRT,500.02,CHEAPSIDE PHARMACY.*
Resources,Internal Audit and Insurance,Supplies and Services,342051,Computers and Communications,01/11/2018,3510278-C/RB170885,"16,045.00",CIVICA UK LTD.
Transformation and Partnerships,Comms & Information Management,Supplies and Services,336005,Advertising E336,01/11/2018,3510281-0102984956,"1,648.00",CLEAR CHANNEL UK LTD.
Adult and Health Services,Public Health,Third Party Payments 4THIRD,460802,Contract Payments,01/11/2018,3510282-3980031028,"368,605.00",CO DURHAM & DARLINGTON NHS FOUNDATION TRUST.
Adult and Health Services,Public Health,Third Party Payments 4THIRD,460803,Contract Payments,01/11/2018,3510282-3980031030,"24,906.00",CO DURHAM & DARLINGTON NHS FOUNDATION TRUST.
Regeneration and Local Services,Technical Services,Stock A926,926900,Stock in hand-Inventory system,01/11/2018,3510283-217509,"1,020.96",COLAS LTD.
Regeneration and Local Services,Direct Services,Premises,106082,Centrally Controlled Rep and Maint,01/11/2018,3510284-4689A,975.00,COMBUSTION LININGS LTD.
Children and Young Peoples Services,Head of Education and Skills,Third Party Payments 4THIRD,440999,Other third party payments E440,01/11/2018,3510288-18/19129,"5,144.04",CORNFORTH PARTNERSHIP.
Children and Young Peoples Services,Head of Education and Skills,Third Party Payments 4THIRD,440999,Other third party payments E440,01/11/2018,3510288-18/19130,"2,750.52",CORNFORTH PARTNERSHIP.
Children and Young Peoples Services,"Head of Early Help, Inclusion and Vulnerable Children",Third Party Payments 4THIRD,460305,Contract Payments,01/11/2018,3510291-THK030,"1,555.00",COUNTY DURHAM FURNITURE HELP SCHEME (CDFHS).
Regeneration and Local Services,Technical Services,Third Party Payments 4THIRD,430127,Rendered by Private Contractors,01/11/2018,3510298-009,537.00,D & L HOPPS.
Regeneration and Local Services,Direct Services,Third Party Payments 4THIRD,430101,Rendered by Private Contractors,01/11/2018,3510307-IV1042982,"2,472.71",DIRECT TYRE MANAGEMENT LTD (DTM).
Regeneration and Local Services,Direct Services,Third Party Payments 4THIRD,430100,Rendered by Private Contractors,01/11/2018,3510310-INV00386,760.00,DURHAM ARB.
Regeneration and Local Services,Economic Development and Housing,Supplies and Services,384437,Miscellaneous Expenses,01/11/2018,3510311-27111,645.00,DURHAM CITY COACHES.
Regeneration and Local Services,Direct Services,Supplies and Services,304221,Equipment and Materials,01/11/2018,3510319-059-232528,624.88,EDMUNDSON ELECTRICAL LTD.
Regeneration and Local Services,Culture & Sport,Supplies and Services,338047,Services,01/11/2018,3510324-16027,"3,684.18",ENTERTAINERS SHOW PROVIDERS LTD.
Regeneration and Local Services,Direct Services,Premises,120037,Energy Costs,01/11/2018,3510332-352491,"1,449.47",FOREST FUELS LTD.
Regeneration and Local Services,Direct Services,Premises,120037,Energy Costs,01/11/2018,3510332-353890,"1,362.99",FOREST FUELS LTD.
Dedicated Schools Grant,DSG High Needs Block,Employees,080025,Agency Staff,01/11/2018,3510340-1070810,"146,168.21",GEOMETRIC RESULTS INTERNATIONAL.
Children and Young Peoples Services,Head of Childrens Social Care,Employees,080025,Agency Staff,01/11/2018,3510340-1070970,"139,792.30",GEOMETRIC RESULTS INTERNATIONAL.
Regeneration and Local Services,Technical Services,Stock A926,926900,Stock in hand-Inventory system,01/11/2018,3510346-06/763661,763.74,GREENHAM TRADING LTD.
Regeneration and Local Services,Technical Services,Stock A926,926900,Stock in hand-Inventory system,01/11/2018,3510346-06/763800,712.00,GREENHAM TRADING LTD.
Regeneration and Local Services,Spatial Policy Planning Assets & Environment,Supplies and Services,384199,Miscellaneous Expenses,01/11/2018,3510354-563,"31,958.00",HERITAGE CONSOLIDATION LTD.
Children and Young Peoples Services,Head of Education and Skills,Supplies and Services,352001,Conference Expenses,01/11/2018,3510362-INV-1111,"1,015.00",HYWEL ROBERTS (SPEAKER).
Regeneration and Local Services,Technical Services,Stock A926,926900,Stock in hand-Inventory system,01/11/2018,3510367-653640,"2,424.80",INSTARMAC GROUP PLC.
Regeneration and Local Services,Technical Services,Construction work A908,908105,Construction work,01/11/2018,3510378-22222,"3,348.78",JACK COUPE & SONS LTD T/A COUPE LINE.
Regeneration and Local Services,Technical Services,Third Party Payments 4THIRD,430100,Rendered by Private Contractors,01/11/2018,3510378-22152,"13,978.40",JACK COUPE & SONS LTD T/A COUPE LINE.
Regeneration and Local Services,Technical Services,Third Party Payments 4THIRD,430100,Rendered by Private Contractors,01/11/2018,3510378-22153,"2,278.44",JACK COUPE & SONS LTD T/A COUPE LINE.
Children and Young Peoples Services,Head of Education and Skills,Third Party Payments 4THIRD,440999,Other third party payments E440,01/11/2018,3510379-JDA/DCC/1738,773.16,JACK DRUM ARTS LTD.
Regeneration and Local Services,Direct Services,Third Party Payments 4THIRD,430100,Rendered by Private Contractors,01/11/2018,3510381-6803,"1,985.00",JAMES INGLEFORD SCAFFOLDING LTD.
Children and Young Peoples Services,Head of Education and Skills,Transport,230008,Contract Hire,01/11/2018,3510383-2794,"1,466.82",JEFF ANDERSON COACHES LTD.
Children and Young Peoples Services,Head of Education and Skills,Transport,230008,Contract Hire,01/11/2018,3510383-2795,"1,394.82",JEFF ANDERSON COACHES LTD.
Regeneration and Local Services,Technical Services,Supplies and Services,304221,Equipment and Materials,01/11/2018,3510395-BII270353,896.12,JT DOVE LTD.
Regeneration and Local Services,Direct Services,Supplies and Services,304221,Equipment and Materials,01/11/2018,3510395-BII270931,"3,962.88",JT DOVE LTD.
Regeneration and Local Services,Technical Services,Supplies and Services,304221,Equipment and Materials,01/11/2018,3510395-DAI21429,598.14,JT DOVE LTD.
Regeneration and Local Services,Direct Services,Supplies and Services,304221,Equipment and Materials,01/11/2018,3510395-GOI1261/D,915.79,JT DOVE LTD.
Regeneration and Local Services,Direct Services,Third Party Payments 4THIRD,430100,Rendered by Private Contractors,01/11/2018,3510396-1-30/9/18,"6,956.00",JTL SCAFFOLDING LTD.
Regeneration and Local Services,Technical Services,Third Party Payments 4THIRD,430100,Rendered by Private Contractors,01/11/2018,3510417-IN009613A,720.00,LINBROOKE SERVICES LTD.
Regeneration and Local Services,Technical Services,Third Party Payments 4THIRD,430100,Rendered by Private Contractors,01/11/2018,3510417-IN010524,"1,260.00",LINBROOKE SERVICES LTD.
Regeneration and Local Services,Technical Services,Third Party Payments 4THIRD,430100,Rendered by Private Contractors,01/11/2018,3510417-IN010525,540.00,LINBROOKE SERVICES LTD.
Regeneration and Local Services,Technical Services,Third Party Payments 4THIRD,430100,Rendered by Private Contractors,01/11/2018,3510417-IN010526,"3,060.00",LINBROOKE SERVICES LTD.
Regeneration and Local Services,Technical Services,Third Party Payments 4THIRD,430100,Rendered by Private Contractors,01/11/2018,3510417-IN010527,"1,440.00",LINBROOKE SERVICES LTD.
Children and Young Peoples Services,Head of Education and Skills,Transport,230008,Contract Hire,01/11/2018,3510420-M119-COVER,630.00,LION CABS.
Adult and Health Services,Public Health,Third Party Payments 4THIRD,460803,Contract Payments,01/11/2018,3510424-DZTR/00000183NRT,687.29,LLOYDS PHARMACY.
Regeneration and Local Services,Direct Services,Supplies and Services,304221,Equipment and Materials,01/11/2018,3510429-4368933,"1,381.22",LONDON GENERAL SALES LTD.
Adult and Health Services,Public Health,Third Party Payments 4THIRD,460803,Contract Payments,01/11/2018,3510432-FPZD/00000124NRT,602.35,LYDON PHARMACY GROUP LTD.
Adult and Health Services,Public Health,Third Party Payments 4THIRD,460803,Contract Payments,01/11/2018,3510437-FFQC/00000122NRT,983.95,M & M PHARMACIES LTD.
Children and Young Peoples Services,Head of Education and Skills,Transport,230008,Contract Hire,01/11/2018,3510444-45,"1,600.00",MALCOLM CARR T/A CARLY CABS.
Regeneration and Local Services,Direct Services,Premises,155001,Insurance of Premises,01/11/2018,3510489-9047,"1,248.63",MM KNITWEAR (1982) LTD.
Regeneration and Local Services,Culture & Sport,Supplies and Services,338047,Services,01/11/2018,3510519-OCT/18,"2,700.00",NEIL ARMSTRONG..
Regeneration and Local Services,Technical Services,Supplies and Services,338027,Services,01/11/2018,3510520-50070767,"2,400.00",NEW COLLEGE DURHAM.
Regeneration and Local Services,Culture & Sport,Supplies and Services,338047,Services,01/11/2018,3510524-780,"5,555.65",NO THIRD ENTERTAINMENTS LTD.
Adult and Health Services,Public Health,Third Party Payments 4THIRD,460803,Contract Payments,01/11/2018,3510525-DWBT/00000095NRT,894.80,NORCHEM HEALTHCARE LTD.
Regeneration and Local Services,Technical Services,Supplies and Services,304221,Equipment and Materials,01/11/2018,3510527-178015,"1,296.00",NORTH EAST CONCRETE LTD.
Children and Young Peoples Services,Head of Education and Skills,Third Party Payments 4THIRD,440999,Other third party payments E440,01/11/2018,3510528-3239,"1,688.59",NORTH EAST DANCE CIC.
Regeneration and Local Services,Technical Services,Premises,120009,Energy Costs,01/11/2018,3510532-NNO745YP,692.89,NPOWER.
Regeneration and Local Services,Technical Services,Premises,120009,Energy Costs,01/11/2018,3510532-NNO756CN,"4,354.54",NPOWER.
Children and Young Peoples Services,Head of Education and Skills,Transport,230008,Contract Hire,01/11/2018,3510559-006A-006C,"1,993.00",PHILS TAXIS.
Adult and Health Services,Head of Adults,Third Party Payments 4THIRD,478151,Purchase of Care,01/11/2018,3510563-8262,521.07,POTENSIAL LTD.
Adult and Health Services,Head of Adults,Third Party Payments 4THIRD,478151,Purchase of Care,01/11/2018,3510564-8263,"1,823.76",POTENSIAL LTD.
Regeneration and Local Services,Transport and Contracted Services,Third Party Payments 4THIRD,430109,Rendered by Private Contractors,01/11/2018,3510570-IN12988QTDC,"1,709.00",Q-FREE (BRISTOL) UK LTD.
Regeneration and Local Services,Direct Services,Supplies and Services,338078,Services,01/11/2018,3510574-113417,"2,422.56",QW SECURITY LTD.
Resources,Digital and Customer Services,Stock A926,926900,Stock in hand-Inventory system,01/11/2018,3510575-37220,519.00,RAPID COMPUTERS LTD T/A RAPID TECHNOLOGIES.
Regeneration and Local Services,Direct Services,Third Party Payments 4THIRD,430100,Rendered by Private Contractors,01/11/2018,3510588-4291,632.00,SAFE STRIP UK LTD.
Transformation and Partnerships,Partnerships & Community Engagement Div.,Supplies and Services,384086,Miscellaneous Expenses,01/11/2018,3510594-VOUCHERADAE07-18,678.00,SCHOOL AYCLIFFE COMMUNITY ASSOCIATION.
Children and Young Peoples Services,Head of Education and Skills,Transport,230008,Contract Hire,01/11/2018,3510599-74339-A005OCT18,"1,746.08",SHOTTON PRIVATE HIRE.
Regeneration and Local Services,Culture & Sport,Supplies and Services,304259,Equipment and Materials,01/11/2018,3510602-914/28679,774.40,SITELINK COMMUNICATIONS LTD.
Dedicated Schools Grant,DSG High Needs Block,Supplies and Services,304259,Equipment and Materials,01/11/2018,3510609-308339,"1,934.00",SPRINGFIELD SUPPLIES & PROJECTS LTD.
Children and Young Peoples Services,Head of Education and Skills,Third Party Payments 4THIRD,440999,Other third party payments E440,01/11/2018,3510614-186,"5,036.88",STANLEY EVENTS LTD.
Children and Young Peoples Services,Head of Education and Skills,Third Party Payments 4THIRD,440999,Other third party payments E440,01/11/2018,3510614-187,"1,787.28",STANLEY EVENTS LTD.
Regeneration and Local Services,Economic Development and Housing,Supplies and Services,384437,Miscellaneous Expenses,01/11/2018,3510615-51712,780.00,STANLEY TRAVEL (NORTH EAST) LTD.
Regeneration and Local Services,Technical Services,Third Party Payments 4THIRD,430100,Rendered by Private Contractors,01/11/2018,3510621-109830,506.00,STONEGRAVE AGGREGATES LTD.
Regeneration and Local Services,Technical Services,Third Party Payments 4THIRD,430100,Rendered by Private Contractors,01/11/2018,3510621-110125,"1,183.88",STONEGRAVE AGGREGATES LTD.
Regeneration and Local Services,Technical Services,Third Party Payments 4THIRD,430100,Rendered by Private Contractors,01/11/2018,3510621-110186,"1,080.20",STONEGRAVE AGGREGATES LTD.
Regeneration and Local Services,Technical Services,Third Party Payments 4THIRD,430100,Rendered by Private Contractors,01/11/2018,3510621-110223,"1,267.20",STONEGRAVE AGGREGATES LTD.
Regeneration and Local Services,Technical Services,Third Party Payments 4THIRD,430100,Rendered by Private Contractors,01/11/2018,3510621-110255,569.76,STONEGRAVE AGGREGATES LTD.
Regeneration and Local Services,Technical Services,Third Party Payments 4THIRD,430100,Rendered by Private Contractors,01/11/2018,3510621-110300,"1,139.60",STONEGRAVE AGGREGATES LTD.
Regeneration and Local Services,Technical Services,Third Party Payments 4THIRD,430100,Rendered by Private Contractors,01/11/2018,3510621-110510,"1,318.36",STONEGRAVE AGGREGATES LTD.
Regeneration and Local Services,Technical Services,Third Party Payments 4THIRD,430100,Rendered by Private Contractors,01/11/2018,3510621-110558,"2,263.80",STONEGRAVE AGGREGATES LTD.
Regeneration and Local Services,Direct Services,Supplies and Services,332047,Printing Stationery and Gen Off Exps,01/11/2018,3510622-2727818,510.26,SUPPLIES TEAM LTD NOW KNOWN AS BANNER GROUP LTD.
Transformation and Partnerships,Partnerships & Community Engagement Div.,Supplies and Services,384086,Miscellaneous Expenses,01/11/2018,3510638-VOUCHERTAYP01-18,500.00,THE FRIENDS OF LANGLEY MOOR.
Regeneration and Local Services,Technical Services,Supplies and Services,372009,Subscriptions E372,01/11/2018,3510646-00051731,"1,945.00",THOMAS TELFORD LTD.
Regeneration and Local Services,Culture & Sport,Supplies and Services,304259,Equipment and Materials,01/11/2018,3510650-2764742,875.60,TPA PORTABLE ROADWAYS LTD.
Regeneration and Local Services,Technical Services,Supplies and Services,304221,Equipment and Materials,01/11/2018,3510657-192581,"1,090.10",TYNEDALE ROADSTONE LTD.
Adult and Health Services,Public Health,Third Party Payments 4THIRD,460803,Contract Payments,01/11/2018,3510663-DTJG/00000134NRT,"2,624.19",VANGMAYI LTD T/A J & J PHARMACY.
Children and Young Peoples Services,Head of Education and Skills,Transport,230006,Contract Hire,02/11/2018,3510694-570,624.00,A BARKER.
Adult and Health Services,Head of Adults,Third Party Payments 4THIRD,478151,Purchase of Care,02/11/2018,3510696-691,"4,247.00",ACCEPT CARE LTD.
Adult and Health Services,Head of Adults,Third Party Payments 4THIRD,478151,Purchase of Care,02/11/2018,3510696-692,"2,367.36",ACCEPT CARE LTD.
Children and Young Peoples Services,Head of Education and Skills,Transport,230006,Contract Hire,02/11/2018,3510697-539,"2,320.00",ACE TAXIS (WINSTON).
Regeneration and Local Services,Technical Services,Supplies and Services,304221,Equipment and Materials,02/11/2018,3510705-27280417,"1,548.92",AGGREGATE INDUSTRIES UK LTD.
Regeneration and Local Services,Technical Services,Supplies and Services,304221,Equipment and Materials,02/11/2018,3510705-27280418,685.76,AGGREGATE INDUSTRIES UK LTD.
Regeneration and Local Services,Technical Services,Supplies and Services,304221,Equipment and Materials,02/11/2018,3510705-27280420,"1,356.92",AGGREGATE INDUSTRIES UK LTD.
Regeneration and Local Services,Technical Services,Supplies and Services,304221,Equipment and Materials,02/11/2018,3510705-27280422,"1,151.88",AGGREGATE INDUSTRIES UK LTD.
Regeneration and Local Services,Technical Services,Supplies and Services,304221,Equipment and Materials,02/11/2018,3510705-27280423,589.68,AGGREGATE INDUSTRIES UK LTD.
Regeneration and Local Services,Technical Services,Supplies and Services,304221,Equipment and Materials,02/11/2018,3510705-27281415,"1,108.26",AGGREGATE INDUSTRIES UK LTD.
Adult and Health Services,Head of Adults,Transport,230005,Contract Hire,02/11/2018,3510708-0014,980.00,AIRPORT TAXIS 4U.
Children and Young Peoples Services,Head of Education and Skills,Transport,230007,Contract Hire,02/11/2018,3510719-0553752,"2,080.00",ANTHONY HOBSON (TAXI).
Regeneration and Local Services,Direct Services,Premises,108099,Service Repairs and Maintenance,02/11/2018,3510720-30986,"1,050.00",AQUAJET DRAIN CLEANING LTD.
Regeneration and Local Services,Direct Services,Premises,106082,Centrally Controlled Rep and Maint,02/11/2018,3510722-7817,"2,290.00",ASPECT FIRE SOLUTIONS LTD.
Children and Young Peoples Services,Head of Education and Skills,Transport,230008,Contract Hire,02/11/2018,3510723-671,"2,180.00",AT TAXIS LTD.
Regeneration and Local Services,Direct Services,Fees,901002,Professional fees 901002,02/11/2018,3510724-ANL2018/163,"1,070.00",AURA NEWCASTLE LTD.
Regeneration and Local Services,Direct Services,Fees,901002,Professional fees 901002,02/11/2018,3510724-ANL2018/164,"1,284.00",AURA NEWCASTLE LTD.
Regeneration and Local Services,Direct Services,Fees,901002,Professional fees 901002,02/11/2018,3510724-ANL2018/175,"1,605.00",AURA NEWCASTLE LTD.
Children and Young Peoples Services,Head of Education and Skills,Transport,230008,Contract Hire,02/11/2018,3510726-311018,"1,360.00",AVALON TAXIS.
Regeneration and Local Services,Technical Services,Third Party Payments 4THIRD,430100,Rendered by Private Contractors,02/11/2018,3510728-CSUKOU/INV/62297,"7,335.50",BALFOUR BEATTY LIVING PLACES LTD.*
Regeneration and Local Services,Technical Services,Third Party Payments 4THIRD,430100,Rendered by Private Contractors,02/11/2018,3510728-CSUKOU/INV/62299,"4,821.60",BALFOUR BEATTY LIVING PLACES LTD.*
Regeneration and Local Services,Technical Services,Third Party Payments 4THIRD,430100,Rendered by Private Contractors,02/11/2018,3510729-CSUKOU/INV/62295,"50,323.37",BALFOUR BEATTY LIVING PLACES LTD.*
Regeneration and Local Services,Technical Services,Third Party Payments 4THIRD,430100,Rendered by Private Contractors,02/11/2018,3510729-CSUKOU/INV/62303,"19,581.17",BALFOUR BEATTY LIVING PLACES LTD.*
Children and Young Peoples Services,Head of Education and Skills,Transport,230007,Contract Hire,02/11/2018,3510735-2-4379,"1,062.00",BENNETTS TAXIS.
Regeneration and Local Services,Culture & Sport,Premises,106080,Centrally Controlled Rep and Maint,02/11/2018,3510740-29334,750.00,BIOCHEMICA GROUP LTD.
Adult and Health Services,Head of Adults,Transport,230005,Contract Hire,02/11/2018,3510741-0057,648.00,BIRDS TAXIS LTD.
Adult and Health Services,Head of Adults,Transport,230005,Contract Hire,02/11/2018,3510741-0060-SED020,808.00,BIRDS TAXIS LTD.
Adult and Health Services,Head of Adults,Transport,230005,Contract Hire,02/11/2018,3510741-0061-WV115,644.00,BIRDS TAXIS LTD.
Children and Young Peoples Services,Head of Education and Skills,Transport,230008,Contract Hire,02/11/2018,3510750-BIL0139,900.00,CA MUSGROVE.
Dedicated Schools Grant,DSG High Needs Block,Third Party Payments 4THIRD,410037,Rendered by Other Local Authorities,02/11/2018,3510756-CCSI503,"2,725.00",CATCOTE ACADEMY.
Dedicated Schools Grant,DSG High Needs Block,Third Party Payments 4THIRD,410037,Rendered by Other Local Authorities,02/11/2018,3510756-CCSI504,"4,825.00",CATCOTE ACADEMY.
Regeneration and Local Services,Culture & Sport,Premises,106082,Centrally Controlled Rep and Maint,02/11/2018,3510757-5037,926.20,CATHEDRAL LOCK & SAFE SERVICES LTD.
Regeneration and Local Services,Culture & Sport,Premises,106080,Centrally Controlled Rep and Maint,02/11/2018,3510761-18502748,914.19,CENTRICA BUSINESS SOLUTIONS UK LTD.
Regeneration and Local Services,Culture & Sport,Premises,106080,Centrally Controlled Rep and Maint,02/11/2018,3510761-18502749,736.92,CENTRICA BUSINESS SOLUTIONS UK LTD.
Regeneration and Local Services,Culture & Sport,Premises,106080,Centrally Controlled Rep and Maint,02/11/2018,3510761-18503034,914.19,CENTRICA BUSINESS SOLUTIONS UK LTD.
Regeneration and Local Services,Culture & Sport,Premises,106080,Centrally Controlled Rep and Maint,02/11/2018,3510761-18503046,736.92,CENTRICA BUSINESS SOLUTIONS UK LTD.
Regeneration and Local Services,Culture & Sport,Premises,106082,Centrally Controlled Rep and Maint,02/11/2018,3510761-18502812,"2,246.05",CENTRICA BUSINESS SOLUTIONS UK LTD.
Children and Young Peoples Services,Head of Education and Skills,Transport,230008,Contract Hire,02/11/2018,3510762-014,800.00,CHANNER`S CABS.
Children and Young Peoples Services,Head of Education and Skills,Transport,230008,Contract Hire,02/11/2018,3510762-014-A,915.70,CHANNER`S CABS.
Children and Young Peoples Services,Head of Education and Skills,Transport,230008,Contract Hire,02/11/2018,3510762-015,"1,055.60",CHANNER`S CABS.
Children and Young Peoples Services,Head of Education and Skills,Transport,230007,Contract Hire,02/11/2018,3510763-21-5222,"1,080.00",CHAPMAN TRAVEL.
Regeneration and Local Services,Culture & Sport,Supplies and Services,338047,Services,02/11/2018,3510768-INV-0073,"1,552.50",CHRIS MILLER (THEATRE CONTRACTOR)
Resources,Internal Audit and Insurance,Supplies and Services,338099,Services,02/11/2018,3510770-X/RB31540,981.98,CIVICA UK LTD.
Children and Young Peoples Services,Head of Education and Skills,Transport,230008,Contract Hire,02/11/2018,3510771-013-A004,"1,904.00",CJ COACHES.
Children and Young Peoples Services,Head of Education and Skills,Transport,230008,Contract Hire,02/11/2018,3510771-013-A008,"3,180.00",CJ COACHES.
Children and Young Peoples Services,Head of Education and Skills,Transport,230007,Contract Hire,02/11/2018,3510773-1068,"1,440.00",CLIVE HUBERY.
Children and Young Peoples Services,Head of Education and Skills,Transport,230008,Contract Hire,02/11/2018,3510778-1494-N044,"1,656.00",CONNORS MINI BUSES.*
Children and Young Peoples Services,Head of Education and Skills,Transport,230008,Contract Hire,02/11/2018,3510778-1495-N045,"1,764.00",CONNORS MINI BUSES.*
Children and Young Peoples Services,Head of Education and Skills,Transport,230008,Contract Hire,02/11/2018,3510778-1496-N046,"1,692.00",CONNORS MINI BUSES.*
Children and Young Peoples Services,Head of Education and Skills,Transport,230008,Contract Hire,02/11/2018,3510778-1497-N039,"2,160.00",CONNORS MINI BUSES.*
Children and Young Peoples Services,"Head of Early Help, Inclusion and Vulnerable Children",Third Party Payments 4THIRD,460305,Contract Payments,02/11/2018,3510784-THK029,"1,085.00",COUNTY DURHAM FURNITURE HELP SCHEME (CDFHS).
Children and Young Peoples Services,Head of Education and Skills,Transport,230007,Contract Hire,02/11/2018,3510788-108402,"1,885.32",CROFT BUSINESS SERVICES (UK) LTD T/A CROFT TAXIS.
Children and Young Peoples Services,Head of Education and Skills,Transport,230009,Contract Hire,02/11/2018,3510788-108405,"1,797.66",CROFT BUSINESS SERVICES (UK) LTD T/A CROFT TAXIS.
Children and Young Peoples Services,Head of Education and Skills,Transport,230016,Contract Hire,02/11/2018,3510788-108416,"1,223.64",CROFT BUSINESS SERVICES (UK) LTD T/A CROFT TAXIS.
Children and Young Peoples Services,Head of Education and Skills,Transport,230008,Contract Hire,02/11/2018,3510788-108407,"3,833.40",CROFT BUSINESS SERVICES (UK) LTD T/A CROFT TAXIS.
Children and Young Peoples Services,Head of Education and Skills,Transport,230008,Contract Hire,02/11/2018,3510788-108415,"2,197.06",CROFT BUSINESS SERVICES (UK) LTD T/A CROFT TAXIS.
Children and Young Peoples Services,Head of Education and Skills,Transport,230008,Contract Hire,02/11/2018,3510788-108417,"1,189.26",CROFT BUSINESS SERVICES (UK) LTD T/A CROFT TAXIS.
Adult and Health Services,Head of Adults,Transport,230005,Contract Hire,02/11/2018,3510788-108413,"1,448.54",CROFT BUSINESS SERVICES (UK) LTD T/A CROFT TAXIS.
Children and Young Peoples Services,Head of Education and Skills,Transport,230008,Contract Hire,02/11/2018,3510790-39A,"1,110.00",CUTHBERT CABS.
Children and Young Peoples Services,Head of Education and Skills,Transport,230007,Contract Hire,02/11/2018,3510794-14,680.00,D CROOK T/A CK TAXIS.
Children and Young Peoples Services,Head of Education and Skills,Transport,230008,Contract Hire,02/11/2018,3510794-15,"1,440.00",D CROOK T/A CK TAXIS.
Children and Young Peoples Services,Head of Education and Skills,Transport,230008,Contract Hire,02/11/2018,3510795-HOW1810,"1,216.00",D IRVING T/A BJ TAXIS.
Children and Young Peoples Services,Head of Education and Skills,Transport,230008,Contract Hire,02/11/2018,3510800-3359,"2,214.00",DAVES MINIBUSES.
Children and Young Peoples Services,Head of Education and Skills,Transport,230008,Contract Hire,02/11/2018,3510800-3360,"1,530.00",DAVES MINIBUSES.
Children and Young Peoples Services,Head of Education and Skills,Transport,230008,Contract Hire,02/11/2018,3510800-3361,"1,660.00",DAVES MINIBUSES.
Children and Young Peoples Services,Head of Education and Skills,Transport,230008,Contract Hire,02/11/2018,3510800-3362,"1,620.00",DAVES MINIBUSES.
Children and Young Peoples Services,Head of Education and Skills,Transfer Payments,510026,School Children,02/11/2018,3510804-CAS-11-2018-010,"1,147.50",DAWN TILL DUSK CHILDCARE.
Children and Young Peoples Services,Head of Education and Skills,Transport,230008,Contract Hire,02/11/2018,3510805-1018-001,"1,680.00",DCM TAXIS.
Resources,Digital and Customer Services,Supplies and Services,342033,Computers and Communications,02/11/2018,3510806-7402475729,"1,833.13",DELL COMPUTER CORPORATION LTD.
Adult and Health Services,Head of Adults,Supplies and Services,338042,Services,02/11/2018,3510808-341556/INVSRG61,535.00,DERE STREET BARRISTERS.
Adult and Health Services,Public Health,Third Party Payments 4THIRD,460803,Contract Payments,02/11/2018,3510809-HEALTHCHECKS/009,"32,766.00",DERWENTSIDE HEALTHCARE LTD.
Regeneration and Local Services,Direct Services,Third Party Payments 4THIRD,430101,Rendered by Private Contractors,02/11/2018,3510810-IV1047154,706.50,DIRECT TYRE MANAGEMENT LTD (DTM).
Adult and Health Services,Head of Adults,Supplies and Services,338066,Services,02/11/2018,3510814-2610201801112018,766.78,DR ARUNIMA GHOSH.
Adult and Health Services,Head of Adults,Supplies and Services,338066,Services,02/11/2018,3510816-2610201801112018,729.57,DR IMRAN MUNIR.
Adult and Health Services,Head of Adults,Supplies and Services,338066,Services,02/11/2018,3510817-2610201801112018,887.40,DR STEPHEN WILKINSON.
Regeneration and Local Services,Spatial Policy Planning Assets & Environment,Supplies and Services,304999,Equipment and Materials,02/11/2018,3510820-RED-11-2018-003,"2,537.02",DURHAM ALLOY WHEELS T/A THE WHEEL SPECIALIST.
Regeneration and Local Services,Culture & Sport,Third Party Payments 4THIRD,430100,Rendered by Private Contractors,02/11/2018,3510830-INV-562,"2,000.00",ECO ENTERPRISES LTD.
Regeneration and Local Services,Direct Services,Transport,210057,Repair and Maintenance of Vehicles,02/11/2018,3510831-S200623,741.92,ECON ENGINEERING LTD.
Regeneration and Local Services,Direct Services,Supplies and Services,304221,Equipment and Materials,02/11/2018,3510832-059-232400,765.77,EDMUNDSON ELECTRICAL LTD.
Regeneration and Local Services,Direct Services,Supplies and Services,304221,Equipment and Materials,02/11/2018,3510832-059-232448,"2,542.00",EDMUNDSON ELECTRICAL LTD.
Regeneration and Local Services,Economic Development and Housing,Vehicles Equipment Furniture and Fittings,912529,Purchase-equipment,02/11/2018,3510836-UKAB12062018001,"1,500.00",ELITECH UK (LTD).
Children and Young Peoples Services,Head of Education and Skills,Transport,230006,Contract Hire,02/11/2018,3510839-N220/OCT/18,764.64,EMMA RAMSHAW T/A EMMA`S CABS.
Regeneration and Local Services,Direct Services,Construction work A908,908105,Construction work,02/11/2018,3510842-THORNLEY-WASTE-TREATMENT,"25,037.54",ESH CONSTRUCTION LTD FORMERLY LUMSDEN & CARROLL CONSTRUCTION LTD.
Regeneration and Local Services,Culture & Sport,Premises,106082,Centrally Controlled Rep and Maint,02/11/2018,3510855-13233,"1,433.52",FT LEISURE LTD.
Regeneration and Local Services,Culture & Sport,Premises,106082,Centrally Controlled Rep and Maint,02/11/2018,3510855-13251,539.10,FT LEISURE LTD.
Regeneration and Local Services,Direct Services,Transport,210057,Repair and Maintenance of Vehicles,02/11/2018,3510860-13850,"2,570.40",GATESHEAD BEARINGS LTD.
Children and Young Peoples Services,Head of Education and Skills,Transport,230008,Contract Hire,02/11/2018,3510861-12089-A016,"1,292.00",GATESHEAD CENTRAL TAXIS LTD.
Children and Young Peoples Services,Head of Education and Skills,Transport,230008,Contract Hire,02/11/2018,3510861-12089-A056,"2,432.00",GATESHEAD CENTRAL TAXIS LTD.
Adult and Health Services,Head of Adults,Transport,230005,Contract Hire,02/11/2018,3510861-12089-NCL019,"1,392.00",GATESHEAD CENTRAL TAXIS LTD.
Regeneration and Local Services,Technical Services,Supplies and Services,338027,Services,02/11/2018,3510862-107715169,960.00,GATESHEAD COUNCIL.
Regeneration and Local Services,Technical Services,Supplies and Services,338027,Services,02/11/2018,3510862-107715178,960.00,GATESHEAD COUNCIL.
Regeneration and Local Services,Spatial Policy Planning Assets & Environment,Supplies and Services,304999,Equipment and Materials,02/11/2018,3510864-RED-11-2018-014,"1,000.00",GOODFELLOW & GOODFELLOW LTD.
Children and Young Peoples Services,Head of Education and Skills,Transport,230008,Contract Hire,02/11/2018,3510865-000048,"2,070.00",GP TAXIS.
Regeneration and Local Services,Technical Services,Stock A926,926900,Stock in hand-Inventory system,02/11/2018,3510866-06/764004,895.40,GREENHAM TRADING LTD.
Children and Young Peoples Services,Head of Education and Skills,Transport,230006,Contract Hire,02/11/2018,3510872-23,546.00,HARDIP SINGH MAHIL T/A AMBER CARS.
Regeneration and Local Services,Spatial Policy Planning Assets & Environment,Supplies and Services,304999,Equipment and Materials,02/11/2018,3510873-RED-11-2018-012,"5,130.00",HATHAWAY ROOFING LTD.
Regeneration and Local Services,Technical Services,Supplies and Services,304221,Equipment and Materials,02/11/2018,3510877-IN059257,"10,132.02",HILL & SMITH LTD.
Regeneration and Local Services,Technical Services,Supplies and Services,304221,Equipment and Materials,02/11/2018,3510877-IN059258,"12,537.22",HILL & SMITH LTD.
Regeneration and Local Services,Direct Services,Premises,108099,Service Repairs and Maintenance,02/11/2018,3510880-7080721808,"4,646.65",HONEYWELL NOVAR SYSTEMS LTD.
Regeneration and Local Services,Economic Development and Housing,Premises,106080,Centrally Controlled Rep and Maint,02/11/2018,3510885-R16/529V53A+V54,772.00,HYGIENIC CLEANING COMPANY (UK) LTD.
Dedicated Schools Grant,DSG High Needs Block,Transport,230010,Contract Hire,02/11/2018,3510886-WOOD002,"1,953.00",IAN SOULSBY.
Transformation and Partnerships,Comms & Information Management,Supplies and Services,384199,Miscellaneous Expenses,02/11/2018,3510888-111797,"1,200.00",IDOX SOFTWARE LTD.
Resources,Digital and Customer Services,Supplies and Services,304303,Equipment and Materials,02/11/2018,3510889-SIN436017,"6,075.00",INFORMATION & DATA NETWORK SUPPLIES LTD (IDN).
Resources,Digital and Customer Services,Supplies and Services,304303,Equipment and Materials,02/11/2018,3510889-SIN436077,"2,623.00",INFORMATION & DATA NETWORK SUPPLIES LTD (IDN).
Regeneration and Local Services,Technical Services,Construction work A908,908105,Construction work,02/11/2018,3510894-22223,"1,732.82",JACK COUPE & SONS LTD T/A COUPE LINE.
Children and Young Peoples Services,Head of Education and Skills,Transport,230006,Contract Hire,02/11/2018,3510898-DC0002,711.00,JANICE BRADSHAW T/A JAN PRIVATE HIRE.
Regeneration and Local Services,Direct Services,Premises,106080,Centrally Controlled Rep and Maint,02/11/2018,3510900-18123,"10,460.00",JC MAINTENANCE SERVICES LTD.
Regeneration and Local Services,Direct Services,Premises,108099,Service Repairs and Maintenance,02/11/2018,3510900-18122,"7,059.47",JC MAINTENANCE SERVICES LTD.
Regeneration and Local Services,Culture & Sport,Premises,106082,Centrally Controlled Rep and Maint,02/11/2018,3510900-18121,"25,197.24",JC MAINTENANCE SERVICES LTD.
Children and Young Peoples Services,Head of Education and Skills,Transport,230007,Contract Hire,02/11/2018,3510906-63,"1,530.00",JOHN CRAKE & SONS MINI BUSES LTD.
Adult and Health Services,Head of Adults,Transport,230005,Contract Hire,02/11/2018,3510907-01102018,750.00,JOHN HUBBLE T/A HUBB`S TAXIS.
Regeneration and Local Services,Culture & Sport,Supplies and Services,304259,Equipment and Materials,02/11/2018,3510908-911906,915.18,JP LENNARD LTD.
Regeneration and Local Services,Spatial Policy Planning Assets & Environment,Cap Exp on Grants & Other Financial Assistance (REFCUS),918501,Exp assets not owned by authority,02/11/2018,3510911-1011,"24,242.00",JW BAINBRIDGE CONTRACTORS LTD.
Regeneration and Local Services,Spatial Policy Planning Assets & Environment,Supplies and Services,338066,Services,02/11/2018,3510911-1009,"5,460.00",JW BAINBRIDGE CONTRACTORS LTD.
Regeneration and Local Services,Spatial Policy Planning Assets & Environment,Supplies and Services,338066,Services,02/11/2018,3510911-1010,"6,825.00",JW BAINBRIDGE CONTRACTORS LTD.
Adult and Health Services,Head of Adults,Transport,230005,Contract Hire,02/11/2018,3510912-NCL014-OCT,"2,200.00",K & R TAXIS (STANLEY).
Regeneration and Local Services,Technical Services,Third Party Payments 4THIRD,430100,Rendered by Private Contractors,02/11/2018,3510914-34285,"7,463.69",KAEFER LTD.
Children and Young Peoples Services,Head of Education and Skills,Transport,230006,Contract Hire,02/11/2018,3510919-2103,845.40,KEN HINDS.
Children and Young Peoples Services,Head of Education and Skills,Transport,230008,Contract Hire,02/11/2018,3510920-011018,"1,830.00",KEVIN EDMUNDSON.
Children and Young Peoples Services,Head of Education and Skills,Transport,230009,Contract Hire,02/11/2018,3510921-CTD006/18,900.00,KEVIN WALKER T/A CENTRAL TAXIS.
Regeneration and Local Services,Direct Services,Supplies and Services,304221,Equipment and Materials,02/11/2018,3510924-MD51/584418,571.90,LAIDLAW LTD.
Children and Young Peoples Services,Head of Education and Skills,Transport,230003,Contract Hire,02/11/2018,3510927-5991-4017,"2,601.00",LEE`S COACHES LTD.
Children and Young Peoples Services,Head of Education and Skills,Transport,230003,Contract Hire,02/11/2018,3510927-5991-4020,"2,268.00",LEE`S COACHES LTD.
Children and Young Peoples Services,Head of Education and Skills,Transport,230007,Contract Hire,02/11/2018,3510928-238,630.00,LEE`S TAXIS (SACRISTON).
Children and Young Peoples Services,Head of Education and Skills,Transport,230008,Contract Hire,02/11/2018,3510928-239,720.00,LEE`S TAXIS (SACRISTON).
Regeneration and Local Services,Technical Services,Third Party Payments 4THIRD,430100,Rendered by Private Contractors,02/11/2018,3510932-IN010543,"1,080.00",LINBROOKE SERVICES LTD.
Regeneration and Local Services,Technical Services,Third Party Payments 4THIRD,430100,Rendered by Private Contractors,02/11/2018,3510932-IN010544,"1,620.00",LINBROOKE SERVICES LTD.
Regeneration and Local Services,Technical Services,Third Party Payments 4THIRD,430100,Rendered by Private Contractors,02/11/2018,3510932-IN010545,"1,260.00",LINBROOKE SERVICES LTD.
Children and Young Peoples Services,Childrens Services Operational Support,Intangible Assets,917001,Software capitalised licence fees,02/11/2018,3510934-0000022631,"38,780.00",LIQUIDLOGIC LTD.
Dedicated Schools Grant,DSG High Needs Block,Supplies and Services,304259,Equipment and Materials,02/11/2018,3510940-INV-3538,"2,279.80",LYNCH HEALTHCARE LTD.
Children and Young Peoples Services,Head of Education and Skills,Transport,230007,Contract Hire,02/11/2018,3510945-INV10/1812,"1,224.00",MARK & JOHN CHISHOLM T/A (CHEVRON).
Children and Young Peoples Services,Head of Education and Skills,Transport,230007,Contract Hire,02/11/2018,3510945-INV10/1813,"1,080.00",MARK & JOHN CHISHOLM T/A (CHEVRON).
Children and Young Peoples Services,Head of Education and Skills,Transport,230009,Contract Hire,02/11/2018,3510945-INV10/1811,504.00,MARK & JOHN CHISHOLM T/A (CHEVRON).
Dedicated Schools Grant,DSG High Needs Block,Transport,230010,Contract Hire,02/11/2018,3510945-INV10/1801,"1,047.04",MARK & JOHN CHISHOLM T/A (CHEVRON).
Children and Young Peoples Services,Head of Education and Skills,Transport,230008,Contract Hire,02/11/2018,3510945-INV10/1806,"1,692.00",MARK & JOHN CHISHOLM T/A (CHEVRON).
Children and Young Peoples Services,Head of Education and Skills,Transport,230008,Contract Hire,02/11/2018,3510945-INV10/1810,"1,768.00",MARK & JOHN CHISHOLM T/A (CHEVRON).
Children and Young Peoples Services,Head of Education and Skills,Transport,230009,Contract Hire,02/11/2018,3510947-311019,680.00,MARK MUSGROVE T/A MARKS TAXIS.
Children and Young Peoples Services,Head of Education and Skills,Transport,230006,Contract Hire,02/11/2018,3510947-250918-F767,500.00,MARK MUSGROVE T/A MARKS TAXIS.
Children and Young Peoples Services,Head of Education and Skills,Transport,230016,Contract Hire,02/11/2018,3510948-24,"1,140.00",MARK SUMMERS T/A MARK`S TAXI.
Children and Young Peoples Services,Head of Education and Skills,Transport,230008,Contract Hire,02/11/2018,3510957-2A,960.00,MICHAEL A BODDY T/A MBS TAXIS.
Adult and Health Services,Head of Adults,Transport,230005,Contract Hire,02/11/2018,3510958-00964,702.00,MICHAELS TRAVEL.
Regeneration and Local Services,Culture & Sport,Employees,080030,Agency Staff,02/11/2018,3510959-2018028,"2,724.00",MICHELLE GARTON T/A GET FIT NORTH EAST.
Regeneration and Local Services,Culture & Sport,Supplies and Services,304259,Equipment and Materials,02/11/2018,3510960-180716,"1,605.11",MIKE AYRES DESIGN LTD.
Children and Young Peoples Services,Head of Education and Skills,Transport,230006,Contract Hire,02/11/2018,3510963-A001-OCT,"2,200.00",MOLLY`S TAXIS LTD.
Children and Young Peoples Services,Head of Education and Skills,Transport,230008,Contract Hire,02/11/2018,3510963-002,"2,160.00",MOLLY`S TAXIS LTD.
Children and Young Peoples Services,Head of Education and Skills,Transport,230008,Contract Hire,02/11/2018,3510963-002-A007,"2,200.00",MOLLY`S TAXIS LTD.
Regeneration and Local Services,Culture & Sport,Supplies and Services,324001,Provisions E324,02/11/2018,3510964-904837485,"2,002.87",MOLSON COORS BREWING COMPANY (UK) LTD.
Children and Young Peoples Services,Head of Education and Skills,Transport,230007,Contract Hire,02/11/2018,3510965-AT163,"1,020.00",MR AG WILSON T/A ALAN`S TAXIS (DURHAM CITY).
Children and Young Peoples Services,Head of Education and Skills,Transport,230008,Contract Hire,02/11/2018,3510966-13-W028,"1,080.00",MR BW YOUNG T/A ESH TAXIS.
Regeneration and Local Services,Economic Development and Housing,Transport,235073,Public Transport,02/11/2018,3510967-24,596.00,MR C RAYNER T/A OUSTON TAXIS..
Children and Young Peoples Services,Head of Education and Skills,Transport,230007,Contract Hire,02/11/2018,3510968-GP210-18,538.20,MR CT WALKER T/A CW TAXIS.
Children and Young Peoples Services,Head of Education and Skills,Transport,230006,Contract Hire,02/11/2018,3510968-COLL10-18,"1,376.40",MR CT WALKER T/A CW TAXIS.
Children and Young Peoples Services,Head of Education and Skills,Transport,230012,Contract Hire,02/11/2018,3510968-CHPK110-18,"1,771.20",MR CT WALKER T/A CW TAXIS.
Children and Young Peoples Services,Head of Education and Skills,Transport,230008,Contract Hire,02/11/2018,3510968-DT110-18,676.80,MR CT WALKER T/A CW TAXIS.
Children and Young Peoples Services,Head of Education and Skills,Transport,230008,Contract Hire,02/11/2018,3510968-DT210-18,779.40,MR CT WALKER T/A CW TAXIS.
Children and Young Peoples Services,Head of Education and Skills,Transport,230008,Contract Hire,02/11/2018,3510968-EL110-18,"1,339.65",MR CT WALKER T/A CW TAXIS.
Children and Young Peoples Services,Head of Education and Skills,Transport,230008,Contract Hire,02/11/2018,3510968-EL210-18,"1,743.30",MR CT WALKER T/A CW TAXIS.
Children and Young Peoples Services,Head of Education and Skills,Transport,230008,Contract Hire,02/11/2018,3510968-EL310-18,"1,842.95",MR CT WALKER T/A CW TAXIS.
Adult and Health Services,Head of Adults,Transport,230005,Contract Hire,02/11/2018,3510968-EDB110-18,647.40,MR CT WALKER T/A CW TAXIS.
Adult and Health Services,Head of Adults,Transport,230005,Contract Hire,02/11/2018,3510969-SLD010-1018,650.00,MR D DONNELLY.
Children and Young Peoples Services,Head of Education and Skills,Transport,230008,Contract Hire,02/11/2018,3510972-KDK/OCT18,"1,170.00",MR IAN KELSEY T/A KDK TAXIS.
Children and Young Peoples Services,Head of Education and Skills,Transport,230008,Contract Hire,02/11/2018,3510973-OC/10/17-M060,918.00,MR J AGAR T/A PARK TAXIS.
Children and Young Peoples Services,Head of Education and Skills,Transport,230008,Contract Hire,02/11/2018,3510973-SFB/10/18,"1,680.00",MR J AGAR T/A PARK TAXIS.
Children and Young Peoples Services,Head of Education and Skills,Transport,230007,Contract Hire,02/11/2018,3510974-94,918.00,MR JOHN ALLINSON T/A AALPHA TAXIS.
Children and Young Peoples Services,Head of Education and Skills,Transport,230006,Contract Hire,02/11/2018,3510974-93,"1,410.00",MR JOHN ALLINSON T/A AALPHA TAXIS.
Regeneration and Local Services,Direct Services,Transport,210057,Repair and Maintenance of Vehicles,02/11/2018,3510986-INVHE38795,622.46,NE TRUCK SPARES LTD (NETS).
Children and Young Peoples Services,Head of Education and Skills,Transport,230008,Contract Hire,02/11/2018,3510987-46,"1,620.00",NEIL PASSMOOR T/A NEIL`S TAXI.
Regeneration and Local Services,Transport and Contracted Services,Construction work A908,908105,Construction work,02/11/2018,3510990-1235734,"38,808.80",NETWORK RAIL.
Adult and Health Services,Public Health,Third Party Payments 4THIRD,460803,Contract Payments,02/11/2018,3510993-7010900775,865.98,NHS SOUTH TYNESIDE CCG.
Regeneration and Local Services,Technical Services,Supplies and Services,304221,Equipment and Materials,02/11/2018,3510997-178016,"1,296.00",NORTH EAST CONCRETE LTD.
Regeneration and Local Services,Direct Services,Transport,210057,Repair and Maintenance of Vehicles,02/11/2018,3510998-21810842,910.10,NORTH EAST TRUCK & VAN LTD.
Regeneration and Local Services,Spatial Policy Planning Assets & Environment,Construction work A908,908105,Construction work,02/11/2018,3511000-NEI-EXP-11-2018-001,585.00,NORTHUMBRIAN WATER LTD.
Regeneration and Local Services,Technical Services,Premises,120009,Energy Costs,02/11/2018,3511002-NNO75TVN,"14,198.42",NPOWER.
Regeneration and Local Services,Direct Services,Transport,215005,Running Costs of Vehicles,02/11/2018,3511005-364791,"10,898.09",OIL NRG LTD.
Regeneration and Local Services,Direct Services,Transport,215022,Running Costs of Vehicles,02/11/2018,3511005-363997,"5,002.68",OIL NRG LTD.
Regeneration and Local Services,Direct Services,Transport,215022,Running Costs of Vehicles,02/11/2018,3511005-364793,"1,282.20",OIL NRG LTD.
Regeneration and Local Services,Technical Services,Stock A926,926900,Stock in hand-Inventory system,02/11/2018,3511010-XL229716,"3,150.00",PARK ELECTRICAL DISTRIBUTORS LTD.
Resources,People & Talent Management,Supplies and Services,384999,Miscellaneous Expenses,02/11/2018,3511011-267264A,650.00,PARKLANE PLOWDEN CHAMBERS (BARRISTERS).
Children and Young Peoples Services,Head of Education and Skills,Transport,230007,Contract Hire,02/11/2018,3511016-593,"1,260.00",PETERLEE EXECUTIVE CARS.
Regeneration and Local Services,Direct Services,Supplies and Services,304221,Equipment and Materials,02/11/2018,3511019-65947909,"1,036.22",PHS GROUP PLC.
Regeneration and Local Services,Direct Services,Transport,210057,Repair and Maintenance of Vehicles,02/11/2018,3511020-TYN191077,550.20,PIRTEK TYNE & WEAR.
Children and Young Peoples Services,Head of Education and Skills,Transport,230012,Contract Hire,02/11/2018,3511023-1297,"1,116.00",PODA TAXIS LTD.
Children and Young Peoples Services,Head of Education and Skills,Transport,230008,Contract Hire,02/11/2018,3511023-1295,"1,080.00",PODA TAXIS LTD.
Children and Young Peoples Services,Head of Education and Skills,Transport,230008,Contract Hire,02/11/2018,3511023-1296,"1,890.00",PODA TAXIS LTD.
Resources,Digital and Customer Services,Supplies and Services,332029,Printing Stationery and Gen Off Exps,02/11/2018,3511025-664035,555.00,POTTS PRINTERS LTD.
Resources,Digital and Customer Services,Supplies and Services,332029,Printing Stationery and Gen Off Exps,02/11/2018,3511025-664066,687.00,POTTS PRINTERS LTD.
Dedicated Schools Grant,DSG High Needs Block,Employees,080025,Agency Staff,02/11/2018,3511027-51331747,804.48,PROTOCOL EDUCATION LTD.
Dedicated Schools Grant,DSG High Needs Block,Employees,080025,Agency Staff,02/11/2018,3511027-51331749,512.48,PROTOCOL EDUCATION LTD.
Dedicated Schools Grant,DSG High Needs Block,Employees,080025,Agency Staff,02/11/2018,3511027-51331750,527.63,PROTOCOL EDUCATION LTD.
Transformation and Partnerships,Partnerships & Community Engagement Div.,Supplies and Services,384071,Miscellaneous Expenses,02/11/2018,3511030-INV53653,"3,772.92",RAMSIDE HALL HOTEL & GOLF CLUB.*
Regeneration and Local Services,Direct Services,Supplies and Services,304221,Equipment and Materials,02/11/2018,3511040-0000049493,"3,852.50",RINNAI UK LTD.
Regeneration and Local Services,Direct Services,Third Party Payments 4THIRD,430100,Rendered by Private Contractors,02/11/2018,3511043-49136,"2,690.00",RJ UTILITY SERVICES LTD.
Children and Young Peoples Services,Head of Childrens Social Care,Third Party Payments 4THIRD,425021,Rendered by Voluntary Organisations,02/11/2018,3511032-4651,"23,664.16",ROC FAMILY SUPPORT LTD.
Children and Young Peoples Services,Head of Childrens Social Care,Third Party Payments 4THIRD,425021,Rendered by Voluntary Organisations,02/11/2018,3511032-4652,"33,067.26",ROC FAMILY SUPPORT LTD.
Children and Young Peoples Services,Head of Childrens Social Care,Third Party Payments 4THIRD,425021,Rendered by Voluntary Organisations,02/11/2018,3511032-4657,"23,664.16",ROC FAMILY SUPPORT LTD.
Children and Young Peoples Services,Head of Childrens Social Care,Third Party Payments 4THIRD,425021,Rendered by Voluntary Organisations,02/11/2018,3511032-4661,"33,067.26",ROC FAMILY SUPPORT LTD.
Regeneration and Local Services,Economic Development and Housing,Cap Exp on Grants & Other Financial Assistance (REFCUS),918501,Exp assets not owned by authority,02/11/2018,3511047-RED-11-2018-008,"14,328.00",RONDEN PROPERTIES LTD.
Children and Young Peoples Services,Head of Education and Skills,Transport,230008,Contract Hire,02/11/2018,3511048-2-S039,"1,468.44",ROUTE 1.
Children and Young Peoples Services,Head of Education and Skills,Transport,230008,Contract Hire,02/11/2018,3511061-74344-A015OCT18,"2,400.00",SHOTTON PRIVATE HIRE.
Children and Young Peoples Services,Head of Education and Skills,Transport,230008,Contract Hire,02/11/2018,3511061-74359,"1,764.60",SHOTTON PRIVATE HIRE.
Children and Young Peoples Services,Head of Education and Skills,Transport,230008,Contract Hire,02/11/2018,3511061-74360,"1,685.60",SHOTTON PRIVATE HIRE.
Children and Young Peoples Services,Head of Education and Skills,Transport,230003,Contract Hire,02/11/2018,3511066-51519,"2,105.20",STANLEY TRAVEL (NORTH EAST) LTD.
Children and Young Peoples Services,Head of Education and Skills,Transport,230003,Contract Hire,02/11/2018,3511066-51520,"2,358.85",STANLEY TRAVEL (NORTH EAST) LTD.
Children and Young Peoples Services,Head of Education and Skills,Transport,230003,Contract Hire,02/11/2018,3511066-51521,"2,358.85",STANLEY TRAVEL (NORTH EAST) LTD.
Children and Young Peoples Services,Head of Education and Skills,Transport,230003,Contract Hire,02/11/2018,3511066-51524,"2,358.85",STANLEY TRAVEL (NORTH EAST) LTD.
Children and Young Peoples Services,Head of Education and Skills,Transport,230008,Contract Hire,02/11/2018,3511067-23-31/10/18,"1,260.00",STEELYS TAXIS.
Regeneration and Local Services,Culture & Sport,Supplies and Services,336005,Advertising E336,02/11/2018,3511068-INV-4135,"4,128.00",STEVE DAVIDSON ADVERTISING LTD T/A SD ADVERTISING LTD.
Children and Young Peoples Services,Head of Education and Skills,Supplies and Services,338027,Services,02/11/2018,3511073-2807027680,550.00,SUNDERLAND CITY COUNCIL.
Resources,Digital and Customer Services,Premises,120009,Energy Costs,02/11/2018,3511073-2821020198,"10,154.44",SUNDERLAND CITY COUNCIL.
Regeneration and Local Services,Direct Services,Supplies and Services,304221,Equipment and Materials,02/11/2018,3511087-INV4011552,591.25,THE HALES PARTNERSHIP T/A EVEREDGE THE EDGING COMPANY.
Regeneration and Local Services,Direct Services,Supplies and Services,328041,Clothing uniforms and laundry E328,02/11/2018,3511092-N/IN231551,845.79,THOMAS OWEN & SONS (NEWCASTLE) LTD.
Regeneration and Local Services,Technical Services,Supplies and Services,304221,Equipment and Materials,02/11/2018,3511092-N/IN231595,773.84,THOMAS OWEN & SONS (NEWCASTLE) LTD.
Regeneration and Local Services,Technical Services,Third Party Payments 4THIRD,430100,Rendered by Private Contractors,02/11/2018,3511110-438,711.75,VINOVIUM ASSOCIATES LTD.
Children and Young Peoples Services,Head of Education and Skills,Transport,230007,Contract Hire,02/11/2018,3511115-3177/09/18,"3,492.00",WEARDALE MOTOR SERVICES LTD.
Children and Young Peoples Services,Head of Education and Skills,Transport,230007,Contract Hire,02/11/2018,3511115-4361/09/18,"1,062.00",WEARDALE MOTOR SERVICES LTD.
Children and Young Peoples Services,Head of Education and Skills,Transport,230003,Contract Hire,02/11/2018,3511115-STJOHN/SEPT18-3223,"5,004.00",WEARDALE MOTOR SERVICES LTD.
Children and Young Peoples Services,Head of Education and Skills,Transport,230003,Contract Hire,02/11/2018,3511115-STJOHN/SEPT18-3262,"2,502.00",WEARDALE MOTOR SERVICES LTD.
Children and Young Peoples Services,Head of Childrens Social Care,Supplies and Services,338028,Services,02/11/2018,3511119-36807,"1,494.50",WRIXON SECURITY SERVICES LTD T/A WRIXON CARE.
Children and Young Peoples Services,Head of Childrens Social Care,Supplies and Services,338028,Services,02/11/2018,3511119-36819,679.00,WRIXON SECURITY SERVICES LTD T/A WRIXON CARE.
Resources,Digital and Customer Services,Supplies and Services,304337,Equipment and Materials,02/11/2018,3511120-KM51883,668.96,XMA LTD.
Children and Young Peoples Services,Head of Education and Skills,Transport,230007,Contract Hire,05/11/2018,3511128-571,646.00,A BARKER.
Regeneration and Local Services,Culture & Sport,Supplies and Services,304259,Equipment and Materials,05/11/2018,3511131-116338724,"3,887.00",AC ENTERTAINMENT TECHNOLOGIES.
Regeneration and Local Services,Culture & Sport,Supplies and Services,304259,Equipment and Materials,05/11/2018,3511132-5427,"2,615.00",ACOUSTIGUIDE LTD.
Regeneration and Local Services,Culture & Sport,Premises,108251,Service Repairs and Maintenance,05/11/2018,3511134-39238418-61,565.98,ADT FIRE & SECURITY PLC.
Regeneration and Local Services,Technical Services,Supplies and Services,304221,Equipment and Materials,05/11/2018,3511136-27287206,"1,257.20",AGGREGATE INDUSTRIES UK LTD.
Regeneration and Local Services,Technical Services,Supplies and Services,304221,Equipment and Materials,05/11/2018,3511136-27287207,"1,370.56",AGGREGATE INDUSTRIES UK LTD.
Regeneration and Local Services,Technical Services,Supplies and Services,304221,Equipment and Materials,05/11/2018,3511136-27287208,"1,129.84",AGGREGATE INDUSTRIES UK LTD.
Regeneration and Local Services,Technical Services,Supplies and Services,304221,Equipment and Materials,05/11/2018,3511136-27293938,"1,806.40",AGGREGATE INDUSTRIES UK LTD.
Regeneration and Local Services,Technical Services,Supplies and Services,304221,Equipment and Materials,05/11/2018,3511136-27293939,637.76,AGGREGATE INDUSTRIES UK LTD.
Regeneration and Local Services,Technical Services,Supplies and Services,304221,Equipment and Materials,05/11/2018,3511136-27293940,690.56,AGGREGATE INDUSTRIES UK LTD.
Regeneration and Local Services,Technical Services,Supplies and Services,304221,Equipment and Materials,05/11/2018,3511136-27293941,"1,157.68",AGGREGATE INDUSTRIES UK LTD.
Regeneration and Local Services,Culture & Sport,Supplies and Services,384199,Miscellaneous Expenses,05/11/2018,3511139-163612,627.00,ALBANY OFFICE EQUIPMENT (WHOLESALE) LTD.
Resources,Legal & Democratic Services,Supplies and Services,338057,Services,05/11/2018,3511140-0000031637,905.00,ALERE FORENSICS.
Regeneration and Local Services,Culture & Sport,Supplies and Services,304337,Equipment and Materials,05/11/2018,3511142-106787,500.00,ALISON BLACK LTD T/A SPORTMAX.
Regeneration and Local Services,Culture & Sport,Supplies and Services,338047,Services,05/11/2018,3511147-LOSTVOICE-EMPIRE-18+,"3,706.98",AMY BROOKS T/A EVENT NORTH.
Regeneration and Local Services,Culture & Sport,Supplies and Services,338047,Services,05/11/2018,3511147-LOSTVOICE-EMPIRE-PG,"1,480.83",AMY BROOKS T/A EVENT NORTH.
Regeneration and Local Services,Direct Services,Third Party Payments 4THIRD,430105,Rendered by Private Contractors,05/11/2018,3511148-2017138,"2,318.40",ANDREW THOMPSON...
Regeneration and Local Services,Direct Services,Third Party Payments 4THIRD,430105,Rendered by Private Contractors,05/11/2018,3511148-2017150,"1,269.12",ANDREW THOMPSON...
Regeneration and Local Services,Culture & Sport,Supplies and Services,384199,Miscellaneous Expenses,05/11/2018,3511154-1486,588.00,ASH COOPER FREELANCE SERVICES.
Regeneration and Local Services,Technical Services,Third Party Payments 4THIRD,430100,Rendered by Private Contractors,05/11/2018,3511161-CSUKOU/INV/62306,"10,297.92",BALFOUR BEATTY LIVING PLACES LTD.*
Regeneration and Local Services,Technical Services,Third Party Payments 4THIRD,430100,Rendered by Private Contractors,05/11/2018,3511161-CSUKOU/INV/62419,"9,453.39",BALFOUR BEATTY LIVING PLACES LTD.*
Regeneration and Local Services,Technical Services,Third Party Payments 4THIRD,430100,Rendered by Private Contractors,05/11/2018,3511161-CSUKOU/INV/62423,"3,994.22",BALFOUR BEATTY LIVING PLACES LTD.*
Regeneration and Local Services,Technical Services,Third Party Payments 4THIRD,430100,Rendered by Private Contractors,05/11/2018,3511161-CSUKOU/INV/62425,"27,747.11",BALFOUR BEATTY LIVING PLACES LTD.*
Regeneration and Local Services,Technical Services,Third Party Payments 4THIRD,430100,Rendered by Private Contractors,05/11/2018,3511161-CSUKOU/INV/62431,"1,785.26",BALFOUR BEATTY LIVING PLACES LTD.*
Regeneration and Local Services,Technical Services,Third Party Payments 4THIRD,430100,Rendered by Private Contractors,05/11/2018,3511161-CSUKOU/INV/62456,"1,686.41",BALFOUR BEATTY LIVING PLACES LTD.*
Children and Young Peoples Services,Head of Education and Skills,Transport,230008,Contract Hire,05/11/2018,3511171-7074-31/10/18,"2,570.00",BOBBY DOVE.
Adult and Health Services,Head of Adults,Transport,230005,Contract Hire,05/11/2018,3511171-7024-31/10/18,"1,238.50",BOBBY DOVE.
Adult and Health Services,Public Health,Third Party Payments 4THIRD,460802,Contract Payments,05/11/2018,3511174-9224-1800012306,875.00,BOOTS THE CHEMISTS LTD.*
Regeneration and Local Services,Culture & Sport,Supplies and Services,384956,Miscellaneous Expenses,05/11/2018,3511178-8275,"15,468.50",BRAMBLE HUB LTD.
Regeneration and Local Services,Transport and Contracted Services,Supplies and Services,384899,Miscellaneous Expenses,05/11/2018,3511179-RED-11-2018-021,"1,833.00",BRANDON & BYSHOTTLES PARISH COUNCIL.
Transformation and Partnerships,Partnerships & Community Engagement Div.,Supplies and Services,384086,Miscellaneous Expenses,05/11/2018,3511187-VOUCHERCONJ07-18,800.00,BUTSFIELD & DISTRICT YOUNG FARMERS CLUB.
Dedicated Schools Grant,DSG High Needs Block,Third Party Payments 4THIRD,410037,Rendered by Other Local Authorities,05/11/2018,3511193-CCSI500,"2,725.00",CATCOTE ACADEMY.
Regeneration and Local Services,Direct Services,Supplies and Services,304221,Equipment and Materials,05/11/2018,3511194-4945,"1,068.54",CATHEDRAL LOCK & SAFE SERVICES LTD.
Regeneration and Local Services,Technical Services,Supplies and Services,304221,Equipment and Materials,05/11/2018,3511196-3010883663,"3,975.65",CEMEX UK MATERIALS LTD.
Regeneration and Local Services,Technical Services,Supplies and Services,304221,Equipment and Materials,05/11/2018,3511196-3010887752,"3,966.89",CEMEX UK MATERIALS LTD.
Regeneration and Local Services,Technical Services,Supplies and Services,304221,Equipment and Materials,05/11/2018,3511196-3010903275,"4,004.77",CEMEX UK MATERIALS LTD.
Regeneration and Local Services,Technical Services,Supplies and Services,304221,Equipment and Materials,05/11/2018,3511196-3010907165,"2,736.67",CEMEX UK MATERIALS LTD.
Children and Young Peoples Services,Head of Childrens Social Care,Third Party Payments 4THIRD,440039,Other third party payments E440,05/11/2018,3511197-S0104,"1,100.28",CENTREPOINT SOHO LTD.
Children and Young Peoples Services,Head of Education and Skills,Transport,230007,Contract Hire,05/11/2018,3511200-02-2060,"1,056.00",CHAPMAN TRAVEL.
Regeneration and Local Services,Economic Development and Housing,Supplies and Services,342053,Computers and Communications,05/11/2018,3511206-M/AB054793,"2,561.22",CIVICA UK LTD.
Regeneration and Local Services,Technical Services,Premises,150015,Apportioned Exps of Operational Blds,05/11/2018,3511208-101298,857.96,CLEE HILL PLANT LTD.
Regeneration and Local Services,Technical Services,Premises,150015,Apportioned Exps of Operational Blds,05/11/2018,3511208-101299,857.96,CLEE HILL PLANT LTD.
Regeneration and Local Services,Technical Services,Premises,150015,Apportioned Exps of Operational Blds,05/11/2018,3511208-101300,857.96,CLEE HILL PLANT LTD.
Regeneration and Local Services,Culture & Sport,Third Party Payments 4THIRD,430100,Rendered by Private Contractors,05/11/2018,3511211-PSINV03564,"24,805.85",COMPETITION LINE UK LTD T/A LIFESTYLE FITNESS.
Regeneration and Local Services,Culture & Sport,Third Party Payments 4THIRD,430100,Rendered by Private Contractors,05/11/2018,3511211-PSINV03567,"52,242.52",COMPETITION LINE UK LTD T/A LIFESTYLE FITNESS.
Regeneration and Local Services,Culture & Sport,Third Party Payments 4THIRD,430100,Rendered by Private Contractors,05/11/2018,3511211-PSINV03569,"23,828.78",COMPETITION LINE UK LTD T/A LIFESTYLE FITNESS.
Regeneration and Local Services,Technical Services,Stock A926,926900,Stock in hand-Inventory system,05/11/2018,3511219-SICD/00000033,"1,919.54",COUNTY DURHAM HOUSING GROUP LTD.*
Resources,Digital and Customer Services,Supplies and Services,304303,Equipment and Materials,05/11/2018,3511220-8713751,577.54,CPC (ELECTRICAL WHOLESALERS).
Children and Young Peoples Services,Head of Education and Skills,Transport,230008,Contract Hire,05/11/2018,3511223-108409,"4,766.40",CROFT BUSINESS SERVICES (UK) LTD T/A CROFT TAXIS.
Adult and Health Services,Head of Adults,Transport,230005,Contract Hire,05/11/2018,3511223-108411,"1,387.33",CROFT BUSINESS SERVICES (UK) LTD T/A CROFT TAXIS.
Children and Young Peoples Services,Head of Education and Skills,Transport,230008,Contract Hire,05/11/2018,3511229-DI201810,"1,134.00",D&I TAXIS.
Children and Young Peoples Services,Head of Education and Skills,Transport,230007,Contract Hire,05/11/2018,3511230-1597,680.00,DA TAXIS.
Children and Young Peoples Services,Head of Education and Skills,Transport,230008,Contract Hire,05/11/2018,3511231-296,520.00,DA TRAVEL.
Children and Young Peoples Services,Head of Education and Skills,Transport,230008,Contract Hire,05/11/2018,3511231-298,"1,134.00",DA TRAVEL.
Children and Young Peoples Services,Head of Education and Skills,Transport,230008,Contract Hire,05/11/2018,3511231-299,"1,116.00",DA TRAVEL.
Children and Young Peoples Services,Head of Education and Skills,Transport,230008,Contract Hire,05/11/2018,3511232-3358,"1,530.00",DAVES MINIBUSES.
Resources,Legal & Democratic Services,Supplies and Services,338057,Services,05/11/2018,3511242-OCTOBER2018,"1,350.00",DR DCA SENADHIRA.
Children and Young Peoples Services,Head of Childrens Social Care,Supplies and Services,338044,Services,05/11/2018,3511244-SH/PSYRISK,"1,310.60",DR STEPHANIE HILL.
Regeneration and Local Services,Technical Services,Supplies and Services,304221,Equipment and Materials,05/11/2018,3511248-1380,540.00,DURHAM TURF.
Adult and Health Services,Head of Adults,Supplies and Services,338365,Services,05/11/2018,3511250-41298,847.18,EASIBATHE LTD.
Regeneration and Local Services,Technical Services,Supplies and Services,338027,Services,05/11/2018,3511262-128530/01,595.00,FAIRHURST.
Regeneration and Local Services,Technical Services,Supplies and Services,338027,Services,05/11/2018,3511262-128532/01,595.00,FAIRHURST.
Regeneration and Local Services,Direct Services,Supplies and Services,304221,Equipment and Materials,05/11/2018,3511267-1810-099236,612.39,FLAME HEATING SPARES LTD.
Children and Young Peoples Services,Head of Education and Skills,Transport,230007,Contract Hire,05/11/2018,3511269-0438,595.00,FMR SILVA PITA.
Children and Young Peoples Services,Head of Education and Skills,Transport,230007,Contract Hire,05/11/2018,3511269-0439,612.00,FMR SILVA PITA.
Children and Young Peoples Services,Head of Education and Skills,Transport,230008,Contract Hire,05/11/2018,3511269-0437,"1,332.00",FMR SILVA PITA.
Adult and Health Services,Head of Adults,Third Party Payments 4THIRD,474101,Purchase of Care,05/11/2018,3511273-CAS-11-2018-012,"24,696.60",FSHC ENGLAND LTD (FOUR SEASONS HEALTHCARE).
Regeneration and Local Services,Spatial Policy Planning Assets & Environment,Supplies and Services,304337,Equipment and Materials,05/11/2018,3511274-12/10/18,526.40,GABRIEL LANGLEY (ARTIST).
Adult and Health Services,Head of Adults,Transport,230005,Contract Hire,05/11/2018,3511276-001-WV130,840.00,GAIL MADDISON T/A CENTRAL TAXIS.
Children and Young Peoples Services,Head of Education and Skills,Transport,230003,Contract Hire,05/11/2018,3511277-4736,"2,316.96",GEM TRAVEL.
Children and Young Peoples Services,Head of Education and Skills,Transport,230003,Contract Hire,05/11/2018,3511277-4737,"2,316.96",GEM TRAVEL.
Children and Young Peoples Services,Head of Education and Skills,Transport,230003,Contract Hire,05/11/2018,3511277-4738,"1,435.14",GEM TRAVEL.
Regeneration and Local Services,Culture & Sport,Premises,145023,Cleaning and Domestic Supplies,05/11/2018,3511284-06/764412,"1,024.17",GREENHAM TRADING LTD.
Regeneration and Local Services,Direct Services,Premises,145023,Cleaning and Domestic Supplies,05/11/2018,3511284-06/764415,704.00,GREENHAM TRADING LTD.
Regeneration and Local Services,Technical Services,Stock A926,926900,Stock in hand-Inventory system,05/11/2018,3511284-06/764473,"1,830.73",GREENHAM TRADING LTD.
Resources,Digital and Customer Services,Stock A926,926900,Stock in hand-Inventory system,05/11/2018,3511287-INV0172730,719.00,GV MULTIMEDIA LTD.
Regeneration and Local Services,Technical Services,Third Party Payments 4THIRD,430100,Rendered by Private Contractors,05/11/2018,3511289-1810\018,"28,409.76",HALL CONSTRUCTION SERVICES LTD.
Children and Young Peoples Services,Head of Education and Skills,Transport,230008,Contract Hire,05/11/2018,3511296-23-W075,810.00,HENRY FOREMAN T/A HENRY`S TAXIS.
Children and Young Peoples Services,Head of Childrens Social Care,Third Party Payments 4THIRD,425021,Rendered by Voluntary Organisations,05/11/2018,3511300-4745,"3,520.00",HOWARD HOUSE CARE LTD.
Children and Young Peoples Services,Head of Childrens Social Care,Third Party Payments 4THIRD,425021,Rendered by Voluntary Organisations,05/11/2018,3511300-4755,"3,520.00",HOWARD HOUSE CARE LTD.
Regeneration and Local Services,Technical Services,Stock A926,926900,Stock in hand-Inventory system,05/11/2018,3511305-126360,"1,704.80",HYDRAM ENGINEERING LTD.
Resources,Digital and Customer Services,Supplies and Services,304303,Equipment and Materials,05/11/2018,3511308-SIN436191,"1,696.00",INFORMATION & DATA NETWORK SUPPLIES LTD (IDN).
Resources,Digital and Customer Services,Supplies and Services,304303,Equipment and Materials,05/11/2018,3511310-4094097,861.00,INSIGHT DIRECT (UK) LTD.
Regeneration and Local Services,Technical Services,Supplies and Services,304221,Equipment and Materials,05/11/2018,3511315-0000007572,522.72,JAFCO TOOLS LTD.
Regeneration and Local Services,Direct Services,Third Party Payments 4THIRD,430100,Rendered by Private Contractors,05/11/2018,3511319-39189,612.00,JBL SERVICES LTD.
Children and Young Peoples Services,Head of Childrens Social Care,Supplies and Services,338044,Services,05/11/2018,3511322-HLPL0001,"1,883.20",JOHN DOONAN. (INDEPENDENT SOCIAL WORKER).
Regeneration and Local Services,Direct Services,Supplies and Services,304221,Equipment and Materials,05/11/2018,3511330-PHBII41358,643.39,JT DOVE LTD.
Regeneration and Local Services,Technical Services,Stock A926,926900,Stock in hand-Inventory system,05/11/2018,3511330-STI490102,810.56,JT DOVE LTD.
Regeneration and Local Services,Technical Services,Stock A926,926900,Stock in hand-Inventory system,05/11/2018,3511330-STI490256,877.60,JT DOVE LTD.
Regeneration and Local Services,Culture & Sport,Supplies and Services,304252,Equipment and Materials,05/11/2018,3511331-4100632944,762.00,JULIE FENWICK T/A DARN GOOD SEWING.
Regeneration and Local Services,Technical Services,Third Party Payments 4THIRD,430127,Rendered by Private Contractors,05/11/2018,3511350-5664,552.00,MAKEPEACE MOTORS.
Regeneration and Local Services,Technical Services,Third Party Payments 4THIRD,430127,Rendered by Private Contractors,05/11/2018,3511350-5665,552.00,MAKEPEACE MOTORS.
Regeneration and Local Services,Technical Services,Third Party Payments 4THIRD,430127,Rendered by Private Contractors,05/11/2018,3511350-5666,"1,417.00",MAKEPEACE MOTORS.
Regeneration and Local Services,Technical Services,Third Party Payments 4THIRD,430127,Rendered by Private Contractors,05/11/2018,3511350-5667,"1,417.00",MAKEPEACE MOTORS.
Dedicated Schools Grant,DSG High Needs Block,Transport,230010,Contract Hire,05/11/2018,3511352-INV10/1805,"1,088.32",MARK & JOHN CHISHOLM T/A (CHEVRON).
Children and Young Peoples Services,Head of Education and Skills,Transport,230008,Contract Hire,05/11/2018,3511353-0005,"1,250.00",MARK WATSON T/A MARK`S TAXIS.
Regeneration and Local Services,Direct Services,Third Party Payments 4THIRD,430100,Rendered by Private Contractors,05/11/2018,3511360-43287,833.00,MCVICKERS LTD.
Children and Young Peoples Services,Head of Education and Skills,Transport,230006,Contract Hire,05/11/2018,3511366-F007OCT,819.00,MR BRIAN HANN T/A BRY`S TAXIS (BOWBURN).
Children and Young Peoples Services,Head of Education and Skills,Transport,230008,Contract Hire,05/11/2018,3511367-0304885,"1,190.00",MR GN ROBBINS T/A GNR MINIBUS HIRE.
Children and Young Peoples Services,Head of Education and Skills,Transport,230007,Contract Hire,05/11/2018,3511369-77/5231,727.04,MR LJ TARRY T/A TARRY`S TAXI`S.
Children and Young Peoples Services,Head of Education and Skills,Transport,230012,Contract Hire,05/11/2018,3511369-76,"1,368.00",MR LJ TARRY T/A TARRY`S TAXI`S.
Children and Young Peoples Services,Head of Education and Skills,Transport,230008,Contract Hire,05/11/2018,3511370-0028SEPT,"2,040.00",MR PM MULLEN T/A CATHEDRAL TAXIS.
Children and Young Peoples Services,Head of Education and Skills,Transport,230008,Contract Hire,05/11/2018,3511371-11A-N031,"1,292.00",MR RAYMOND RENWICK T/A RAY`S TAXIS & MINIBUSES.
Children and Young Peoples Services,Head of Education and Skills,Transport,230008,Contract Hire,05/11/2018,3511371-11B-N043,"1,440.00",MR RAYMOND RENWICK T/A RAY`S TAXIS & MINIBUSES.
Children and Young Peoples Services,Head of Education and Skills,Transport,230007,Contract Hire,05/11/2018,3511372-SJS02,900.00,MR THOMAS G GRIFFITHS T/A TNL TAXIS.
Regeneration and Local Services,Direct Services,Third Party Payments 4THIRD,430100,Rendered by Private Contractors,05/11/2018,3511373-DCC058,"1,500.00",MR WILLIAM MAGUIRE T/A VALLUM LIFTS.
Regeneration and Local Services,Direct Services,Third Party Payments 4THIRD,430100,Rendered by Private Contractors,05/11/2018,3511373-DCC059,"1,500.00",MR WILLIAM MAGUIRE T/A VALLUM LIFTS.
Children and Young Peoples Services,Head of Education and Skills,Transport,230007,Contract Hire,05/11/2018,3511377-1-3294,720.00,NC TAXI`S.
Children and Young Peoples Services,Head of Education and Skills,Transport,230007,Contract Hire,05/11/2018,3511377-2-3313OCT,510.00,NC TAXI`S.
Regeneration and Local Services,Technical Services,Construction work A908,908105,Construction work,05/11/2018,3511379-1800009290933,"12,104.46",NEWCASTLE UPON TYNE CITY COUNCIL.
Regeneration and Local Services,Technical Services,Construction work A908,908105,Construction work,05/11/2018,3511379-1800009290957,"12,104.46",NEWCASTLE UPON TYNE CITY COUNCIL.
Regeneration and Local Services,Spatial Policy Planning Assets & Environment,Supplies and Services,336005,Advertising E336,05/11/2018,3511380-26757807,637.73,NEWSQUEST (YORKSHIRE & NORTH EAST) LTD.
Regeneration and Local Services,Technical Services,Supplies and Services,304221,Equipment and Materials,05/11/2018,3511386-178033,528.00,NORTH EAST CONCRETE LTD.
Regeneration and Local Services,Technical Services,Third Party Payments 4THIRD,430100,Rendered by Private Contractors,05/11/2018,3511388-DI20298761,982.76,NORTHERN POWERGRID (NORTHEAST) LTD.
Regeneration and Local Services,Direct Services,Third Party Payments 4THIRD,430100,Rendered by Private Contractors,05/11/2018,3511392-629048,"1,298.21",OPENREACH LLU.
Children and Young Peoples Services,Head of Education and Skills,Transport,230008,Contract Hire,05/11/2018,3511396-7541,"1,609.20",OVERLANDER LTD.
Regeneration and Local Services,Technical Services,Stock A926,926900,Stock in hand-Inventory system,05/11/2018,3511398-XL229751,"1,575.00",PARK ELECTRICAL DISTRIBUTORS LTD.
Regeneration and Local Services,Technical Services,Stock A926,926900,Stock in hand-Inventory system,05/11/2018,3511398-XL229757,801.90,PARK ELECTRICAL DISTRIBUTORS LTD.
Regeneration and Local Services,Technical Services,Stock A926,926900,Stock in hand-Inventory system,05/11/2018,3511398-XL229794,835.00,PARK ELECTRICAL DISTRIBUTORS LTD.
Regeneration and Local Services,Technical Services,Stock A926,926900,Stock in hand-Inventory system,05/11/2018,3511398-XL229862,"2,505.00",PARK ELECTRICAL DISTRIBUTORS LTD.
Regeneration and Local Services,Technical Services,Stock A926,926900,Stock in hand-Inventory system,05/11/2018,3511398-XL229866,562.50,PARK ELECTRICAL DISTRIBUTORS LTD.
Children and Young Peoples Services,Head of Education and Skills,Transport,230007,Contract Hire,05/11/2018,3511401-2-5228,"1,125.00",PAUL ROSE T/A PAUL`S TAXIS.
Children and Young Peoples Services,Head of Education and Skills,Transport,230008,Contract Hire,05/11/2018,3511402-DCC210,"1,360.00",PAUL`S TAXIS..
Children and Young Peoples Services,Head of Education and Skills,Transport,230008,Contract Hire,05/11/2018,3511402-DCC211,999.90,PAUL`S TAXIS..
Children and Young Peoples Services,Head of Education and Skills,Transport,230008,Contract Hire,05/11/2018,3511402-DCC212,"2,441.88",PAUL`S TAXIS..
Children and Young Peoples Services,Head of Education and Skills,Transport,230008,Contract Hire,05/11/2018,3511402-DCC213,"1,260.00",PAUL`S TAXIS..
Children and Young Peoples Services,Head of Education and Skills,Transport,230007,Contract Hire,05/11/2018,3511411-0688,"1,962.00",PETER`S PRIVATE HIRE/PETER BEST.
Children and Young Peoples Services,Head of Education and Skills,Transport,230006,Contract Hire,05/11/2018,3511411-0689,"2,280.00",PETER`S PRIVATE HIRE/PETER BEST.
Children and Young Peoples Services,Head of Education and Skills,Transport,230008,Contract Hire,05/11/2018,3511411-0687,"2,196.00",PETER`S PRIVATE HIRE/PETER BEST.
Children and Young Peoples Services,Head of Education and Skills,Transport,230008,Contract Hire,05/11/2018,3511411-0690,"1,296.00",PETER`S PRIVATE HIRE/PETER BEST.
Children and Young Peoples Services,Head of Education and Skills,Transport,230008,Contract Hire,05/11/2018,3511411-0691,648.00,PETER`S PRIVATE HIRE/PETER BEST.
Children and Young Peoples Services,Head of Education and Skills,Transport,230008,Contract Hire,05/11/2018,3511411-0692,"1,376.00",PETER`S PRIVATE HIRE/PETER BEST.
Children and Young Peoples Services,Head of Education and Skills,Transport,230008,Contract Hire,05/11/2018,3511411-0693,"1,152.00",PETER`S PRIVATE HIRE/PETER BEST.
Children and Young Peoples Services,Head of Education and Skills,Transport,230008,Contract Hire,05/11/2018,3511411-0694,"1,422.00",PETER`S PRIVATE HIRE/PETER BEST.
Adult and Health Services,Head of Adults,Transport,230005,Contract Hire,05/11/2018,3511411-0697,"1,066.00",PETER`S PRIVATE HIRE/PETER BEST.
Adult and Health Services,Head of Adults,Transport,230005,Contract Hire,05/11/2018,3511411-0698,"1,708.00",PETER`S PRIVATE HIRE/PETER BEST.
Children and Young Peoples Services,Head of Education and Skills,Transport,230006,Contract Hire,05/11/2018,3511412-F721-OCT,"1,225.00",PETER`S TAXIS.
Dedicated Schools Grant,DSG High Needs Block,Transport,230010,Contract Hire,05/11/2018,3511406-594,"1,190.00",PETERLEE EXECUTIVE CARS.
Regeneration and Local Services,Culture & Sport,Supplies and Services,338047,Services,05/11/2018,3511415-INV07813,833.33,PICTUREHOUSE CINEMAS LTD.
Regeneration and Local Services,Direct Services,Third Party Payments 4THIRD,430100,Rendered by Private Contractors,05/11/2018,3511422-155709,"1,120.00",PREMIER TRAFFIC MANAGEMENT LTD.
Regeneration and Local Services,Technical Services,Third Party Payments 4THIRD,430100,Rendered by Private Contractors,05/11/2018,3511422-155710,"32,717.25",PREMIER TRAFFIC MANAGEMENT LTD.
Regeneration and Local Services,Direct Services,Third Party Payments 4THIRD,430100,Rendered by Private Contractors,05/11/2018,3511426-112869,609.00,PROTECTOR SECURITY GROUP LTD.
Children and Young Peoples Services,Head of Education and Skills,Transport,230007,Contract Hire,05/11/2018,3511428-013A-4005,"3,636.00",RAYNERS COACHES.
Children and Young Peoples Services,Head of Education and Skills,Transport,230007,Contract Hire,05/11/2018,3511428-66C,"2,088.00",RAYNERS COACHES.
Children and Young Peoples Services,Head of Education and Skills,Transport,230008,Contract Hire,05/11/2018,3511428-013A,"2,160.00",RAYNERS COACHES.
Adult and Health Services,Head of Adults,Supplies and Services,308011,Furniture,05/11/2018,3511432-CLG2083CLG2086,"2,759.91",RENDLES HOUSE FURNISHER.
Regeneration and Local Services,Direct Services,Premises,145009,Cleaning and Domestic Supplies,05/11/2018,3511445-PI222852,704.07,SAFETY KLEEN UK LTD.
Children and Young Peoples Services,Head of Education and Skills,Supplies and Services,384199,Miscellaneous Expenses,05/11/2018,3511449-CAS-11-2018-024,600.00,SHONA CHAMBERS (MAKATON TUTOR).
Regeneration and Local Services,Direct Services,Supplies and Services,304221,Equipment and Materials,05/11/2018,3511451-00610228,547.96,SIG TRADING LTD T/A CARPET & FLOORING LTD.*
Regeneration and Local Services,Culture & Sport,Supplies and Services,332029,Printing Stationery and Gen Off Exps,05/11/2018,3511454-48811,"1,151.00",SPECTRUM PLASTICS.
Regeneration and Local Services,Culture & Sport,Supplies and Services,384199,Miscellaneous Expenses,05/11/2018,3511459-1005520,752.25,STAGE ELECTRICS.
Adult and Health Services,Head of Adults,Transport,230005,Contract Hire,05/11/2018,3511465-54,684.00,STEVEN HENDERSON T/A HENDYS TAXIS.
Children and Young Peoples Services,Head of Education and Skills,Transport,230008,Contract Hire,05/11/2018,3511466-1810000,"1,620.00",STEVEN PRATT T/A PTL TAXIS DURHAM.
Children and Young Peoples Services,Head of Education and Skills,Transport,230003,Contract Hire,05/11/2018,3511472-STNE0911,"1,343.00",STYLE TRAVEL NORTH EAST.
Children and Young Peoples Services,Head of Education and Skills,Transport,230003,Contract Hire,05/11/2018,3511472-STNE0912,"1,173.00",STYLE TRAVEL NORTH EAST.
Adult and Health Services,Head of Adults,Supplies and Services,332047,Printing Stationery and Gen Off Exps,05/11/2018,3511474-2750753,557.00,SUPPLIES TEAM LTD NOW KNOWN AS BANNER GROUP LTD.
Regeneration and Local Services,Technical Services,Construction work A908,908105,Construction work,05/11/2018,3511475-8839,695.00,SURVEY & MARKETING SERVICES LTD T/A SMS MARKET RESEARCH.
Children and Young Peoples Services,Head of Education and Skills,Transport,230008,Contract Hire,05/11/2018,3511480-13,828.00,SWIFT TAXIS.
Resources,Digital and Customer Services,Supplies and Services,304040,Equipment and Materials,05/11/2018,3511481-129067,698.58,SWITCHSHOP LTD.
Resources - C A C,Centrally Administered costs,Supplies and Services,338017,Services,05/11/2018,3511484-J66289,"1,080.00",TALL SECURITY PRINT LTD.
Children and Young Peoples Services,Head of Education and Skills,Transport,230007,Contract Hire,05/11/2018,3511486-10/2018/005,576.00,TARNS TAXIS LTD.
Children and Young Peoples Services,Head of Education and Skills,Transport,230008,Contract Hire,05/11/2018,3511486-10/2018/007,922.50,TARNS TAXIS LTD.
Children and Young Peoples Services,Head of Education and Skills,Transport,230008,Contract Hire,05/11/2018,3511486-10/2018/008,"1,224.00",TARNS TAXIS LTD.
Resources,Legal & Democratic Services,Supplies and Services,372009,Subscriptions E372,05/11/2018,3511493-24045,665.00,THE ASSOCIATION OF ELECTORAL ADMINISTRATORS.
Children and Young Peoples Services,Childrens Services Operational Support,Supplies and Services,338094,Services,05/11/2018,3511494-5193,"1,037.00",THE DURHAM CENTRE LTD.
Regeneration and Local Services,Direct Services,Premises,108099,Service Repairs and Maintenance,05/11/2018,3511497-0189,505.00,THE SKILL MILL LTD.
Regeneration and Local Services,Direct Services,Third Party Payments 4THIRD,430100,Rendered by Private Contractors,05/11/2018,3511497-0187,985.00,THE SKILL MILL LTD.
Regeneration and Local Services,Direct Services,Supplies and Services,304221,Equipment and Materials,05/11/2018,3511504-31721,"1,100.00",TOTAL PUMP SOLUTIONS LTD.
Children and Young Peoples Services,Head of Education and Skills,Transport,230007,Contract Hire,05/11/2018,3511509-031018,540.00,TRANSPORT.ADVENTURE.XI.
Children and Young Peoples Services,Head of Education and Skills,Transport,230008,Contract Hire,05/11/2018,3511513-13-31/10/18,"1,263.60",TW TINKLER T/A TT TAXIS.
Regeneration and Local Services,Direct Services,Supplies and Services,304221,Equipment and Materials,05/11/2018,3511514-04012561,536.62,UK ELECTRIC LTD.
Regeneration and Local Services,Technical Services,Third Party Payments 4THIRD,430100,Rendered by Private Contractors,05/11/2018,3511519-513,"1,412.55",VINOVIUM ASSOCIATES LTD.
Regeneration and Local Services,Direct Services,Third Party Payments 4THIRD,430100,Rendered by Private Contractors,05/11/2018,3511523-45902,"3,920.00",W MARLEY AGRICULTURAL CONTRACTORS LTD.
Regeneration and Local Services,Direct Services,Supplies and Services,304221,Equipment and Materials,05/11/2018,3511530-ZZ60177,999.00,WILKIES.
Transformation and Partnerships,Partnerships & Community Engagement Div.,Supplies and Services,384086,Miscellaneous Expenses,05/11/2018,3511534-VOUCHERSAVA08-18,500.00,WOLSINGHAM RECREATION ASSOCIATION.
Regeneration and Local Services,Spatial Policy Planning Assets & Environment,Supplies and Services,338066,Services,05/11/2018,3511539-AVLPSEDUCAITON1,"3,000.00",YVONNE CONCHIE T/A CONCHIE & CO.
Children and Young Peoples Services,Head of Childrens Social Care,Third Party Payments 4THIRD,425021,Rendered by Voluntary Organisations,06/11/2018,3511548-1811/01,"12,857.14",ACORN CARE (UK) LTD T/A ACORN RESIDENTIAL SERVICES.
Regeneration and Local Services,Technical Services,Supplies and Services,304221,Equipment and Materials,06/11/2018,3511553-27300270,937.28,AGGREGATE INDUSTRIES UK LTD.
Regeneration and Local Services,Technical Services,Supplies and Services,304221,Equipment and Materials,06/11/2018,3511553-27300271,877.06,AGGREGATE INDUSTRIES UK LTD.
Adult and Health Services,Public Health,Supplies and Services,332001,Printing Stationery and Gen Off Exps,06/11/2018,3511554-163592,784.00,ALBANY OFFICE EQUIPMENT (WHOLESALE) LTD.
Adult and Health Services,Public Health,Premises,145009,Cleaning and Domestic Supplies,06/11/2018,3511575-0000030574,"1,257.21",BETTAKLEEN LTD.
Transformation and Partnerships,Partnerships & Community Engagement Div.,Cap Exp on Grants & Other Financial Assistance (REFCUS),918004,Contributions to other bodies 918004,06/11/2018,3511581-VOUCHER18NB-EDRC012,"1,040.00",BOWBURN & PARKHILL COMMUNITY PARTNERSHIP.
Regeneration and Local Services,Direct Services,Third Party Payments 4THIRD,430100,Rendered by Private Contractors,06/11/2018,3511584-82587009,841.08,BRISTOL STREET MOTORS.
Regeneration and Local Services,Economic Development and Housing,Third Party Payments 4THIRD,460305,Contract Payments,06/11/2018,3511589-12966,"39,087.50",BUSINESS & ENTERPRISE COMMERCIAL LTD T/A BE GROUP.
Regeneration and Local Services,Direct Services,Transport,210057,Repair and Maintenance of Vehicles,06/11/2018,3511593-229273,530.00,CARRS BILLINGTON AGRICULTURE.
Regeneration and Local Services,Direct Services,Transport,210057,Repair and Maintenance of Vehicles,06/11/2018,3511594-229418,"1,628.26",CARRS BILLINGTON AGRICULTURE.
Regeneration and Local Services,Direct Services,Transport,210057,Repair and Maintenance of Vehicles,06/11/2018,3511594-229422,817.98,CARRS BILLINGTON AGRICULTURE.
Regeneration and Local Services,Direct Services,Transport,210057,Repair and Maintenance of Vehicles,06/11/2018,3511594-229425,516.66,CARRS BILLINGTON AGRICULTURE.
Transformation and Partnerships,Partnerships & Community Engagement Div.,Supplies and Services,384086,Miscellaneous Expenses,06/11/2018,3511599-VOUCHER18NB-4TOG010,"2,000.00",CHANCE DRAMA.
Regeneration and Local Services,Direct Services,Third Party Payments 4THIRD,430100,Rendered by Private Contractors,06/11/2018,3511619-336895,654.22,DENNIS EAGLE LTD.
Children and Young Peoples Services,Head of Education and Skills,Supplies and Services,338099,Services,06/11/2018,3511624-379A,"1,446.00",DURHAM CATHEDRAL LTD.
Transformation and Partnerships,Partnerships & Community Engagement Div.,Supplies and Services,384086,Miscellaneous Expenses,06/11/2018,3511626-VOUCHER18NB-EDRC013,"4,371.00",DURHAM POLICE & CRIME COMMISSIONER.
Children and Young Peoples Services,Head of Childrens Social Care,Third Party Payments 4THIRD,425021,Rendered by Voluntary Organisations,06/11/2018,3511628-CD015,"21,035.71",DUTY OF CARE LTD.
Children and Young Peoples Services,Head of Childrens Social Care,Third Party Payments 4THIRD,425021,Rendered by Voluntary Organisations,06/11/2018,3511628-MP018,"14,392.86",DUTY OF CARE LTD.
Transformation and Partnerships,Partnerships & Community Engagement Div.,Cap Exp on Grants & Other Financial Assistance (REFCUS),918004,Contributions to other bodies 918004,06/11/2018,3511639-VOUCHER18NB-4TOG009,"7,900.00",ENTER CIC.
Transformation and Partnerships,Partnerships & Community Engagement Div.,Supplies and Services,384086,Miscellaneous Expenses,06/11/2018,3511654-VOUCHER18NB-BASH014,"2,160.00",FRIENDS OF COCKTON HILL JUNIOR SCHOOL.
Transformation and Partnerships,Partnerships & Community Engagement Div.,Supplies and Services,384086,Miscellaneous Expenses,06/11/2018,3511664-VOUCHER18NB-TEES009,"1,900.00",HAMSTERLEY VILLAGE HALL ASSOCIATION.
Regeneration and Local Services,Direct Services,Third Party Payments 4THIRD,430100,Rendered by Private Contractors,06/11/2018,3511671-75003,944.54,HOGARTH COACHWORKS LTD.
Children and Young Peoples Services,Head of Childrens Social Care,Third Party Payments 4THIRD,440038,Other third party payments E440,06/11/2018,3511828-276,817.74,HOME GROUP LTD FORMERLY STONHAM HOUSING ASSOCIATION LTD.
Children and Young Peoples Services,Head of Childrens Social Care,Third Party Payments 4THIRD,440038,Other third party payments E440,06/11/2018,3511673-289,880.64,HOME GROUP LTD.
Regeneration and Local Services,Technical Services,Third Party Payments 4THIRD,430128,Rendered by Private Contractors,06/11/2018,3511685-0723/2018,504.00,J & JG GILL & SONS LTD.
Regeneration and Local Services,Direct Services,Transport,210057,Repair and Maintenance of Vehicles,06/11/2018,3511687-INV12142,511.50,JAMES A CUTHBERTSON LTD.
Regeneration and Local Services,Technical Services,Supplies and Services,304221,Equipment and Materials,06/11/2018,3511724-5655,"4,800.00",MAKEPEACE MOTORS.
Regeneration and Local Services,Technical Services,Third Party Payments 4THIRD,430100,Rendered by Private Contractors,06/11/2018,3511724-5654,"4,200.00",MAKEPEACE MOTORS.
Regeneration and Local Services,Technical Services,Third Party Payments 4THIRD,430100,Rendered by Private Contractors,06/11/2018,3511724-5656,"3,125.00",MAKEPEACE MOTORS.
Regeneration and Local Services,Technical Services,Third Party Payments 4THIRD,430100,Rendered by Private Contractors,06/11/2018,3511724-5657,"2,302.00",MAKEPEACE MOTORS.
Regeneration and Local Services,Economic Development and Housing,Supplies and Services,384199,Miscellaneous Expenses,06/11/2018,3511733-12752,"2,075.00",MINHOCO 35 LTD T/A REDWORTH HALL HOTEL.
Transformation and Partnerships,Partnerships & Community Engagement Div.,Cap Exp on Grants & Other Financial Assistance (REFCUS),918004,Contributions to other bodies 918004,06/11/2018,3511744-VOUCHER18NB-EDUR029,"2,800.00",MURTON PARISH COUNCIL.
Regeneration and Local Services,Direct Services,Third Party Payments 4THIRD,430100,Rendered by Private Contractors,06/11/2018,3511746-10034,507.50,N1 JETTING SYSTEMS LTD.
Children and Young Peoples Services,"Head of Early Help, Inclusion and Vulnerable Children",Third Party Payments 4THIRD,410037,Rendered by Other Local Authorities,06/11/2018,3511756-22275,"5,859.00",NOMS AGENCY.
Regeneration and Local Services,Culture & Sport,Supplies and Services,338047,Services,06/11/2018,3511761-60754,"1,256.00",OFF THE KERB PRODUCTIONS LTD.
Regeneration and Local Services,Direct Services,Transport,215005,Running Costs of Vehicles,06/11/2018,3511764-365153,"16,052.37",OIL NRG LTD.
Regeneration and Local Services,Direct Services,Transport,215005,Running Costs of Vehicles,06/11/2018,3511764-365159,"5,471.31",OIL NRG LTD.
Regeneration and Local Services,Direct Services,Transport,215022,Running Costs of Vehicles,06/11/2018,3511764-365157,"1,282.20",OIL NRG LTD.
Children and Young Peoples Services,Head of Education and Skills,Supplies and Services,384199,Miscellaneous Expenses,06/11/2018,3511781-18/19-02,500.00,PGI SMITH SOLUTIONS LTD.
Regeneration and Local Services,Technical Services,Third Party Payments 4THIRD,430100,Rendered by Private Contractors,06/11/2018,3511784-5281,"16,634.07",PINKNEY BUILDING CONTRACTORS LTD.
Regeneration and Local Services,Direct Services,Transport,210057,Repair and Maintenance of Vehicles,06/11/2018,3511800-709915,593.12,RICKERBY LTD.
Children and Young Peoples Services,Head of Childrens Social Care,Third Party Payments 4THIRD,425021,Rendered by Voluntary Organisations,06/11/2018,3511801-30869,"19,600.00",RIGHT TRAK LTD.
Children and Young Peoples Services,Head of Childrens Social Care,Third Party Payments 4THIRD,425021,Rendered by Voluntary Organisations,06/11/2018,3511795-4636,"2,946.50",ROC FAMILY SUPPORT LTD.
Regeneration and Local Services,Technical Services,Supplies and Services,304221,Equipment and Materials,06/11/2018,3511833-9038799393,605.10,TARMAC TRADING LTD.
Regeneration and Local Services,Technical Services,Supplies and Services,304221,Equipment and Materials,06/11/2018,3511833-9038809713,526.50,TARMAC TRADING LTD.
Regeneration and Local Services,Technical Services,Supplies and Services,304221,Equipment and Materials,06/11/2018,3511833-9038892249,517.63,TARMAC TRADING LTD.
Transformation and Partnerships,Partnerships & Community Engagement Div.,Supplies and Services,384086,Miscellaneous Expenses,06/11/2018,3511846-VOUCHER18NB-DCTY011,"3,000.00",THE WIDER WORLD PROJECT.
Regeneration and Local Services,Direct Services,Third Party Payments 4THIRD,430100,Rendered by Private Contractors,06/11/2018,3511865-77982,598.80,WARREN ACCESS LTD.
Children and Young Peoples Services,Head of Childrens Social Care,Third Party Payments 4THIRD,425021,Rendered by Voluntary Organisations,06/11/2018,3511867-INV10295,"4,769.37",WE CARE RECRUITMENT SOLUTIONS LTD.
Children and Young Peoples Services,Head of Childrens Social Care,Third Party Payments 4THIRD,425021,Rendered by Voluntary Organisations,06/11/2018,3511867-INV10297,"4,995.78",WE CARE RECRUITMENT SOLUTIONS LTD.
Children and Young Peoples Services,Head of Childrens Social Care,Third Party Payments 4THIRD,425021,Rendered by Voluntary Organisations,06/11/2018,3511867-INV10298,"3,927.04",WE CARE RECRUITMENT SOLUTIONS LTD.
Children and Young Peoples Services,Head of Childrens Social Care,Third Party Payments 4THIRD,425021,Rendered by Voluntary Organisations,06/11/2018,3511867-INV10299,"5,749.41",WE CARE RECRUITMENT SOLUTIONS LTD.
Children and Young Peoples Services,Head of Childrens Social Care,Third Party Payments 4THIRD,425021,Rendered by Voluntary Organisations,06/11/2018,3511867-INV10302,"5,176.97",WE CARE RECRUITMENT SOLUTIONS LTD.
Children and Young Peoples Services,Head of Childrens Social Care,Third Party Payments 4THIRD,425021,Rendered by Voluntary Organisations,06/11/2018,3511867-INV10321,"7,291.08",WE CARE RECRUITMENT SOLUTIONS LTD.
Children and Young Peoples Services,Head of Childrens Social Care,Third Party Payments 4THIRD,425021,Rendered by Voluntary Organisations,06/11/2018,3511867-INV10323,"5,434.85",WE CARE RECRUITMENT SOLUTIONS LTD.
Children and Young Peoples Services,Head of Childrens Social Care,Third Party Payments 4THIRD,425021,Rendered by Voluntary Organisations,06/11/2018,3511867-INV10324,"5,262.69",WE CARE RECRUITMENT SOLUTIONS LTD.
Children and Young Peoples Services,Head of Childrens Social Care,Third Party Payments 4THIRD,425021,Rendered by Voluntary Organisations,06/11/2018,3511867-INV10325,"5,244.03",WE CARE RECRUITMENT SOLUTIONS LTD.
Children and Young Peoples Services,Head of Childrens Social Care,Third Party Payments 4THIRD,425021,Rendered by Voluntary Organisations,06/11/2018,3511867-INV10327,"2,449.95",WE CARE RECRUITMENT SOLUTIONS LTD.
Children and Young Peoples Services,Head of Childrens Social Care,Third Party Payments 4THIRD,425021,Rendered by Voluntary Organisations,06/11/2018,3511867-INV10328,"4,951.15",WE CARE RECRUITMENT SOLUTIONS LTD.
Children and Young Peoples Services,Head of Childrens Social Care,Third Party Payments 4THIRD,425021,Rendered by Voluntary Organisations,06/11/2018,3511867-INV10329,"1,388.76",WE CARE RECRUITMENT SOLUTIONS LTD.
Regeneration and Local Services,Technical Services,Stock A926,926900,Stock in hand-Inventory system,06/11/2018,3511875-55587990,"1,012.44",WOLSELEY UK LTD.
Children and Young Peoples Services,Head of Education and Skills,Transport,230007,Contract Hire,07/11/2018,3512629-101802,598.00,24/7 TAXI SERVICES LTD.
Children and Young Peoples Services,Head of Education and Skills,Transport,230009,Contract Hire,07/11/2018,3512629-101803,595.00,24/7 TAXI SERVICES LTD.
Dedicated Schools Grant,DSG High Needs Block,Transport,230009,Contract Hire,07/11/2018,3512629-101812,"1,635.00",24/7 TAXI SERVICES LTD.
Children and Young Peoples Services,Head of Education and Skills,Transport,230006,Contract Hire,07/11/2018,3512629-101810,"1,144.00",24/7 TAXI SERVICES LTD.
Children and Young Peoples Services,Head of Education and Skills,Transport,230008,Contract Hire,07/11/2018,3512629-101804,"1,602.00",24/7 TAXI SERVICES LTD.
Dedicated Schools Grant,DSG High Needs Block,Transport,230008,Contract Hire,07/11/2018,3512629-101805,"1,440.00",24/7 TAXI SERVICES LTD.
Children and Young Peoples Services,Head of Education and Skills,Transport,230008,Contract Hire,07/11/2018,3512629-101806,"2,250.00",24/7 TAXI SERVICES LTD.
Children and Young Peoples Services,Head of Education and Skills,Transport,230008,Contract Hire,07/11/2018,3512629-101807,680.00,24/7 TAXI SERVICES LTD.
Children and Young Peoples Services,Head of Education and Skills,Transport,230008,Contract Hire,07/11/2018,3512629-101808,"1,020.00",24/7 TAXI SERVICES LTD.
Children and Young Peoples Services,Head of Education and Skills,Transport,230008,Contract Hire,07/11/2018,3512629-101813,"1,692.00",24/7 TAXI SERVICES LTD.
Adult and Health Services,Head of Adults,Transport,230005,Contract Hire,07/11/2018,3512629-101809,570.00,24/7 TAXI SERVICES LTD.
Children and Young Peoples Services,Head of Education and Skills,Transport,230006,Contract Hire,07/11/2018,3512632-6,735.00,A & C TAXIS.
Children and Young Peoples Services,Head of Education and Skills,Transport,230007,Contract Hire,07/11/2018,3512633-OCTOBER03-3365,"1,700.00",A & P TAXIS.
Dedicated Schools Grant,DSG High Needs Block,Transport,230010,Contract Hire,07/11/2018,3512633-OCTOBER01-BL015,"1,012.42",A & P TAXIS.
Children and Young Peoples Services,Head of Education and Skills,Transport,230006,Contract Hire,07/11/2018,3512635-HA220804,891.00,A MURRAY TRAVEL.
Children and Young Peoples Services,Head of Education and Skills,Transport,230008,Contract Hire,07/11/2018,3512635-A220802,"1,242.00",A MURRAY TRAVEL.
Children and Young Peoples Services,Head of Education and Skills,Transport,230008,Contract Hire,07/11/2018,3512635-EA220798,"2,142.00",A MURRAY TRAVEL.
Children and Young Peoples Services,Head of Education and Skills,Transport,230008,Contract Hire,07/11/2018,3512635-GC012,891.00,A MURRAY TRAVEL.
Children and Young Peoples Services,Head of Education and Skills,Transport,230012,Contract Hire,07/11/2018,3512639-1/10/18,"1,260.00",ABA TAXIS.
Children and Young Peoples Services,Head of Education and Skills,Transport,230012,Contract Hire,07/11/2018,3512640-O396,"2,412.00",ABC & OUSTON CABS.
Children and Young Peoples Services,Head of Education and Skills,Transport,230008,Contract Hire,07/11/2018,3512640-O398,"1,818.00",ABC & OUSTON CABS.
Transformation and Partnerships,Strategy,Supplies and Services,304259,Equipment and Materials,07/11/2018,3512641-116338713,"9,580.31",AC ENTERTAINMENT TECHNOLOGIES.
Children and Young Peoples Services,Head of Education and Skills,Transport,230008,Contract Hire,07/11/2018,3512642-801,"1,350.00",AC TAXIS.
Regeneration and Local Services,Technical Services,Supplies and Services,304221,Equipment and Materials,07/11/2018,3512645-27234651,704.88,AGGREGATE INDUSTRIES UK LTD.
Regeneration and Local Services,Technical Services,Supplies and Services,304221,Equipment and Materials,07/11/2018,3512645-27267281,587.84,AGGREGATE INDUSTRIES UK LTD.
Regeneration and Local Services,Technical Services,Supplies and Services,304221,Equipment and Materials,07/11/2018,3512645-27302367,"1,483.72",AGGREGATE INDUSTRIES UK LTD.
Regeneration and Local Services,Technical Services,Supplies and Services,304221,Equipment and Materials,07/11/2018,3512645-27302368,695.36,AGGREGATE INDUSTRIES UK LTD.
Regeneration and Local Services,Technical Services,Supplies and Services,304221,Equipment and Materials,07/11/2018,3512645-27302369,700.08,AGGREGATE INDUSTRIES UK LTD.
Regeneration and Local Services,Technical Services,Supplies and Services,304221,Equipment and Materials,07/11/2018,3512645-27302370,"1,134.48",AGGREGATE INDUSTRIES UK LTD.
Regeneration and Local Services,Transport and Contracted Services,Third Party Payments 4THIRD,440999,Other third party payments E440,07/11/2018,3512646-0900000381-027,"1,195.80",AIRWAVE SOLUTIONS LTD.
Children and Young Peoples Services,Head of Education and Skills,Transport,230008,Contract Hire,07/11/2018,3512647-38895865,"1,550.00",ALAN SOUTHERN T/A ALANS TAXIS PELTON FELL.
Children and Young Peoples Services,Head of Education and Skills,Transport,230008,Contract Hire,07/11/2018,3512652-152,"2,970.00",ANDY CABS.
Regeneration and Local Services,Direct Services,Transport,210057,Repair and Maintenance of Vehicles,07/11/2018,311150-34831,"1,675.00",AQUASEAL RUBBER LTD.
Children and Young Peoples Services,Head of Education and Skills,Transport,230007,Contract Hire,07/11/2018,3512663-674,856.35,AT TAXIS LTD.
Children and Young Peoples Services,Head of Education and Skills,Transport,230007,Contract Hire,07/11/2018,3512663-675,"1,753.00",AT TAXIS LTD.
Children and Young Peoples Services,Head of Education and Skills,Transport,230008,Contract Hire,07/11/2018,3512663-672,"2,304.00",AT TAXIS LTD.
Adult and Health Services,Head of Adults,Transport,230005,Contract Hire,07/11/2018,3512663-673,"1,547.00",AT TAXIS LTD.
Children and Young Peoples Services,Head of Education and Skills,Supplies and Services,338001,Services,07/11/2018,3512664-18040269,"2,500.00",ATKINS GLOBAL.
Children and Young Peoples Services,Head of Education and Skills,Supplies and Services,338001,Services,07/11/2018,3512664-18040270,"3,500.00",ATKINS GLOBAL.
Children and Young Peoples Services,Head of Education and Skills,Transport,230008,Contract Hire,07/11/2018,3512667-802,601.02,BEELINE MINI BUSES.
Children and Young Peoples Services,Head of Education and Skills,Transport,230008,Contract Hire,07/11/2018,3512667-803,555.30,BEELINE MINI BUSES.
Children and Young Peoples Services,Head of Education and Skills,Transport,230008,Contract Hire,07/11/2018,3512667-804,"1,348.74",BEELINE MINI BUSES.
Children and Young Peoples Services,Head of Education and Skills,Transport,230008,Contract Hire,07/11/2018,3512667-805,628.38,BEELINE MINI BUSES.
Children and Young Peoples Services,Head of Education and Skills,Transport,230016,Contract Hire,07/11/2018,3512668-SMITH2/OCTOBER18,702.00,BEELINE PRIVATE HIRE.
Children and Young Peoples Services,Head of Education and Skills,Transport,230008,Contract Hire,07/11/2018,3512668-SMITH1/OCTOBER18,"1,482.00",BEELINE PRIVATE HIRE.
Children and Young Peoples Services,Head of Education and Skills,Transport,230003,Contract Hire,07/11/2018,3512669-STJOHNSRC1018-3003,"2,304.00",BELL BROTHERS TRAVEL.
Children and Young Peoples Services,Head of Education and Skills,Transport,230003,Contract Hire,07/11/2018,3512669-STJOHNSRC1018-3005,"4,464.00",BELL BROTHERS TRAVEL.
Regeneration and Local Services,Direct Services,Transport,210057,Repair and Maintenance of Vehicles,07/11/2018,3512670-35156271,873.50,BELL TRUCK SALES LTD T/A BELL TRUCK & VAN.
Adult and Health Services,Central/Other,Premises,108099,Service Repairs and Maintenance,07/11/2018,3512672-SI00341,"2,298.09",BERNICIA GROUP LTD.
Children and Young Peoples Services,Head of Education and Skills,Transport,230006,Contract Hire,07/11/2018,3512676-F728-OCT,"1,123.20",BIG MAMA`S TAXI.
Dedicated Schools Grant,DSG High Needs Block,Transport,230010,Contract Hire,07/11/2018,3512676-B006-OCT,960.00,BIG MAMA`S TAXI.
Children and Young Peoples Services,Head of Education and Skills,Transport,230008,Contract Hire,07/11/2018,3512676-A017-OCT,"1,728.00",BIG MAMA`S TAXI.
Adult and Health Services,Head of Adults,Supplies and Services,304516,Equipment and Materials,07/11/2018,3512677-INV-0191,993.00,BILL SCOTT TAXIS LTD.
Children and Young Peoples Services,Head of Education and Skills,Transport,230007,Contract Hire,07/11/2018,3512678-02-1202,719.00,BILL`S TAXIS.
Children and Young Peoples Services,Head of Education and Skills,Transport,230008,Contract Hire,07/11/2018,311151-DC02,"1,944.00",BOWES TRAVEL.
Dedicated Schools Grant,DSG High Needs Block,Third Party Payments 4THIRD,425005,Rendered by Voluntary Organisations,07/11/2018,3512680-2186,"16,000.00",BRECKENBROUGH SCHOOL.
Children and Young Peoples Services,Head of Education and Skills,Transport,230008,Contract Hire,07/11/2018,3512682-BZ00277,833.00,BREZ`S TAXIS.
Children and Young Peoples Services,Head of Education and Skills,Transport,230008,Contract Hire,07/11/2018,3512682-BZ00278,918.00,BREZ`S TAXIS.
Adult and Health Services,Head of Adults,Transport,230005,Contract Hire,07/11/2018,3512682-BZ00279,644.00,BREZ`S TAXIS.
Children and Young Peoples Services,Head of Education and Skills,Transport,230008,Contract Hire,07/11/2018,3512684-2-E070,"1,350.00",BRIAN PURVIS T/A BJ`S TAXIS.
Regeneration and Local Services,Direct Services,Transport,210057,Repair and Maintenance of Vehicles,07/11/2018,3512686-PSI0060823,"1,551.18",BRITISH STEEL LTD.
Children and Young Peoples Services,Head of Education and Skills,Transport,230009,Contract Hire,07/11/2018,3512689-BIL0141,880.00,CA MUSGROVE.
Children and Young Peoples Services,Head of Education and Skills,Transport,230007,Contract Hire,07/11/2018,311153-1819-044,510.00,CCC SAMUEL KINGS SCHOOL.
Dedicated Schools Grant,DSG High Needs Block,Transport,230010,Contract Hire,07/11/2018,3512699-B023OCT,"1,261.08",CHRISTOPHER GILL T/A CG TAXIS.
Children and Young Peoples Services,Head of Education and Skills,Transport,230003,Contract Hire,07/11/2018,3512701-46459,"2,533.00",CHRISTOPHER JAMES GRIERSON T/A GRIERSONS COACHES.
Children and Young Peoples Services,Head of Education and Skills,Transport,230003,Contract Hire,07/11/2018,3512701-46463,"2,520.00",CHRISTOPHER JAMES GRIERSON T/A GRIERSONS COACHES.
Children and Young Peoples Services,Head of Education and Skills,Transport,230003,Contract Hire,07/11/2018,3512701-46464,"2,340.00",CHRISTOPHER JAMES GRIERSON T/A GRIERSONS COACHES.
Children and Young Peoples Services,Head of Education and Skills,Transport,230006,Contract Hire,07/11/2018,3512702-F763/02,"1,152.00",CHRISTOPHER MADDISON (TAXI).
Regeneration and Local Services,Direct Services,Premises,145009,Cleaning and Domestic Supplies,07/11/2018,3512704-CC116680,924.00,CITY CLEAN NORTHERN LTD.
Regeneration and Local Services,Culture & Sport,Supplies and Services,384199,Miscellaneous Expenses,07/11/2018,3512711-INV03590,846.95,COMPETITION LINE UK LTD T/A LIFESTYLE FITNESS.
Regeneration and Local Services,Culture & Sport,Supplies and Services,384199,Miscellaneous Expenses,07/11/2018,3512711-INV03591,"1,040.65",COMPETITION LINE UK LTD T/A LIFESTYLE FITNESS.
Regeneration and Local Services,Economic Development and Housing,Supplies and Services,338066,Services,07/11/2018,3512713-9165,"1,000.00",COOL BLUE BRAND COMMUNICATIONS LTD.
Children and Young Peoples Services,Head of Education and Skills,Transport,230007,Contract Hire,07/11/2018,3512720-DCC/4003/OCT18,"1,638.00",COUNTY COACHES.
Children and Young Peoples Services,Head of Education and Skills,Transport,230007,Contract Hire,07/11/2018,3512720-DCC/4118/OCT18,"4,248.00",COUNTY COACHES.
Children and Young Peoples Services,Head of Education and Skills,Transport,230003,Contract Hire,07/11/2018,3512720-DCC/4016/OCT18,"1,980.00",COUNTY COACHES.
Children and Young Peoples Services,Head of Education and Skills,Transport,230003,Contract Hire,07/11/2018,3512720-DCC/4021/OCT18,"2,232.00",COUNTY COACHES.
Children and Young Peoples Services,Head of Education and Skills,Transport,230003,Contract Hire,07/11/2018,3512720-DCC/4025/OCT18,"1,944.00",COUNTY COACHES.
Children and Young Peoples Services,Head of Education and Skills,Transport,230007,Contract Hire,07/11/2018,3512724-108403,"1,125.30",CROFT BUSINESS SERVICES (UK) LTD T/A CROFT TAXIS.
Children and Young Peoples Services,Head of Education and Skills,Transport,230009,Contract Hire,07/11/2018,3512724-108404,837.00,CROFT BUSINESS SERVICES (UK) LTD T/A CROFT TAXIS.
Children and Young Peoples Services,Head of Education and Skills,Transport,230009,Contract Hire,07/11/2018,3512724-108406,"1,418.58",CROFT BUSINESS SERVICES (UK) LTD T/A CROFT TAXIS.
Dedicated Schools Grant,DSG High Needs Block,Transport,230010,Contract Hire,07/11/2018,3512724-108418,"1,956.81",CROFT BUSINESS SERVICES (UK) LTD T/A CROFT TAXIS.
Children and Young Peoples Services,Head of Education and Skills,Transport,230008,Contract Hire,07/11/2018,3512724-108410,"3,611.14",CROFT BUSINESS SERVICES (UK) LTD T/A CROFT TAXIS.
Children and Young Peoples Services,Head of Education and Skills,Transport,230008,Contract Hire,07/11/2018,3512724-108414,"2,777.58",CROFT BUSINESS SERVICES (UK) LTD T/A CROFT TAXIS.
Adult and Health Services,Head of Adults,Transport,230005,Contract Hire,07/11/2018,3512728-TH1810,574.81,D IRVING T/A BJ TAXIS.
Children and Young Peoples Services,Head of Education and Skills,Transport,230007,Contract Hire,07/11/2018,3512730-SCEAOCT1801,900.00,DALELINK PRIVATE HIRE.
Children and Young Peoples Services,Head of Education and Skills,Transport,230007,Contract Hire,07/11/2018,3512730-SCEAOCT1801-A,760.00,DALELINK PRIVATE HIRE.
Children and Young Peoples Services,Head of Education and Skills,Transport,230008,Contract Hire,07/11/2018,3512731-C002,"1,080.00",DAVID BRIDDICK T/A COUNDONS TAXIS.
Children and Young Peoples Services,Head of Education and Skills,Transport,230008,Contract Hire,07/11/2018,3512732-A81,"1,710.00",DAVID FOREMAN T/A DAVES TAXIS.
Children and Young Peoples Services,Head of Education and Skills,Transport,230008,Contract Hire,07/11/2018,3512732-A82,"1,300.00",DAVID FOREMAN T/A DAVES TAXIS.
Children and Young Peoples Services,Head of Education and Skills,Transport,230008,Contract Hire,07/11/2018,3512732-A83,630.00,DAVID FOREMAN T/A DAVES TAXIS.
Children and Young Peoples Services,Head of Education and Skills,Transport,230007,Contract Hire,07/11/2018,311158-52,"1,136.00",DAVID WILKINSON...
Dedicated Schools Grant,DSG High Needs Block,Transport,230010,Contract Hire,07/11/2018,3512738-18/49,"1,914.68",DMG PRIVATE HIRE.
Children and Young Peoples Services,Head of Education and Skills,Transport,230003,Contract Hire,07/11/2018,3512740-27119,"2,430.00",DURHAM CITY COACHES.
Children and Young Peoples Services,Head of Education and Skills,Transport,230003,Contract Hire,07/11/2018,3512740-7576-4015,"2,439.00",DURHAM CITY COACHES.
Children and Young Peoples Services,Head of Education and Skills,Transport,230003,Contract Hire,07/11/2018,3512740-7576-4019,"2,889.00",DURHAM CITY COACHES.
Children and Young Peoples Services,Head of Education and Skills,Transport,230003,Contract Hire,07/11/2018,3512740-7576-4023,"2,331.00",DURHAM CITY COACHES.
Children and Young Peoples Services,Head of Childrens Social Care,Third Party Payments 4THIRD,425021,Rendered by Voluntary Organisations,07/11/2018,3512745-AM001,"9,285.71",DUTY OF CARE LTD.
Children and Young Peoples Services,Head of Education and Skills,Transport,230008,Contract Hire,07/11/2018,3512747-01102018/04,"1,938.00",EAST DURHAM TAXIS.
Children and Young Peoples Services,Head of Education and Skills,Transport,230008,Contract Hire,07/11/2018,3512747-01102018/05,"2,108.00",EAST DURHAM TAXIS.
Children and Young Peoples Services,Head of Education and Skills,Transport,230008,Contract Hire,07/11/2018,3512747-01102018/06,"2,592.00",EAST DURHAM TAXIS.
Regeneration and Local Services,Direct Services,Third Party Payments 4THIRD,430100,Rendered by Private Contractors,07/11/2018,3512754-652,"3,400.00",EQUINE SUPPORT LTD.
Children and Young Peoples Services,"Head of Early Help, Inclusion and Vulnerable Children",Supplies and Services,338094,Services,07/11/2018,3512755-5102198,"1,048.75",EXCEL ACADEMY PARTNERSHIP T/A FRAMWELLGATE SCHOOL DURHAM.
Resources,Digital and Customer Services,Supplies and Services,304639,Equipment and Materials,07/11/2018,3512762-5790,"1,296.00",FULL CONTROL NETWORKS.
Children and Young Peoples Services,Head of Education and Skills,Transport,230007,Contract Hire,07/11/2018,3512763-101027,936.00,G & P JOHNSON LTD T/A NIGHTINGALE COACHES.
Children and Young Peoples Services,Head of Education and Skills,Transport,230003,Contract Hire,07/11/2018,3512763-101029,"3,564.00",G & P JOHNSON LTD T/A NIGHTINGALE COACHES.
Children and Young Peoples Services,Head of Education and Skills,Transport,230008,Contract Hire,07/11/2018,3512763-101018,"1,890.00",G & P JOHNSON LTD T/A NIGHTINGALE COACHES.
Children and Young Peoples Services,Head of Education and Skills,Transport,230008,Contract Hire,07/11/2018,3512763-101019,"1,404.00",G & P JOHNSON LTD T/A NIGHTINGALE COACHES.
Children and Young Peoples Services,Head of Education and Skills,Transport,230008,Contract Hire,07/11/2018,3512763-101020,"1,530.00",G & P JOHNSON LTD T/A NIGHTINGALE COACHES.
Children and Young Peoples Services,Head of Education and Skills,Transport,230008,Contract Hire,07/11/2018,3512763-101021,"1,602.00",G & P JOHNSON LTD T/A NIGHTINGALE COACHES.
Children and Young Peoples Services,Head of Education and Skills,Transport,230008,Contract Hire,07/11/2018,3512763-101022,828.00,G & P JOHNSON LTD T/A NIGHTINGALE COACHES.
Children and Young Peoples Services,Head of Education and Skills,Transport,230008,Contract Hire,07/11/2018,3512763-101023,"1,008.00",G & P JOHNSON LTD T/A NIGHTINGALE COACHES.
Children and Young Peoples Services,Head of Education and Skills,Transport,230008,Contract Hire,07/11/2018,3512763-101024,"1,030.00",G & P JOHNSON LTD T/A NIGHTINGALE COACHES.
Adult and Health Services,Head of Adults,Transport,230005,Contract Hire,07/11/2018,3512763-101033,"1,702.00",G & P JOHNSON LTD T/A NIGHTINGALE COACHES.
Adult and Health Services,Head of Adults,Transport,230005,Contract Hire,07/11/2018,3512763-101034,"1,402.00",G & P JOHNSON LTD T/A NIGHTINGALE COACHES.
Adult and Health Services,Head of Adults,Transport,230005,Contract Hire,07/11/2018,3512763-101037,931.00,G & P JOHNSON LTD T/A NIGHTINGALE COACHES.
Adult and Health Services,Head of Adults,Transport,230005,Contract Hire,07/11/2018,3512763-101038,"1,408.00",G & P JOHNSON LTD T/A NIGHTINGALE COACHES.
Adult and Health Services,Head of Adults,Transport,230005,Contract Hire,07/11/2018,3512763-101039,"1,334.00",G & P JOHNSON LTD T/A NIGHTINGALE COACHES.
Children and Young Peoples Services,Head of Education and Skills,Transport,230007,Contract Hire,07/11/2018,3512764-8-3361,"1,173.00",G ANGHEL T/A A TAXI.
Children and Young Peoples Services,Head of Education and Skills,Transport,230007,Contract Hire,07/11/2018,3512766-20853,"2,502.00",GARNETTS LTD (COACHES).
Children and Young Peoples Services,Head of Education and Skills,Transport,230007,Contract Hire,07/11/2018,3512766-20854-3182,"2,592.00",GARNETTS LTD (COACHES).
Children and Young Peoples Services,Head of Education and Skills,Transport,230007,Contract Hire,07/11/2018,3512766-20856,"2,124.00",GARNETTS LTD (COACHES).
Children and Young Peoples Services,Head of Education and Skills,Transport,230007,Contract Hire,07/11/2018,3512766-20858-4034,"2,246.40",GARNETTS LTD (COACHES).
Children and Young Peoples Services,Head of Education and Skills,Transport,230007,Contract Hire,07/11/2018,3512766-20858-4035,"2,066.40",GARNETTS LTD (COACHES).
Children and Young Peoples Services,Head of Education and Skills,Transport,230007,Contract Hire,07/11/2018,3512766-20858-4036,"2,246.40",GARNETTS LTD (COACHES).
Children and Young Peoples Services,Head of Education and Skills,Transport,230007,Contract Hire,07/11/2018,3512766-20858-4037,"4,132.80",GARNETTS LTD (COACHES).
Children and Young Peoples Services,Head of Education and Skills,Transport,230007,Contract Hire,07/11/2018,3512766-20858-4038,"2,066.40",GARNETTS LTD (COACHES).
Children and Young Peoples Services,Head of Education and Skills,Transport,230007,Contract Hire,07/11/2018,3512766-20860-3029,"2,592.00",GARNETTS LTD (COACHES).
Children and Young Peoples Services,Head of Education and Skills,Transport,230007,Contract Hire,07/11/2018,3512766-20862,"3,213.00",GARNETTS LTD (COACHES).
Children and Young Peoples Services,Head of Education and Skills,Transport,230003,Contract Hire,07/11/2018,3512766-20854-3255,"2,682.00",GARNETTS LTD (COACHES).
Children and Young Peoples Services,Head of Education and Skills,Transport,230003,Contract Hire,07/11/2018,3512766-20860-3020,"2,610.00",GARNETTS LTD (COACHES).
Children and Young Peoples Services,Head of Education and Skills,Transport,230003,Contract Hire,07/11/2018,3512766-20860-3024,"2,502.00",GARNETTS LTD (COACHES).
Children and Young Peoples Services,Head of Education and Skills,Transport,230003,Contract Hire,07/11/2018,3512766-20860-3026,"2,322.00",GARNETTS LTD (COACHES).
Children and Young Peoples Services,Head of Education and Skills,Transport,230003,Contract Hire,07/11/2018,3512766-20860-3027,"2,502.00",GARNETTS LTD (COACHES).
Children and Young Peoples Services,Head of Education and Skills,Transport,230003,Contract Hire,07/11/2018,3512766-20860-3028,"2,592.00",GARNETTS LTD (COACHES).
Children and Young Peoples Services,Head of Education and Skills,Employees,080025,Agency Staff,07/11/2018,3512767-41024,"3,596.00",GATENBY SANDERSON LTD.
Dedicated Schools Grant,DSG High Needs Block,Transport,230010,Contract Hire,07/11/2018,3512768-TB002,"1,740.00",GAVIN ELLIOTT T/A LOCATION TAXIS.
Regeneration and Local Services,Direct Services,Transport,210057,Repair and Maintenance of Vehicles,07/11/2018,3512776-149122,"1,094.95",GREENLAY (GRASS MACHINERY) LTD.
Children and Young Peoples Services,Head of Education and Skills,Transport,230006,Contract Hire,07/11/2018,3512777-002/F724,885.00,GUY`S TAXIS.
Regeneration and Local Services,Direct Services,Supplies and Services,304259,Equipment and Materials,07/11/2018,3512779-061193,693.10,HAGS-SMP LTD.
Regeneration and Local Services,Technical Services,Supplies and Services,304358,Equipment and Materials,07/11/2018,3512786-56954,"1,925.00",HF COLTON PLANT HIRE LTD.*
Regeneration and Local Services,Technical Services,Third Party Payments 4THIRD,430100,Rendered by Private Contractors,07/11/2018,3512787-2832,"6,502.80",HIGHWAY CONSTRUCTION SERVICES LTD.
Regeneration and Local Services,Technical Services,Third Party Payments 4THIRD,430100,Rendered by Private Contractors,07/11/2018,3512787-2833,"6,502.80",HIGHWAY CONSTRUCTION SERVICES LTD.
Regeneration and Local Services,Direct Services,Transport,210057,Repair and Maintenance of Vehicles,07/11/2018,3512788-9215,"1,194.77",HILLCREST AUTO ELECTRICS.
Children and Young Peoples Services,Head of Education and Skills,Supplies and Services,304083,Equipment and Materials,07/11/2018,3512795-2891,"2,485.52",HOWELL CUMMINGS CATERING EQUIPMENT LTD.
Children and Young Peoples Services,Head of Education and Skills,Third Party Payments 4THIRD,440999,Other third party payments E440,07/11/2018,3512796-340/19/0712,"14,093.65",HUMANKIND CHARITY (FORMERLY DISC LTD).
Children and Young Peoples Services,Head of Education and Skills,Third Party Payments 4THIRD,440999,Other third party payments E440,07/11/2018,3512796-341/19/0712,"3,737.10",HUMANKIND CHARITY (FORMERLY DISC LTD).
Children and Young Peoples Services,Head of Education and Skills,Transport,230016,Contract Hire,07/11/2018,3512798-IR1810001,"1,710.00",I & R EXECUTIVE TRAVEL.
Children and Young Peoples Services,Head of Education and Skills,Transport,230008,Contract Hire,07/11/2018,3512798-IR1810002,"1,717.00",I & R EXECUTIVE TRAVEL.
Children and Young Peoples Services,Head of Education and Skills,Transport,230008,Contract Hire,07/11/2018,3512798-IR1810003,"1,564.00",I & R EXECUTIVE TRAVEL.
Adult and Health Services,Head of Adults,Transport,230005,Contract Hire,07/11/2018,3512798-IR1810005,"1,400.00",I & R EXECUTIVE TRAVEL.
Children and Young Peoples Services,Head of Education and Skills,Transport,230007,Contract Hire,07/11/2018,3512807-5167,"1,020.00",J YOUNG T/A VIP TAXIS.
Children and Young Peoples Services,Head of Education and Skills,Transport,230006,Contract Hire,07/11/2018,3512807-5168,752.00,J YOUNG T/A VIP TAXIS.
Children and Young Peoples Services,Head of Education and Skills,Transport,230008,Contract Hire,07/11/2018,3512807-5161,"1,760.00",J YOUNG T/A VIP TAXIS.
Children and Young Peoples Services,Head of Education and Skills,Transport,230008,Contract Hire,07/11/2018,3512807-5162,864.00,J YOUNG T/A VIP TAXIS.
Children and Young Peoples Services,Head of Education and Skills,Transport,230008,Contract Hire,07/11/2018,3512807-5164,"1,008.00",J YOUNG T/A VIP TAXIS.
Children and Young Peoples Services,Head of Education and Skills,Transport,230008,Contract Hire,07/11/2018,3512807-5165,720.00,J YOUNG T/A VIP TAXIS.
Children and Young Peoples Services,Head of Education and Skills,Transport,230008,Contract Hire,07/11/2018,3512807-5169,600.00,J YOUNG T/A VIP TAXIS.
Regeneration and Local Services,Transport and Contracted Services,Supplies and Services,336005,Advertising E336,07/11/2018,3512812-0063411,600.00,JAK HQ LTD.
Children and Young Peoples Services,Head of Education and Skills,Transport,230007,Contract Hire,07/11/2018,3512816-2811,"1,412.82",JEFF ANDERSON COACHES LTD.
Children and Young Peoples Services,Head of Education and Skills,Supplies and Services,352001,Conference Expenses,07/11/2018,3512818-1861,"3,739.66",JFJ TRAINING LTD.
Children and Young Peoples Services,Head of Education and Skills,Transport,230012,Contract Hire,07/11/2018,3512822-31/10/18F,"1,080.00",JL EBDON. T/A DIAL-A-CAB.
Children and Young Peoples Services,Head of Education and Skills,Transport,230008,Contract Hire,07/11/2018,3512822-31/10/18B,"1,967.58",JL EBDON. T/A DIAL-A-CAB.
Children and Young Peoples Services,Head of Education and Skills,Transport,230008,Contract Hire,07/11/2018,3512822-31/10/18C,"1,080.00",JL EBDON. T/A DIAL-A-CAB.
Children and Young Peoples Services,Head of Education and Skills,Transport,230008,Contract Hire,07/11/2018,3512822-31/10/18D,"1,764.00",JL EBDON. T/A DIAL-A-CAB.
Children and Young Peoples Services,Head of Education and Skills,Transport,230008,Contract Hire,07/11/2018,3512822-31/10/18E,"1,584.00",JL EBDON. T/A DIAL-A-CAB.
Children and Young Peoples Services,Head of Education and Skills,Transport,230006,Contract Hire,07/11/2018,3512824-F7591018,954.00,JMR TAXIS.
Regeneration and Local Services,Technical Services,Supplies and Services,304358,Equipment and Materials,07/11/2018,3512827-27939,839.00,JOHN R BUTTERFIELD LTD.
Regeneration and Local Services,Technical Services,Supplies and Services,304358,Equipment and Materials,07/11/2018,3512827-28081,"1,718.00",JOHN R BUTTERFIELD LTD.
Regeneration and Local Services,Technical Services,Supplies and Services,304358,Equipment and Materials,07/11/2018,3512827-28123,940.50,JOHN R BUTTERFIELD LTD.
Regeneration and Local Services,Technical Services,Supplies and Services,304358,Equipment and Materials,07/11/2018,3512827-28124,"1,261.50",JOHN R BUTTERFIELD LTD.
Regeneration and Local Services,Technical Services,Supplies and Services,304358,Equipment and Materials,07/11/2018,3512827-28143,"1,326.00",JOHN R BUTTERFIELD LTD.
Regeneration and Local Services,Technical Services,Supplies and Services,304358,Equipment and Materials,07/11/2018,3512827-28169,"1,326.00",JOHN R BUTTERFIELD LTD.
Regeneration and Local Services,Technical Services,Supplies and Services,304358,Equipment and Materials,07/11/2018,3512827-28694,755.00,JOHN R BUTTERFIELD LTD.
Regeneration and Local Services,Technical Services,Supplies and Services,304358,Equipment and Materials,07/11/2018,3512827-28803,730.00,JOHN R BUTTERFIELD LTD.
Regeneration and Local Services,Technical Services,Supplies and Services,304358,Equipment and Materials,07/11/2018,3512827-28858,840.00,JOHN R BUTTERFIELD LTD.
Regeneration and Local Services,Technical Services,Supplies and Services,304358,Equipment and Materials,07/11/2018,3512827-28895,809.00,JOHN R BUTTERFIELD LTD.
Children and Young Peoples Services,Head of Education and Skills,Transport,230007,Contract Hire,07/11/2018,3512830-83/84,"1,200.00",JOHN WARE T/A J & K TAXIS.
Adult and Health Services,Commissioning inc Supporting People,Third Party Payments 4THIRD,440999,Other third party payments E440,07/11/2018,3512832-181922,"5,625.00",JOURNEY ENTERPRISES LTD.
Children and Young Peoples Services,Head of Education and Skills,Transport,230009,Contract Hire,07/11/2018,3512833-723122,"1,530.00",JOVIAL PRIVATE HIRE.
Children and Young Peoples Services,Head of Education and Skills,Transport,230006,Contract Hire,07/11/2018,3512833-F74502,889.00,JOVIAL PRIVATE HIRE.
Children and Young Peoples Services,Head of Education and Skills,Transport,230008,Contract Hire,07/11/2018,3512833-M00914,"1,170.00",JOVIAL PRIVATE HIRE.
Children and Young Peoples Services,Head of Education and Skills,Transport,230008,Contract Hire,07/11/2018,3512833-M01513,"1,062.00",JOVIAL PRIVATE HIRE.
Children and Young Peoples Services,Head of Education and Skills,Transport,230008,Contract Hire,07/11/2018,3512833-M01713,792.00,JOVIAL PRIVATE HIRE.
Children and Young Peoples Services,Head of Education and Skills,Transport,230008,Contract Hire,07/11/2018,3512833-N30102,"1,350.90",JOVIAL PRIVATE HIRE.
Children and Young Peoples Services,Head of Education and Skills,Transport,230008,Contract Hire,07/11/2018,3512836-A143/1018,892.80,K & R TAXIS (STANLEY).
Children and Young Peoples Services,Head of Education and Skills,Transport,230008,Contract Hire,07/11/2018,3512837-S027-OCT,"1,795.78",KEITH GIBSON T/A KEITH`S TAXIS.
Regeneration and Local Services,Spatial Policy Planning Assets & Environment,Supplies and Services,384199,Miscellaneous Expenses,07/11/2018,3512840-2091,"4,489.39",KEVIN DOONAN ARCHITECT LTD.
Regeneration and Local Services,Technical Services,Supplies and Services,304358,Equipment and Materials,07/11/2018,3512841-2407,713.00,KEVIN SNOWDON GROUNDWORKS LTD.
Regeneration and Local Services,Technical Services,Supplies and Services,304358,Equipment and Materials,07/11/2018,3512841-2420,847.50,KEVIN SNOWDON GROUNDWORKS LTD.
Regeneration and Local Services,Technical Services,Supplies and Services,304358,Equipment and Materials,07/11/2018,3512841-2423,"1,581.00",KEVIN SNOWDON GROUNDWORKS LTD.
Children and Young Peoples Services,Head of Education and Skills,Transport,230009,Contract Hire,07/11/2018,3512848-002,"1,332.00",KULDEEP MAHIL T/A KOLARS CAB.
Regeneration and Local Services,Economic Development and Housing,Supplies and Services,338066,Services,07/11/2018,3512853-DBOP10,"1,000.00",LEC CONSULTANCY LTD.
Children and Young Peoples Services,Head of Education and Skills,Transport,230007,Contract Hire,07/11/2018,3512858-3873,"1,557.00",LINCAB TAXIS.
Children and Young Peoples Services,Head of Education and Skills,Transport,230007,Contract Hire,07/11/2018,3512858-3876,729.00,LINCAB TAXIS.
Dedicated Schools Grant,DSG High Needs Block,Transport,230010,Contract Hire,07/11/2018,3512858-3871,"1,547.52",LINCAB TAXIS.
Children and Young Peoples Services,Head of Education and Skills,Transport,230008,Contract Hire,07/11/2018,3512858-3875,"1,976.20",LINCAB TAXIS.
Resources,Finance & Transactional Services,Supplies and Services,338017,Services,07/11/2018,3512861-120070853,"8,089.20",LLOYDS BANK PLC.
Children and Young Peoples Services,Head of Education and Skills,Transport,230008,Contract Hire,07/11/2018,3512862-4176,"1,368.00",LOCAL TRANSPORT LTD.
Children and Young Peoples Services,Head of Education and Skills,Transport,230008,Contract Hire,07/11/2018,3512870-133,"1,320.00",M BUTCHER T/A M & M`S TAXIS.
Regeneration and Local Services,Technical Services,Stock A926,926900,Stock in hand-Inventory system,07/11/2018,3512871-136473,"1,246.40",MALLATITE LTD T/A MALLATITE PLASTICS LTD.
Dedicated Schools Grant,DSG High Needs Block,Transport,230010,Contract Hire,07/11/2018,3512873-INV10/1802,"2,260.44",MARK & JOHN CHISHOLM T/A (CHEVRON).
Dedicated Schools Grant,DSG High Needs Block,Transport,230010,Contract Hire,07/11/2018,3512873-INV10/1804,"3,720.00",MARK & JOHN CHISHOLM T/A (CHEVRON).
Children and Young Peoples Services,Head of Education and Skills,Transport,230008,Contract Hire,07/11/2018,3512873-INV10/1807,"2,627.50",MARK & JOHN CHISHOLM T/A (CHEVRON).
Children and Young Peoples Services,Head of Education and Skills,Transport,230008,Contract Hire,07/11/2018,3512879-MCD38712,"1,909.00",MCDONALD TRAVEL.
Adult and Health Services,Head of Adults,Transport,230005,Contract Hire,07/11/2018,3512879-MCD37814,539.50,MCDONALD TRAVEL.
Adult and Health Services,Head of Adults,Transport,230005,Contract Hire,07/11/2018,3512879-MCD38713,989.00,MCDONALD TRAVEL.
Children and Young Peoples Services,Head of Education and Skills,Transport,230007,Contract Hire,07/11/2018,3512883-0164,544.00,MICKS TAXIS - MURTON.
Children and Young Peoples Services,Head of Education and Skills,Transport,230007,Contract Hire,07/11/2018,3512883-0169,648.00,MICKS TAXIS - MURTON.
Children and Young Peoples Services,Head of Education and Skills,Transport,230006,Contract Hire,07/11/2018,3512883-0168,"1,200.00",MICKS TAXIS - MURTON.
Children and Young Peoples Services,Head of Education and Skills,Transport,230008,Contract Hire,07/11/2018,3512883-0163,"1,530.00",MICKS TAXIS - MURTON.
Children and Young Peoples Services,Head of Education and Skills,Transport,230012,Contract Hire,07/11/2018,3512885-KDC-011018,"1,870.00",MJ TIMNEY T/A KDC & C&M TAXIS.
Children and Young Peoples Services,Head of Education and Skills,Transport,230008,Contract Hire,07/11/2018,3512886-002-M118,"2,070.00",MOLLY`S TAXIS LTD.
Regeneration and Local Services,Culture & Sport,Supplies and Services,324001,Provisions E324,07/11/2018,3512887-904821103,629.50,MOLSON COORS BREWING COMPANY (UK) LTD.
Children and Young Peoples Services,Head of Education and Skills,Transport,230008,Contract Hire,07/11/2018,3512889-GP110-18,582.00,MR CT WALKER T/A CW TAXIS.
Children and Young Peoples Services,Head of Education and Skills,Transport,230008,Contract Hire,07/11/2018,3512890-A088J1018,"1,260.00",MR DAVID P BRACE T/A JAFFAS TAXIS.
Children and Young Peoples Services,Head of Education and Skills,Transport,230008,Contract Hire,07/11/2018,3512893-77,"1,560.00",MR JOHN KNIGHTON T/A JK TAXIS.
Children and Young Peoples Services,Head of Education and Skills,Transport,230008,Contract Hire,07/11/2018,3512893-83,"1,530.00",MR JOHN KNIGHTON T/A JK TAXIS.
Adult and Health Services,Head of Adults,Transport,230005,Contract Hire,07/11/2018,3512893-JK19991,840.00,MR JOHN KNIGHTON T/A JK TAXIS.
Adult and Health Services,Head of Adults,Transport,230005,Contract Hire,07/11/2018,3512894-201839,650.00,MR JR FORT T/A JRF TAXIS.
Adult and Health Services,Head of Adults,Transport,230005,Contract Hire,07/11/2018,3512894-201840,644.00,MR JR FORT T/A JRF TAXIS.
Children and Young Peoples Services,Head of Education and Skills,Transport,230012,Contract Hire,07/11/2018,3512898-023,"1,476.00",MR NEIL LEONARD T/A LENNY`S TAXIS.
Children and Young Peoples Services,Head of Education and Skills,Transport,230008,Contract Hire,07/11/2018,3512898-022,"1,539.00",MR NEIL LEONARD T/A LENNY`S TAXIS.
Children and Young Peoples Services,Head of Education and Skills,Transport,230008,Contract Hire,07/11/2018,3512899-105,680.00,MR NORMAN STEVENSON T/A EXTREME TAXI`S.
Children and Young Peoples Services,Head of Education and Skills,Transport,230008,Contract Hire,07/11/2018,3512899-106,"1,080.00",MR NORMAN STEVENSON T/A EXTREME TAXI`S.
Children and Young Peoples Services,Head of Education and Skills,Transport,230006,Contract Hire,07/11/2018,3512902-15,572.00,MRS LISA JANE NATTRASS T/A LISA`S TAXIS.
Regeneration and Local Services,Technical Services,Supplies and Services,304358,Equipment and Materials,07/11/2018,3512910-NC/050/BW,"2,035.00",NEDCO CONTRACTS (NE) LTD.
Resources,Legal & Democratic Services,Supplies and Services,304259,Equipment and Materials,07/11/2018,3512911-92511050,"1,497.10",NEOPOST LTD.
Resources,Legal & Democratic Services,Supplies and Services,304259,Equipment and Materials,07/11/2018,3512911-92511051,"4,335.00",NEOPOST LTD.
Children and Young Peoples Services,Head of Education and Skills,Transport,230008,Contract Hire,07/11/2018,3512912-236,"1,485.00",NEVILLE FORBES T/A FORBES TAXIS.
Regeneration and Local Services,Culture & Sport,Supplies and Services,384199,Miscellaneous Expenses,07/11/2018,3512913-1081,800.00,NEW WRITING NORTH LTD.
Regeneration and Local Services,Technical Services,Supplies and Services,304358,Equipment and Materials,07/11/2018,3512916-NPSL751,"5,104.35",NORDIC PRODUCTS & SERVICES LTD.
Regeneration and Local Services,Technical Services,Supplies and Services,304358,Equipment and Materials,07/11/2018,3512916-NPSL752,"12,558.00",NORDIC PRODUCTS & SERVICES LTD.
Regeneration and Local Services,Technical Services,Third Party Payments 4THIRD,430100,Rendered by Private Contractors,07/11/2018,3512916-NPSL756,"4,690.56",NORDIC PRODUCTS & SERVICES LTD.
Regeneration and Local Services,Economic Development and Housing,Fees,901002,Professional fees 901002,07/11/2018,3512919-5100380,"1,500.00",NORTH DURHAM ACADEMY.
Dedicated Schools Grant,DSG High Needs Block,Third Party Payments 4THIRD,425005,Rendered by Voluntary Organisations,07/11/2018,3512920-0000037477,"14,755.00",NORTH EAST AUTISM SOCIETY.
Dedicated Schools Grant,DSG High Needs Block,Third Party Payments 4THIRD,440080,Other third party payments E440,07/11/2018,3512920-0000037480,"14,755.00",NORTH EAST AUTISM SOCIETY.
Dedicated Schools Grant,DSG High Needs Block,Third Party Payments 4THIRD,440080,Other third party payments E440,07/11/2018,3512920-0000037493,"24,505.00",NORTH EAST AUTISM SOCIETY.
Dedicated Schools Grant,DSG High Needs Block,Third Party Payments 4THIRD,440080,Other third party payments E440,07/11/2018,3512920-0000037718,"2,160.00",NORTH EAST AUTISM SOCIETY.
Dedicated Schools Grant,DSG High Needs Block,Third Party Payments 4THIRD,440080,Other third party payments E440,07/11/2018,3512920-0000037719,"14,040.00",NORTH EAST AUTISM SOCIETY.
Adult and Health Services,Head of Adults,Third Party Payments 4THIRD,470101,Purchase of Care,07/11/2018,3512920-0000037504,"23,308.60",NORTH EAST AUTISM SOCIETY.
Regeneration and Local Services,Direct Services,Transport,215005,Running Costs of Vehicles,07/11/2018,3512930-365610,"19,628.37",OIL NRG LTD.
Regeneration and Local Services,Direct Services,Transport,215022,Running Costs of Vehicles,07/11/2018,3512930-365160,"1,280.92",OIL NRG LTD.
Children and Young Peoples Services,Head of Education and Skills,Transport,230006,Contract Hire,07/11/2018,3512935-40,"1,255.00",PAUL B TAXIS.
Resources,Digital and Customer Services,Supplies and Services,344132,Telephones,07/11/2018,3512936-4806,"8,420.00",PBU (UK) LTD.
Resources,Digital and Customer Services,Supplies and Services,342033,Computers and Communications,07/11/2018,3512939-OP/1828809,"1,987.63",PHOENIX SOFTWARE LTD.
Adult and Health Services,Head of Adults,Supplies and Services,384616,Miscellaneous Expenses,07/11/2018,3512942-1063899,"1,797.62",PLACES FOR PEOPLE INDIVIDUAL SUPPORT.
Dedicated Schools Grant,DSG High Needs Block,Third Party Payments 4THIRD,425005,Rendered by Voluntary Organisations,07/11/2018,3512946-0000122076,"13,870.00",QUALITY TIME CARE LTD T/A HIGHCROFT SCHOOL.
Children and Young Peoples Services,Head of Education and Skills,Transport,230007,Contract Hire,07/11/2018,3512951-66A,"1,152.00",RAYNERS COACHES.
Regeneration and Local Services,Technical Services,Supplies and Services,304358,Equipment and Materials,07/11/2018,3512952-10006,"4,240.00",RD KEARTON & SONS LTD.
Regeneration and Local Services,Transport and Contracted Services,Construction work A908,908105,Construction work,07/11/2018,3512955-436991788,"4,991.37",REXEL UK LTD.
Children and Young Peoples Services,Head of Education and Skills,Transport,230007,Contract Hire,07/11/2018,3512961-171177,"2,610.00",ROBERTS TOURS.
Children and Young Peoples Services,Head of Education and Skills,Transport,230007,Contract Hire,07/11/2018,3512961-171178,"2,065.50",ROBERTS TOURS.
Children and Young Peoples Services,Head of Education and Skills,Transport,230007,Contract Hire,07/11/2018,3512961-171179,"3,195.00",ROBERTS TOURS.
Children and Young Peoples Services,Head of Education and Skills,Transport,230008,Contract Hire,07/11/2018,3512964-002-N050,"1,900.00",RONS TAXI (CHESTER LE ST).
Adult and Health Services,Head of Adults,Transport,230005,Contract Hire,07/11/2018,3512964-0002,850.00,RONS TAXI (CHESTER LE ST).
Regeneration and Local Services,Culture & Sport,Supplies and Services,340001,Postages E340,07/11/2018,3512967-1802072156,787.00,ROYAL MAIL GROUP PLC.
Regeneration and Local Services,Business Support,Supplies and Services,340001,Postages E340,07/11/2018,3512967-9057518177,"1,938.06",ROYAL MAIL GROUP PLC.
Resources,Legal & Democratic Services,Supplies and Services,340001,Postages E340,07/11/2018,3512967-9057529106,"1,626.70",ROYAL MAIL GROUP PLC.
Regeneration and Local Services,Culture & Sport,Supplies and Services,338047,Services,07/11/2018,3512968-VA3976A,"1,950.00",RUSS COLEMAN SCULPTOR.
Children and Young Peoples Services,Head of Education and Skills,Transport,230003,Contract Hire,07/11/2018,3512970-3208/24,"1,782.00",S & S TRAVEL LTD.
Children and Young Peoples Services,Head of Education and Skills,Transport,230008,Contract Hire,07/11/2018,3512970-S017/25,"1,512.00",S & S TRAVEL LTD.
Children and Young Peoples Services,Head of Education and Skills,Transport,230008,Contract Hire,07/11/2018,3512970-S020/13,"1,710.00",S & S TRAVEL LTD.
Children and Young Peoples Services,Head of Education and Skills,Transport,230008,Contract Hire,07/11/2018,3512970-W047/02,"1,980.00",S & S TRAVEL LTD.
Children and Young Peoples Services,Head of Education and Skills,Transport,230008,Contract Hire,07/11/2018,3512970-W048/24,"1,602.00",S & S TRAVEL LTD.
Children and Young Peoples Services,Head of Education and Skills,Transport,230008,Contract Hire,07/11/2018,3512970-W052/24/1018,"1,710.00",S & S TRAVEL LTD.
Adult and Health Services,Head of Adults,Transport,230005,Contract Hire,07/11/2018,3512970-SED112/02,"1,520.00",S & S TRAVEL LTD.
Regeneration and Local Services,Direct Services,Transport,210057,Repair and Maintenance of Vehicles,07/11/2018,3512971-496802,"1,052.54",S JENNINGS LTD.
Children and Young Peoples Services,Head of Education and Skills,Transport,230010,Contract Hire,07/11/2018,3512986-L001-OCT,975.00,SHAUN MILLS T/A ASM TRAVEL.
Regeneration and Local Services,Culture & Sport,Supplies and Services,338047,Services,07/11/2018,3512987-20,850.00,SHEPHERD MANAGEMENT LTD.
Children and Young Peoples Services,Head of Education and Skills,Transport,230009,Contract Hire,07/11/2018,3512989-1007,695.60,SIMONS TAXIS.
Children and Young Peoples Services,Head of Education and Skills,Transport,230012,Contract Hire,07/11/2018,3512992-667A,"2,160.00",SJ MACKENZIE T/A SCOTTS TAXIS.
Children and Young Peoples Services,Head of Education and Skills,Transport,230016,Contract Hire,07/11/2018,3512992-673A,"1,350.00",SJ MACKENZIE T/A SCOTTS TAXIS.
Children and Young Peoples Services,Head of Education and Skills,Transport,230008,Contract Hire,07/11/2018,3512992-668A,"1,350.00",SJ MACKENZIE T/A SCOTTS TAXIS.
Children and Young Peoples Services,Head of Education and Skills,Transport,230008,Contract Hire,07/11/2018,3512992-670A,990.00,SJ MACKENZIE T/A SCOTTS TAXIS.
Children and Young Peoples Services,Head of Education and Skills,Transport,230008,Contract Hire,07/11/2018,3512992-671A,"1,700.00",SJ MACKENZIE T/A SCOTTS TAXIS.
Regeneration and Local Services,Technical Services,Stock A926,926900,Stock in hand-Inventory system,07/11/2018,3512994-192409,"2,368.80",SNAPFAST.
Regeneration and Local Services,Culture & Sport,Supplies and Services,324117,Provisions E324,07/11/2018,3512996-53002,517.44,SNOWSHOCK LTD.
Regeneration and Local Services,Direct Services,Third Party Payments 4THIRD,430100,Rendered by Private Contractors,07/11/2018,3513000-6421,"1,820.00",ST ASTIER LTD.
Regeneration and Local Services,Direct Services,Third Party Payments 4THIRD,430100,Rendered by Private Contractors,07/11/2018,3513000-6428,"4,800.00",ST ASTIER LTD.
Children and Young Peoples Services,Head of Education and Skills,Transport,230007,Contract Hire,07/11/2018,3513003-55,576.00,STEVEN HENDERSON T/A HENDYS TAXIS.
Children and Young Peoples Services,Head of Education and Skills,Transport,230006,Contract Hire,07/11/2018,3513004-00095,705.00,STEVES TAXIS.
Dedicated Schools Grant,DSG High Needs Block,Third Party Payments 4THIRD,425005,Rendered by Voluntary Organisations,07/11/2018,3513011-676,"9,615.38",TALBOT HOUSE SCHOOL.
Children and Young Peoples Services,Head of Education and Skills,Transport,230016,Contract Hire,07/11/2018,3513012-B966,"1,120.00",TALBOTS TRAVEL LTD.
Children and Young Peoples Services,Head of Education and Skills,Transport,230008,Contract Hire,07/11/2018,3513012-B967,"1,700.00",TALBOTS TRAVEL LTD.
Children and Young Peoples Services,Head of Education and Skills,Transport,230006,Contract Hire,07/11/2018,3513014-101,940.00,TARIQ KHAN T/A SMART CABS.
Children and Young Peoples Services,Head of Education and Skills,Third Party Payments 4THIRD,440999,Other third party payments E440,07/11/2018,3513017-DCC/HIGH1801,"6,000.40",TEES VALLEY COMMUNITY PROJECTS T/A ACADEMY 3-13.
Regeneration and Local Services,Direct Services,Third Party Payments 4THIRD,430103,Rendered by Private Contractors,07/11/2018,3513018-NEI-EXP-11-2018-003,"10,704.24",TEESDALE CONSERVATION VOLUNTEERS.
Resources,Legal & Democratic Services,Supplies and Services,384999,Miscellaneous Expenses,07/11/2018,311189-RES-11-2018-004,"2,200.00",THE ROYAL BRITISH LEGION POPPY APPEAL.
Children and Young Peoples Services,Head of Education and Skills,Transport,230004,Contract Hire,07/11/2018,3513022-18,"1,170.00",THOMAS GLEN.
Children and Young Peoples Services,Head of Education and Skills,Transport,230006,Contract Hire,07/11/2018,3513022-19,"1,056.00",THOMAS GLEN.
Regeneration and Local Services,Technical Services,Stock A926,926900,Stock in hand-Inventory system,07/11/2018,3513023-N/IN230020,"2,668.20",THOMAS OWEN & SONS (NEWCASTLE) LTD.
Regeneration and Local Services,Technical Services,Stock A926,926900,Stock in hand-Inventory system,07/11/2018,3513023-N/IN231810,607.82,THOMAS OWEN & SONS (NEWCASTLE) LTD.
Regeneration and Local Services,Technical Services,Stock A926,926900,Stock in hand-Inventory system,07/11/2018,3513023-N/IN231864,"1,010.56",THOMAS OWEN & SONS (NEWCASTLE) LTD.
Regeneration and Local Services,Technical Services,Supplies and Services,304221,Equipment and Materials,07/11/2018,3513026-32387,"2,240.00",TODDS HIGHWAY MAINTENANCE LTD.
Children and Young Peoples Services,Head of Education and Skills,Transport,230008,Contract Hire,07/11/2018,3513028-0002008,"2,160.00",TONY RIDLEY T/A COLORS TAXIS LTD.
Regeneration and Local Services,Culture & Sport,Supplies and Services,384700,Miscellaneous Expenses,07/11/2018,3513040-1STINSTALLMENT31/10/18,"5,000.00",TYNE VALLEY CYCLING CLUB EVENTS.
Regeneration and Local Services,Direct Services,Supplies and Services,304221,Equipment and Materials,07/11/2018,3513045-6890275362,"13,424.00",VIESSMANN LTD.
Children and Young Peoples Services,"Head of Early Help, Inclusion and Vulnerable Children",Transport,230710,Contract Hire,07/11/2018,3513049-IN02915076,"1,115.90",VOLKSWAGEN GROUP LEASING.
Regeneration and Local Services,Technical Services,Supplies and Services,304358,Equipment and Materials,07/11/2018,3513050-45781,"1,640.00",W MARLEY AGRICULTURAL CONTRACTORS LTD.
Regeneration and Local Services,Technical Services,Supplies and Services,304358,Equipment and Materials,07/11/2018,3513050-45928,"2,170.00",W MARLEY AGRICULTURAL CONTRACTORS LTD.
Regeneration and Local Services,Direct Services,Supplies and Services,304358,Equipment and Materials,07/11/2018,3513051-77933,905.00,WARREN ACCESS LTD.
Dedicated Schools Grant,DSG High Needs Block,Transport,230010,Contract Hire,07/11/2018,3513055-1018,"2,232.00",WEST AUCKLAND TOWN TRAVEL (WATT).
Children and Young Peoples Services,"Head of Early Help, Inclusion and Vulnerable Children",Supplies and Services,352001,Conference Expenses,07/11/2018,3513058-SIN130425,"3,449.00",WILMINGTON HEALTHCARE LTD.*
Dedicated Schools Grant,DSG High Needs Block,Third Party Payments 4THIRD,425005,Rendered by Voluntary Organisations,07/11/2018,3513059-150,"18,880.30",WITHERSLACK GROUP LTD T/A ASHBROOKE SCHOOL.
Dedicated Schools Grant,DSG High Needs Block,Third Party Payments 4THIRD,425005,Rendered by Voluntary Organisations,07/11/2018,3513059-152,"19,874.00",WITHERSLACK GROUP LTD T/A ASHBROOKE SCHOOL.
Regeneration and Local Services,Technical Services,Supplies and Services,304358,Equipment and Materials,07/11/2018,3513068-7380,936.00,YOULL CONSTRUCTION LTD.
Children and Young Peoples Services,Head of Education and Skills,Transport,230008,Contract Hire,08/11/2018,3513075-23/18A,"1,440.00",ADVANCE TRAVEL.
Regeneration and Local Services,Technical Services,Supplies and Services,304221,Equipment and Materials,08/11/2018,3513077-27308458,601.28,AGGREGATE INDUSTRIES UK LTD.
Regeneration and Local Services,Technical Services,Supplies and Services,304221,Equipment and Materials,08/11/2018,3513077-27308459,891.20,AGGREGATE INDUSTRIES UK LTD.
Regeneration and Local Services,Technical Services,Supplies and Services,304221,Equipment and Materials,08/11/2018,3513077-27308460,600.24,AGGREGATE INDUSTRIES UK LTD.
Regeneration and Local Services,Technical Services,Supplies and Services,304221,Equipment and Materials,08/11/2018,3513077-27308461,700.24,AGGREGATE INDUSTRIES UK LTD.
Regeneration and Local Services,Technical Services,Supplies and Services,304221,Equipment and Materials,08/11/2018,3513077-27308462,533.04,AGGREGATE INDUSTRIES UK LTD.
Regeneration and Local Services,Technical Services,Supplies and Services,304221,Equipment and Materials,08/11/2018,3513077-27308463,"1,147.24",AGGREGATE INDUSTRIES UK LTD.
Regeneration and Local Services,Technical Services,Supplies and Services,304221,Equipment and Materials,08/11/2018,3513077-27308464,568.52,AGGREGATE INDUSTRIES UK LTD.
Resources,Legal & Democratic Services,Supplies and Services,338057,Services,08/11/2018,3513079-0000031658,"2,390.00",ALERE FORENSICS.
Regeneration and Local Services,Direct Services,Supplies and Services,304221,Equipment and Materials,08/11/2018,3513097-6277,"1,480.00",BELL CONTROL SOLUTIONS LTD.
Regeneration and Local Services,Culture & Sport,Supplies and Services,324117,Provisions E324,08/11/2018,3513101-83441540,598.86,BIDFOOD.
Dedicated Schools Grant,DSG High Needs Block,Third Party Payments 4THIRD,440080,Other third party payments E440,08/11/2018,3513107-2184,"19,667.00",BRECKENBROUGH SCHOOL.
Dedicated Schools Grant,DSG High Needs Block,Third Party Payments 4THIRD,440080,Other third party payments E440,08/11/2018,3513107-2187,"16,967.00",BRECKENBROUGH SCHOOL.
Adult and Health Services,Head of Adults,Supplies and Services,304516,Equipment and Materials,08/11/2018,3513113-1847/11,586.30,CABLES TAXI CONTRACTS.
Adult and Health Services,Head of Adults,Supplies and Services,338366,Services,08/11/2018,3513116-53712,622.01,CARE ABILITY.
Regeneration and Local Services,Direct Services,Supplies and Services,304221,Equipment and Materials,08/11/2018,3513117-851802656,"1,771.20",CARLISLE CONSTRUCTION MATERIALS LTD.
Regeneration and Local Services,Direct Services,Supplies and Services,304221,Equipment and Materials,08/11/2018,3513117-851802657,"1,680.00",CARLISLE CONSTRUCTION MATERIALS LTD.
Regeneration and Local Services,Spatial Policy Planning Assets & Environment,Supplies and Services,338066,Services,08/11/2018,3513127-01/0918,"3,200.00",CHARGE MY STREET LTD.
Children and Young Peoples Services,Head of Education and Skills,Transport,230008,Contract Hire,08/11/2018,3513136-INV-022,"1,330.00",CLARE LYNSEY STEWART T/A K&C TAXIS.
Regeneration and Local Services,Economic Development and Housing,Premises,120021,Energy Costs,08/11/2018,3513151-13484683,571.76,CORONA ENERGY RETAIL 2 LTD.
Regeneration and Local Services,Economic Development and Housing,Premises,120021,Energy Costs,08/11/2018,3513151-13484849,621.17,CORONA ENERGY RETAIL 2 LTD.
Regeneration and Local Services,Economic Development and Housing,Premises,120021,Energy Costs,08/11/2018,3513151-13484886,550.58,CORONA ENERGY RETAIL 2 LTD.
Regeneration and Local Services,Economic Development and Housing,Premises,120021,Energy Costs,08/11/2018,3513151-13484915,968.98,CORONA ENERGY RETAIL 2 LTD.
Regeneration and Local Services,Direct Services,Third Party Payments 4THIRD,430101,Rendered by Private Contractors,08/11/2018,3513162-IV1049194,"3,332.81",DIRECT TYRE MANAGEMENT LTD (DTM).
Regeneration and Local Services,Transport and Contracted Services,Supplies and Services,384899,Miscellaneous Expenses,08/11/2018,3513166-RED-11-2018-052,"25,000.00",DURHAM CITY SHOPMOBILITY.
Regeneration and Local Services,Direct Services,Third Party Payments 4THIRD,430100,Rendered by Private Contractors,08/11/2018,3513179-INV-21342,"1,600.00",ELECTROSTATICS LTD T/A VANDA COATINGS.
Transformation and Partnerships,Partnerships & Community Engagement Div.,Supplies and Services,384086,Miscellaneous Expenses,08/11/2018,3513180-VOUCHER18NB-BASH020,"11,000.00",ELEVEN ARCHES.
Regeneration and Local Services,Direct Services,Supplies and Services,304221,Equipment and Materials,08/11/2018,3513192-1810-101432,"1,910.00",FLAME HEATING SPARES LTD.
Children and Young Peoples Services,Head of Childrens Social Care,Supplies and Services,338044,Services,08/11/2018,3513194-32293,724.60,FORENSIC TESTING SERVICE LTD.
Regeneration and Local Services,Direct Services,Third Party Payments 4THIRD,430100,Rendered by Private Contractors,08/11/2018,3513201-10817,"18,545.00",FROSTREE LTD.
Regeneration and Local Services,Direct Services,Third Party Payments 4THIRD,430100,Rendered by Private Contractors,08/11/2018,3513201-10820,"38,735.00",FROSTREE LTD.
Dedicated Schools Grant,DSG High Needs Block,Third Party Payments 4THIRD,440080,Other third party payments E440,08/11/2018,3513206-60011865,"5,266.87",GATESHEAD COLLEGE.
Regeneration and Local Services,Culture & Sport,Supplies and Services,304259,Equipment and Materials,08/11/2018,3513217-INV0172771,"25,197.92",GV MULTIMEDIA LTD.
Resources,Digital and Customer Services,Stock A926,926900,Stock in hand-Inventory system,08/11/2018,3513217-INV0172780,"1,590.00",GV MULTIMEDIA LTD.
Adult and Health Services,Public Health,Third Party Payments 4THIRD,460803,Contract Payments,08/11/2018,3513220-2510021148,"937,416.00",HARROGATE & DISTRICT NHS FOUNDATION TRUST.
Adult and Health Services,Public Health,Third Party Payments 4THIRD,460803,Contract Payments,08/11/2018,3513220-2510021182,"937,416.00",HARROGATE & DISTRICT NHS FOUNDATION TRUST.
Resources,Digital and Customer Services,Supplies and Services,342033,Computers and Communications,08/11/2018,3513231-4074641,"1,582.80",INSIGHT DIRECT (UK) LTD.
Regeneration and Local Services,Technical Services,Stock A926,926900,Stock in hand-Inventory system,08/11/2018,3513232-654587,915.60,INSTARMAC GROUP PLC.
Regeneration and Local Services,Technical Services,Stock A926,926900,Stock in hand-Inventory system,08/11/2018,3513243-8988,722.50,JG UNIFORMS.
Regeneration and Local Services,Direct Services,Supplies and Services,304221,Equipment and Materials,08/11/2018,3513251-BII271628,"1,381.25",JT DOVE LTD.
Regeneration and Local Services,Technical Services,Supplies and Services,304221,Equipment and Materials,08/11/2018,3513251-G0I1269/D,"2,870.60",JT DOVE LTD.
Regeneration and Local Services,Direct Services,Supplies and Services,304221,Equipment and Materials,08/11/2018,3513251-PHBII41397,"1,269.72",JT DOVE LTD.
Regeneration and Local Services,Direct Services,Supplies and Services,304221,Equipment and Materials,08/11/2018,3513251-PHBII41398,739.98,JT DOVE LTD.
Regeneration and Local Services,Direct Services,Supplies and Services,304259,Equipment and Materials,08/11/2018,3513252-1809175,"5,194.00",JUB HOLLAND.
Children and Young Peoples Services,Head of Education and Skills,Transport,230008,Contract Hire,08/11/2018,3513253-M053/1018,"1,395.00",K & R TAXIS (STANLEY).
Children and Young Peoples Services,Head of Education and Skills,Transport,230008,Contract Hire,08/11/2018,3513253-M053/OCT,"1,395.00",K & R TAXIS (STANLEY).
Regeneration and Local Services,Technical Services,Third Party Payments 4THIRD,430100,Rendered by Private Contractors,08/11/2018,3513261-2018,"51,254.79",L & G PLANT HIRE & SALES LTD.
Resources,Digital and Customer Services,Supplies and Services,342051,Computers and Communications,08/11/2018,3513270-INV-10-000000242,"6,500.00",LUMI TECHNOLOGIES T/A IML INTERACTIVE UK LTD.
Regeneration and Local Services,Culture & Sport,Supplies and Services,338047,Services,08/11/2018,3513275-ONCEUPONACHRISTMAS,625.00,MARK IAN THOMPSON.
Regeneration and Local Services,Technical Services,Supplies and Services,304221,Equipment and Materials,08/11/2018,3513277-Z000178976,"1,776.63",MARSHALLS MONO LTD.
Children and Young Peoples Services,Head of Childrens Social Care,Third Party Payments 4THIRD,440039,Other third party payments E440,08/11/2018,3513289-16/10/18,817.48,MOVING ON DURHAM.
Adult and Health Services,Public Health,Supplies and Services,384155,Miscellaneous Expenses,08/11/2018,3513313-1000057769,"70,531.67",NHS BUSINESS SERVICES AUTHORITY (NHSBSA).
Children and Young Peoples Services,"Head of Early Help, Inclusion and Vulnerable Children",Third Party Payments 4THIRD,410037,Rendered by Other Local Authorities,08/11/2018,3513315-22660,"3,402.00",NOMS AGENCY.
Dedicated Schools Grant,DSG High Needs Block,Third Party Payments 4THIRD,440080,Other third party payments E440,08/11/2018,3513317-0000037120,"12,063.99",NORTH EAST AUTISM SOCIETY.
Adult and Health Services,Head of Adults,Third Party Payments 4THIRD,470101,Purchase of Care,08/11/2018,3513317-0000037722,"3,351.52",NORTH EAST AUTISM SOCIETY.
Adult and Health Services,Head of Adults,Third Party Payments 4THIRD,470101,Purchase of Care,08/11/2018,3513317-0000037723,"50,831.46",NORTH EAST AUTISM SOCIETY.
Adult and Health Services,Head of Adults,Third Party Payments 4THIRD,470101,Purchase of Care,08/11/2018,3513317-0000037724,"50,831.46",NORTH EAST AUTISM SOCIETY.
Regeneration and Local Services,Technical Services,Supplies and Services,304221,Equipment and Materials,08/11/2018,3513318-177238,706.40,NORTH EAST CONCRETE LTD.
Regeneration and Local Services,Technical Services,Supplies and Services,304221,Equipment and Materials,08/11/2018,3513318-177621,500.00,NORTH EAST CONCRETE LTD.
Regeneration and Local Services,Direct Services,Transport,215005,Running Costs of Vehicles,08/11/2018,3513325-365711,"15,227.95",OIL NRG LTD.
Regeneration and Local Services,Direct Services,Transport,215022,Running Costs of Vehicles,08/11/2018,3513325-365712,"1,276.96",OIL NRG LTD.
Regeneration and Local Services,Technical Services,Stock A926,926900,Stock in hand-Inventory system,08/11/2018,3513331-XL230035,"3,150.00",PARK ELECTRICAL DISTRIBUTORS LTD.
Regeneration and Local Services,Direct Services,Third Party Payments 4THIRD,430120,Rendered by Private Contractors,08/11/2018,3513332-7904095,850.00,PARKER HANNIFIN LTD.
Regeneration and Local Services,Culture & Sport,Supplies and Services,338047,Services,08/11/2018,3513337-STH4253/2,"1,089.83",PELHAM ASSOCIATES LTD.
Children and Young Peoples Services,"Head of Early Help, Inclusion and Vulnerable Children",Supplies and Services,308011,Furniture,08/11/2018,3513341-SI/57712,617.36,PINEAPPLE CONTRACTS.
Adult and Health Services,Commissioning inc Supporting People,Third Party Payments 4THIRD,479111,Purchase of Care,08/11/2018,3513343-15890/14,"49,400.00",PIONEERING CARE PARTNERSHIP.
Regeneration and Local Services,Technical Services,Stock A926,926900,Stock in hand-Inventory system,08/11/2018,3513347-12165,631.60,PLYTECH UK LTD.
Children and Young Peoples Services,Head of Childrens Social Care,Third Party Payments 4THIRD,425023,Rendered by Voluntary Organisations,08/11/2018,3513348-9013361,"19,194.33",PONTVILLE SCHOOL LTD.
Children and Young Peoples Services,Head of Childrens Social Care,Third Party Payments 4THIRD,425023,Rendered by Voluntary Organisations,08/11/2018,3513348-9013362,"54,723.00",PONTVILLE SCHOOL LTD.
Regeneration and Local Services,Transport and Contracted Services,Construction work A908,908105,Construction work,08/11/2018,3513351-155276,"1,440.00",PREMIER TRAFFIC MANAGEMENT LTD.
Regeneration and Local Services,Direct Services,Supplies and Services,304221,Equipment and Materials,08/11/2018,3513393-335860025529,596.06,SIG TRADING LTD T/A SIG ROOFING.
Adult and Health Services,Head of Adults,Third Party Payments 4THIRD,478151,Purchase of Care,08/11/2018,3513400-21918,"1,437.63",SOVEREIGN CARE NORTH EAST LTD T/A MAPLE HOUSE.
Adult and Health Services,Head of Adults,Third Party Payments 4THIRD,478151,Purchase of Care,08/11/2018,3513400-221018,918.49,SOVEREIGN CARE NORTH EAST LTD T/A MAPLE HOUSE.
Transformation and Partnerships,Partnerships & Community Engagement Div.,Cap Exp on Grants & Other Financial Assistance (REFCUS),918004,Contributions to other bodies 918004,08/11/2018,3513403-VOUCHER14NB-MDUR020/16NB-MDUR027/16AB-MDUR008,"45,535.00",ST JOHN`S HALL FUND.
Adult and Health Services,Head of Adults,Supplies and Services,308013,Furniture,08/11/2018,3513412-180221,647.00,SUPATINT LTD T/A SUPATINT WINDOW FILMS & BLINDS.
Dedicated Schools Grant,DSG High Needs Block,Third Party Payments 4THIRD,425005,Rendered by Voluntary Organisations,08/11/2018,3513419-675,"9,615.38",TALBOT HOUSE SCHOOL.
Regeneration and Local Services,Economic Development and Housing,Supplies and Services,384700,Miscellaneous Expenses,08/11/2018,3513425-RED-11-2018-037,"1,500.00",THE EMPLOYABILITY TRUST.
Regeneration and Local Services,Culture & Sport,Supplies and Services,338047,Services,08/11/2018,3513430-13334,"1,089.83",THE MARKHAM GROUP T/A THE MARKHAM AGENCY LTD.
Resources,Legal & Democratic Services,Supplies and Services,304259,Equipment and Materials,08/11/2018,3513435-60303,720.50,TMR EXECUTIVE AGENCY LTD.
Resources,Legal & Democratic Services,Supplies and Services,304259,Equipment and Materials,08/11/2018,3513435-60304,720.50,TMR EXECUTIVE AGENCY LTD.
Children and Young Peoples Services,Head of Education and Skills,Transport,230008,Contract Hire,08/11/2018,3513440-GAPINVOICE108,"1,350.00",TRIDENT TAXIS.
Dedicated Schools Grant,DSG High Needs Block,Central Support and Other Recharges,689996,Unclassified E690,08/11/2018,3513453-CAS-10-2018-144,"18,569.13",VICTORIA LANE ACADEMY.
Children and Young Peoples Services,Head of Education and Skills,Supplies and Services,338027,Services,08/11/2018,3513465-2750,"1,359.82",WHITE ROSE MATHS.
Regeneration and Local Services,EnvironmentHealth & Consumer Protection,Third Party Payments 4THIRD,430100,Rendered by Private Contractors,08/11/2018,3513477-1112,540.00,YOU`RE SECURE NORTHEAST.
Regeneration and Local Services,Technical Services,Third Party Payments 4THIRD,430100,Rendered by Private Contractors,09/11/2018,3513490-001729,504.00,A PARRY MOBILE WELDING & FABRICATION.
Regeneration and Local Services,Technical Services,Third Party Payments 4THIRD,430100,Rendered by Private Contractors,09/11/2018,3513490-001731,"1,008.00",A PARRY MOBILE WELDING & FABRICATION.
Children and Young Peoples Services,Head of Childrens Social Care,Third Party Payments 4THIRD,425021,Rendered by Voluntary Organisations,09/11/2018,3513496-INV-0736,"6,133.68",ADVOCATE RECRUITMENT LTD.
Regeneration and Local Services,Technical Services,Supplies and Services,304221,Equipment and Materials,09/11/2018,3513498-27314475,564.82,AGGREGATE INDUSTRIES UK LTD.
Regeneration and Local Services,Technical Services,Supplies and Services,304221,Equipment and Materials,09/11/2018,3513498-27314476,805.76,AGGREGATE INDUSTRIES UK LTD.
Regeneration and Local Services,Technical Services,Supplies and Services,304221,Equipment and Materials,09/11/2018,3513498-27314478,"3,642.28",AGGREGATE INDUSTRIES UK LTD.
Regeneration and Local Services,Technical Services,Supplies and Services,304221,Equipment and Materials,09/11/2018,3513498-27314479,"1,151.88",AGGREGATE INDUSTRIES UK LTD.
Regeneration and Local Services,Direct Services,Third Party Payments 4THIRD,430100,Rendered by Private Contractors,09/11/2018,3513499-SIN021645,"1,266.00",AIREDALE GROUP T/A AIREDALE CATERING EQUIPMENT LTD.
Children and Young Peoples Services,"Head of Early Help, Inclusion and Vulnerable Children",Premises,108251,Service Repairs and Maintenance,09/11/2018,3513501-51984,908.80,ALARM RADIO MONITORING LTD.
Regeneration and Local Services,Culture & Sport,Supplies and Services,312013,Newspapers books and periodicals E312,09/11/2018,3513514-5871968,554.64,ASKEWS & HOLTS LIBRARY SERVICES LTD.
Regeneration and Local Services,Technical Services,Supplies and Services,338027,Services,09/11/2018,3513515-18037178,899.73,ATKINS GLOBAL.
Regeneration and Local Services,Direct Services,Third Party Payments 4THIRD,430100,Rendered by Private Contractors,09/11/2018,3513523-SI/73504,"21,050.00",BARTEC AUTO ID.
Regeneration and Local Services,Direct Services,Third Party Payments 4THIRD,430100,Rendered by Private Contractors,09/11/2018,3513523-SI/73628,"2,450.00",BARTEC AUTO ID.
Regeneration and Local Services,Direct Services,Third Party Payments 4THIRD,430100,Rendered by Private Contractors,09/11/2018,3513523-SI/73658,"3,450.00",BARTEC AUTO ID.
Children and Young Peoples Services,Head of Education and Skills,Supplies and Services,338027,Services,09/11/2018,3513526-0005,560.00,BERNARD CLARK (CONSULTANT).
Adult and Health Services,Head of Adults,Supplies and Services,338366,Services,09/11/2018,3513545-53753,"1,002.35",CARE ABILITY.
Regeneration and Local Services,Direct Services,Supplies and Services,304221,Equipment and Materials,09/11/2018,3513546-851802658,"3,157.00",CARLISLE CONSTRUCTION MATERIALS LTD.
Regeneration and Local Services,Direct Services,Supplies and Services,304221,Equipment and Materials,09/11/2018,3513561-DRM/181535,554.59,CITY ELECTRICAL FACTORS LTD.
Children and Young Peoples Services,Head of Childrens Social Care,Transport,230005,Contract Hire,09/11/2018,3513576-108323,547.80,CROFT BUSINESS SERVICES (UK) LTD T/A CROFT TAXIS.
Children and Young Peoples Services,Head of Childrens Social Care,Transport,230005,Contract Hire,09/11/2018,3513576-108328,569.92,CROFT BUSINESS SERVICES (UK) LTD T/A CROFT TAXIS.
Children and Young Peoples Services,Head of Childrens Social Care,Transport,230005,Contract Hire,09/11/2018,3513576-108332,741.20,CROFT BUSINESS SERVICES (UK) LTD T/A CROFT TAXIS.
Children and Young Peoples Services,Head of Childrens Social Care,Transport,230005,Contract Hire,09/11/2018,3513576-108344,741.20,CROFT BUSINESS SERVICES (UK) LTD T/A CROFT TAXIS.
Children and Young Peoples Services,Head of Childrens Social Care,Transport,230005,Contract Hire,09/11/2018,3513576-108347,699.99,CROFT BUSINESS SERVICES (UK) LTD T/A CROFT TAXIS.
Children and Young Peoples Services,Head of Childrens Social Care,Transport,230005,Contract Hire,09/11/2018,3513576-108354,569.92,CROFT BUSINESS SERVICES (UK) LTD T/A CROFT TAXIS.
Children and Young Peoples Services,Head of Childrens Social Care,Transport,230005,Contract Hire,09/11/2018,3513576-108356,547.80,CROFT BUSINESS SERVICES (UK) LTD T/A CROFT TAXIS.
Children and Young Peoples Services,Head of Childrens Social Care,Transport,230005,Contract Hire,09/11/2018,3513576-108362,903.95,CROFT BUSINESS SERVICES (UK) LTD T/A CROFT TAXIS.
Children and Young Peoples Services,Head of Childrens Social Care,Transport,230005,Contract Hire,09/11/2018,3513576-108365,911.26,CROFT BUSINESS SERVICES (UK) LTD T/A CROFT TAXIS.
Children and Young Peoples Services,Head of Childrens Social Care,Transport,230005,Contract Hire,09/11/2018,3513576-108374,569.92,CROFT BUSINESS SERVICES (UK) LTD T/A CROFT TAXIS.
Children and Young Peoples Services,Head of Childrens Social Care,Transport,230005,Contract Hire,09/11/2018,3513576-108377,547.80,CROFT BUSINESS SERVICES (UK) LTD T/A CROFT TAXIS.
Children and Young Peoples Services,Head of Childrens Social Care,Transport,230005,Contract Hire,09/11/2018,3513576-108379,547.80,CROFT BUSINESS SERVICES (UK) LTD T/A CROFT TAXIS.
Children and Young Peoples Services,Head of Childrens Social Care,Transport,230005,Contract Hire,09/11/2018,3513576-108383,712.40,CROFT BUSINESS SERVICES (UK) LTD T/A CROFT TAXIS.
Children and Young Peoples Services,Head of Childrens Social Care,Transport,230005,Contract Hire,09/11/2018,3513576-108393,725.42,CROFT BUSINESS SERVICES (UK) LTD T/A CROFT TAXIS.
Children and Young Peoples Services,Head of Childrens Social Care,Transport,230005,Contract Hire,09/11/2018,3513576-108396,547.88,CROFT BUSINESS SERVICES (UK) LTD T/A CROFT TAXIS.
Children and Young Peoples Services,Head of Childrens Social Care,Third Party Payments 4THIRD,425041,Rendered by Voluntary Organisations,09/11/2018,3513583-3384746,"43,000.00",DARLINGTON BOROUGH COUNCIL.
Regeneration and Local Services,Direct Services,Third Party Payments 4THIRD,430101,Rendered by Private Contractors,09/11/2018,3513591-IV1049203,793.90,DIRECT TYRE MANAGEMENT LTD (DTM).
Regeneration and Local Services,Direct Services,Supplies and Services,384974,Miscellaneous Expenses,09/11/2018,3513594-NEI-EXP-11-2018-004,"40,000.00",DRIVER & VEHICLE STANDARDS AGENCY (DVSA).
Transformation and Partnerships,Partnerships & Community Engagement Div.,Supplies and Services,384086,Miscellaneous Expenses,09/11/2018,3513598-VOUCHER18NB-DCTY012EDUR034STAN015EDRC0163TWN013,"2,000.00",DURHAM REMEMBRANCE.
Regeneration and Local Services,Direct Services,Supplies and Services,304221,Equipment and Materials,09/11/2018,3513603-059-233085,976.74,EDMUNDSON ELECTRICAL LTD.
Regeneration and Local Services,Culture & Sport,Supplies and Services,338047,Services,09/11/2018,3513609-GALA30,"5,000.00",EMILY BAXENDALE.
Regeneration and Local Services,Technical Services,Supplies and Services,304357,Equipment and Materials,09/11/2018,3513627-DCC141018,"18,283.97",GAP GROUP LTD.
Regeneration and Local Services,Direct Services,Supplies and Services,304221,Equipment and Materials,09/11/2018,3513633-190160,860.36,GLOBAL LIFT EQUIPMENT LTD.
Regeneration and Local Services,Economic Development and Housing,Vehicles Equipment Furniture and Fittings,912529,Purchase-equipment,09/11/2018,3513636-GPS/435,"2,500.00",GREEN PROPERTY SERVICES LTD..
Regeneration and Local Services,Technical Services,Stock A926,926900,Stock in hand-Inventory system,09/11/2018,3513638-06/765721,776.80,GREENHAM TRADING LTD.
Adult and Health Services,Head of Adults,Third Party Payments 4THIRD,478151,Purchase of Care,09/11/2018,3513646-HCL47/201,"1,921.78",HIGHLEA CARE LTD.
Adult and Health Services,Head of Adults,Third Party Payments 4THIRD,478151,Purchase of Care,09/11/2018,3513646-HCL48/201,"2,576.32",HIGHLEA CARE LTD.
Adult and Health Services,Head of Adults,Third Party Payments 4THIRD,478151,Purchase of Care,09/11/2018,3513646-HCL49/201,"2,583.36",HIGHLEA CARE LTD.
Children and Young Peoples Services,Head of Childrens Social Care,Third Party Payments 4THIRD,425021,Rendered by Voluntary Organisations,09/11/2018,3513659-4764,"3,520.00",HOWARD HOUSE CARE LTD.
Transformation and Partnerships,Partnerships & Community Engagement Div.,Supplies and Services,352001,Conference Expenses,09/11/2018,3513662-4836,900.00,HSF TRAINING LTD.
Adult and Health Services,Commissioning inc Supporting People,Supplies and Services,338089,Services,09/11/2018,3513662-4837,900.00,HSF TRAINING LTD.
Regeneration and Local Services,Direct Services,Third Party Payments 4THIRD,430100,Rendered by Private Contractors,09/11/2018,3513664-2562,"3,930.00",IAN C LIDDLE.
Regeneration and Local Services,Direct Services,Premises,108099,Service Repairs and Maintenance,09/11/2018,3513679-111,"1,919.00",JN KEARTON.
Regeneration and Local Services,Technical Services,Supplies and Services,304221,Equipment and Materials,09/11/2018,3513683-BII271749,635.16,JT DOVE LTD.
Regeneration and Local Services,Direct Services,Supplies and Services,304221,Equipment and Materials,09/11/2018,3513683-BII271755,691.44,JT DOVE LTD.
Children and Young Peoples Services,Head of Childrens Social Care,Transport,230005,Contract Hire,09/11/2018,3513697-4142,"2,967.00",LOCAL TRANSPORT LTD.
Children and Young Peoples Services,Head of Childrens Social Care,Transport,230005,Contract Hire,09/11/2018,3513697-4145,920.00,LOCAL TRANSPORT LTD.
Children and Young Peoples Services,Head of Childrens Social Care,Transport,230005,Contract Hire,09/11/2018,3513697-4147,"3,779.00",LOCAL TRANSPORT LTD.
Children and Young Peoples Services,Head of Childrens Social Care,Transport,230005,Contract Hire,09/11/2018,3513697-4149,734.00,LOCAL TRANSPORT LTD.
Children and Young Peoples Services,Head of Childrens Social Care,Transport,230005,Contract Hire,09/11/2018,3513697-4150,"1,140.00",LOCAL TRANSPORT LTD.
Children and Young Peoples Services,Head of Childrens Social Care,Transport,230005,Contract Hire,09/11/2018,3513697-4156,792.00,LOCAL TRANSPORT LTD.
Children and Young Peoples Services,Head of Childrens Social Care,Transport,230005,Contract Hire,09/11/2018,3513697-4158,"1,200.00",LOCAL TRANSPORT LTD.
Children and Young Peoples Services,Head of Childrens Social Care,Transport,230005,Contract Hire,09/11/2018,3513697-4161,800.00,LOCAL TRANSPORT LTD.
Children and Young Peoples Services,Head of Childrens Social Care,Transport,230005,Contract Hire,09/11/2018,3513697-4162,800.00,LOCAL TRANSPORT LTD.
Adult and Health Services,Head of Adults,Supplies and Services,338370,Services,09/11/2018,3513706-42913,"18,171.00",MEDEQUIP ASSISTIVE TECHNOLOGY LTD.
Children and Young Peoples Services,Childrens Services Operational Support,Supplies and Services,338089,Services,09/11/2018,3513719-DPSW13,"1,783.99",MRS A GLADMAN T/A SAFEGUARDING CHILDREN TRAINING & CONSULTANCY LTD.
Regeneration and Local Services,Culture & Sport,Supplies and Services,312013,Newspapers books and periodicals E312,09/11/2018,3513731-006780,596.17,NEWSMARKET.
Children and Young Peoples Services,Head of Childrens Social Care,Third Party Payments 4THIRD,425041,Rendered by Voluntary Organisations,09/11/2018,3513734-21208948,"43,000.00",NORTH TYNESIDE COUNCIL.
Regeneration and Local Services,Technical Services,Stock A926,926900,Stock in hand-Inventory system,09/11/2018,3513745-XL230059,"2,620.00",PARK ELECTRICAL DISTRIBUTORS LTD.
Regeneration and Local Services,Technical Services,Stock A926,926900,Stock in hand-Inventory system,09/11/2018,3513745-XL230152,520.00,PARK ELECTRICAL DISTRIBUTORS LTD.
Regeneration and Local Services,Technical Services,Stock A926,926900,Stock in hand-Inventory system,09/11/2018,3513745-XL230178,"1,044.05",PARK ELECTRICAL DISTRIBUTORS LTD.
Regeneration and Local Services,Direct Services,Supplies and Services,304259,Equipment and Materials,09/11/2018,3513760-155513,"1,120.00",PREMIER TRAFFIC MANAGEMENT LTD.
Dedicated Schools Grant,DSG High Needs Block,Employees,080025,Agency Staff,09/11/2018,3513765-51334272,804.48,PROTOCOL EDUCATION LTD.
Dedicated Schools Grant,DSG High Needs Block,Employees,080025,Agency Staff,09/11/2018,3513765-51334274,512.48,PROTOCOL EDUCATION LTD.
Dedicated Schools Grant,DSG High Needs Block,Employees,080025,Agency Staff,09/11/2018,3513765-51334275,527.63,PROTOCOL EDUCATION LTD.
Regeneration and Local Services,Spatial Policy Planning Assets & Environment,Supplies and Services,352001,Conference Expenses,09/11/2018,3513767-2018-36,730.00,QUEENS HALL ARTS.
Regeneration and Local Services,Technical Services,Third Party Payments 4THIRD,430100,Rendered by Private Contractors,09/11/2018,3513770-2800/181054,"77,652.24",RAINTON CONSTRUCTION LTD.
Regeneration and Local Services,Spatial Policy Planning Assets & Environment,Supplies and Services,338066,Services,09/11/2018,3513775-2116,"5,822.50",RESOURCES FOR CHANGE LTD.
Regeneration and Local Services,Technical Services,Stock A926,926900,Stock in hand-Inventory system,09/11/2018,3513778-RSIN0279038,"1,035.00",RIGBY TAYLOR LTD.
Regeneration and Local Services,Direct Services,Supplies and Services,304221,Equipment and Materials,09/11/2018,3513788-291752949,590.11,RS COMPONENTS LTD.
Adult and Health Services,Head of Adults,Third Party Payments 4THIRD,470101,Purchase of Care,09/11/2018,3513790-IN001457,"16,899.03",S/C 202741 CAMBIAN INTERACT CARE SERVICES LTD.
Adult and Health Services,Head of Adults,Third Party Payments 4THIRD,470101,Purchase of Care,09/11/2018,3513790-IN001489,"16,353.90",S/C 202741 CAMBIAN INTERACT CARE SERVICES LTD.
Regeneration and Local Services,Spatial Policy Planning Assets & Environment,Supplies and Services,338066,Services,09/11/2018,3513803-1023,"2,000.00",SIMON LEES T/A COUNTRYSIDE TRAINING PARTNERSHIP.
Resources,Digital and Customer Services,Supplies and Services,342051,Computers and Communications,09/11/2018,3513810-INV02042586,"4,425.29",SOFTCAT LTD.
Regeneration and Local Services,Direct Services,Third Party Payments 4THIRD,430100,Rendered by Private Contractors,09/11/2018,3513816-6424,"18,226.84",ST ASTIER LTD.
Children and Young Peoples Services,Head of Childrens Social Care,Transport,230005,Contract Hire,09/11/2018,3513821-1810002,"2,070.00",STEVEN PRATT T/A PTL TAXIS DURHAM.
Children and Young Peoples Services,Head of Childrens Social Care,Transport,230005,Contract Hire,09/11/2018,3513821-1810003,"2,070.00",STEVEN PRATT T/A PTL TAXIS DURHAM.
Children and Young Peoples Services,Head of Childrens Social Care,Transport,230005,Contract Hire,09/11/2018,3513821-1810004,"2,250.00",STEVEN PRATT T/A PTL TAXIS DURHAM.
Children and Young Peoples Services,Head of Childrens Social Care,Transport,230005,Contract Hire,09/11/2018,3513821-1810015,"1,334.50",STEVEN PRATT T/A PTL TAXIS DURHAM.
Regeneration and Local Services,Culture & Sport,Supplies and Services,384956,Miscellaneous Expenses,09/11/2018,3513823-4223,900.00,SUBSTANCE 2005 LTD.
Regeneration and Local Services,Direct Services,Third Party Payments 4THIRD,430100,Rendered by Private Contractors,09/11/2018,3513826-180199,"1,171.00",SUPATINT LTD T/A SUPATINT WINDOW FILMS & BLINDS.
Regeneration and Local Services,Technical Services,Stock A926,926900,Stock in hand-Inventory system,09/11/2018,3513828-2784049,"1,114.46",SUPPLIES TEAM LTD NOW KNOWN AS BANNER GROUP LTD.
Regeneration and Local Services,Technical Services,Construction work A908,908105,Construction work,09/11/2018,3513829-8846,"2,600.00",SURVEY & MARKETING SERVICES LTD T/A SMS MARKET RESEARCH.
Regeneration and Local Services,Culture & Sport,Supplies and Services,338047,Services,09/11/2018,3513830-GALA005,943.33,SUSAN MULHOLLAND (ENTERTAINER).
Regeneration and Local Services,Direct Services,Supplies and Services,304221,Equipment and Materials,09/11/2018,3513836-2767463,"3,090.00",T CROSSLING & CO LTD.
Regeneration and Local Services,Direct Services,Third Party Payments 4THIRD,430100,Rendered by Private Contractors,09/11/2018,3513837-JE016721TLHLB,"4,796.00",T MANNERS & SONS LTD.
Regeneration and Local Services,Culture & Sport,Employees,080030,Agency Staff,09/11/2018,3513846-TT/077A,520.00,TERESA DONNELLAN T/A T TRAINING.
Transformation and Partnerships,Partnerships & Community Engagement Div.,Supplies and Services,384086,Miscellaneous Expenses,09/11/2018,3513851-VOUCHERADAE10-18,960.00,THE HUB OF WISHES.
Regeneration and Local Services,Direct Services,Premises,108099,Service Repairs and Maintenance,09/11/2018,3513854-0190,925.00,THE SKILL MILL LTD.
Regeneration and Local Services,Direct Services,Third Party Payments 4THIRD,430100,Rendered by Private Contractors,09/11/2018,3513854-0195,510.00,THE SKILL MILL LTD.
Regeneration and Local Services,Technical Services,Stock A926,926900,Stock in hand-Inventory system,09/11/2018,3513858-N/IN232081,544.50,THOMAS OWEN & SONS (NEWCASTLE) LTD.
Resources,Finance & Transactional Services,Supplies and Services,338066,Services,09/11/2018,3513891-48439,"6,474.00",WILKS HEAD & EVE.
Regeneration and Local Services,Culture & Sport,Supplies and Services,304337,Equipment and Materials,09/11/2018,3513899-I-0536516,"1,483.55",ZOGGS INTERNATIONAL LTD.
Regeneration and Local Services,Direct Services,Supplies and Services,312009,Newspapers books and periodicals E312,12/11/2018,3513901-359459,"2,200.00",(PASS) PORTABLE APPLIANCE SAFETY SERVICES LTD.
Children and Young Peoples Services,Head of Education and Skills,Transport,230008,Contract Hire,12/11/2018,3513903-N58311018,"2,535.00",1ST AID COMMERCIALS LTD.
Children and Young Peoples Services,Head of Education and Skills,Transport,230007,Contract Hire,12/11/2018,3513905-101801,"1,420.00",24/7 TAXI SERVICES LTD.
Children and Young Peoples Services,Head of Education and Skills,Transport,230007,Contract Hire,12/11/2018,3513907-5,882.00,A & C TAXIS.
Children and Young Peoples Services,Head of Education and Skills,Transport,230006,Contract Hire,12/11/2018,3513909-45,774.00,A HJ JOBLING T/A CASTLE TAXIS.
Children and Young Peoples Services,Head of Education and Skills,Transport,230007,Contract Hire,12/11/2018,3513911-E5/SF,986.00,AABAT TAXIS.
Dedicated Schools Grant,DSG High Needs Block,Transport,230010,Contract Hire,12/11/2018,3513911-E19/SX/2018,660.00,AABAT TAXIS.
Children and Young Peoples Services,Head of Education and Skills,Transport,230012,Contract Hire,12/11/2018,3513911-E15/SS/2018,"1,152.00",AABAT TAXIS.
Children and Young Peoples Services,Head of Education and Skills,Transport,230012,Contract Hire,12/11/2018,3513911-E16/ST/2018,"1,062.00",AABAT TAXIS.
Children and Young Peoples Services,Head of Education and Skills,Transport,230008,Contract Hire,12/11/2018,3513911-E1/SA,"2,702.00",AABAT TAXIS.
Children and Young Peoples Services,Head of Education and Skills,Transport,230008,Contract Hire,12/11/2018,3513911-E12/SP,"2,160.00",AABAT TAXIS.
Children and Young Peoples Services,Head of Education and Skills,Transport,230008,Contract Hire,12/11/2018,3513911-E17/SV-W145,"1,620.00",AABAT TAXIS.
Children and Young Peoples Services,Head of Education and Skills,Transport,230008,Contract Hire,12/11/2018,3513911-E21/C12,"1,500.00",AABAT TAXIS.
Children and Young Peoples Services,Head of Education and Skills,Transport,230008,Contract Hire,12/11/2018,3513911-E6/SH,"1,560.00",AABAT TAXIS.
Children and Young Peoples Services,Head of Education and Skills,Transport,230008,Contract Hire,12/11/2018,3513911-E8/SK,"1,350.00",AABAT TAXIS.
Children and Young Peoples Services,Head of Education and Skills,Transport,230008,Contract Hire,12/11/2018,3513911-E9/SL,"1,710.00",AABAT TAXIS.
Adult and Health Services,Head of Adults,Transport,230005,Contract Hire,12/11/2018,3513911-E24/BC,600.00,AABAT TAXIS.
Children and Young Peoples Services,Head of Childrens Social Care,Transport,230005,Contract Hire,12/11/2018,3513911-E46/ZD,"5,000.00",AABAT TAXIS.
Children and Young Peoples Services,Head of Childrens Social Care,Transport,230005,Contract Hire,12/11/2018,3513911-E62/ZC,"1,920.00",AABAT TAXIS.
Adult and Health Services,Head of Adults,Transport,230005,Contract Hire,12/11/2018,3513911-F19/SW-WV111,800.00,AABAT TAXIS.
Children and Young Peoples Services,Head of Education and Skills,Transport,230012,Contract Hire,12/11/2018,3513912-O397,"1,440.00",ABC & OUSTON CABS.
Resources,Legal & Democratic Services,Supplies and Services,332029,Printing Stationery and Gen Off Exps,12/11/2018,3513915-PSI0071319,653.02,ADARE INSPIRED COMMUNICATIONS.
Regeneration and Local Services,Transport and Contracted Services,Construction work A908,908105,Construction work,12/11/2018,3513916-39739251-61,"1,052.00",ADT FIRE & SECURITY PLC.
Regeneration and Local Services,Transport and Contracted Services,Construction work A908,908105,Construction work,12/11/2018,3513916-39739274-61,"2,484.25",ADT FIRE & SECURITY PLC.
Regeneration and Local Services,Transport and Contracted Services,Construction work A908,908105,Construction work,12/11/2018,3513916-39739288-61,"7,906.00",ADT FIRE & SECURITY PLC.
Regeneration and Local Services,Technical Services,Supplies and Services,304221,Equipment and Materials,12/11/2018,3513918-27321020,941.12,AGGREGATE INDUSTRIES UK LTD.
Regeneration and Local Services,Technical Services,Supplies and Services,304221,Equipment and Materials,12/11/2018,3513918-27321021,"2,808.72",AGGREGATE INDUSTRIES UK LTD.
Regeneration and Local Services,Technical Services,Supplies and Services,304221,Equipment and Materials,12/11/2018,3513918-27321022,"1,172.76",AGGREGATE INDUSTRIES UK LTD.
Regeneration and Local Services,Technical Services,Supplies and Services,304221,Equipment and Materials,12/11/2018,3513918-27321023,873.40,AGGREGATE INDUSTRIES UK LTD.
Regeneration and Local Services,Technical Services,Supplies and Services,304221,Equipment and Materials,12/11/2018,3513918-27327479,"1,587.76",AGGREGATE INDUSTRIES UK LTD.
Regeneration and Local Services,Technical Services,Supplies and Services,304221,Equipment and Materials,12/11/2018,3513918-27327481,934.36,AGGREGATE INDUSTRIES UK LTD.
Regeneration and Local Services,Technical Services,Supplies and Services,304221,Equipment and Materials,12/11/2018,3513918-27327482,"2,114.68",AGGREGATE INDUSTRIES UK LTD.
Regeneration and Local Services,Technical Services,Supplies and Services,304221,Equipment and Materials,12/11/2018,3513918-27327484,870.00,AGGREGATE INDUSTRIES UK LTD.
Resources,Digital and Customer Services,Supplies and Services,332029,Printing Stationery and Gen Off Exps,12/11/2018,3513919-118623,"14,032.92",AGNE LTD T/A ALPHAGRAPHICS.
Regeneration and Local Services,Culture & Sport,Supplies and Services,338047,Services,12/11/2018,3513921-13414,"1,500.00",ALAN BRODIE REPRESENTATION LTD.
Regeneration and Local Services,Direct Services,Third Party Payments 4THIRD,430100,Rendered by Private Contractors,12/11/2018,3513922-73527,500.00,ALAN SEWELL LTD.
Regeneration and Local Services,Culture & Sport,Supplies and Services,304259,Equipment and Materials,12/11/2018,3513923-163733,"1,130.00",ALBANY OFFICE EQUIPMENT (WHOLESALE) LTD.
Regeneration and Local Services,Culture & Sport,Supplies and Services,308011,Furniture,12/11/2018,3513923-163732,565.00,ALBANY OFFICE EQUIPMENT (WHOLESALE) LTD.
Resources,Legal & Democratic Services,Supplies and Services,338057,Services,12/11/2018,3513924-0000031673,965.00,ALERE FORENSICS.
Children and Young Peoples Services,Head of Education and Skills,Transport,230007,Contract Hire,12/11/2018,3513929-DCC024-3030,600.65,ALSTON ROAD GARAGE.
Children and Young Peoples Services,Head of Education and Skills,Transport,230007,Contract Hire,12/11/2018,3513929-DCC024-3035,856.80,ALSTON ROAD GARAGE.
Children and Young Peoples Services,Head of Education and Skills,Transport,230007,Contract Hire,12/11/2018,3513929-DCC024-3037,"1,413.00",ALSTON ROAD GARAGE.
Children and Young Peoples Services,Head of Education and Skills,Transport,230007,Contract Hire,12/11/2018,3513929-DCC024-3039,"1,612.80",ALSTON ROAD GARAGE.
Children and Young Peoples Services,Head of Education and Skills,Transport,230007,Contract Hire,12/11/2018,3513929-DCC024-3273,"1,141.20",ALSTON ROAD GARAGE.
Children and Young Peoples Services,Head of Education and Skills,Transport,230007,Contract Hire,12/11/2018,3513929-DCC024-3345,793.88,ALSTON ROAD GARAGE.
Regeneration and Local Services,Direct Services,Third Party Payments 4THIRD,430100,Rendered by Private Contractors,12/11/2018,3513931-16987,"3,450.00",AMBIC LTD.
Regeneration and Local Services,Direct Services,Third Party Payments 4THIRD,430100,Rendered by Private Contractors,12/11/2018,3513931-16999,"6,250.00",AMBIC LTD.
Children and Young Peoples Services,Head of Education and Skills,Transport,230008,Contract Hire,12/11/2018,3513932-E053-OCT,"1,724.00",ANDREW PYGALL T/A ARP TAXIS.
Regeneration and Local Services,Spatial Policy Planning Assets & Environment,Supplies and Services,342053,Computers and Communications,12/11/2018,3513942-IN-013-011274,"1,680.56",ARGUS SOFTWARE (UK) LTD.
Children and Young Peoples Services,Head of Education and Skills,Transport,230012,Contract Hire,12/11/2018,3513943-E136OCT,976.40,ARMSTRONG`S TAXIS.
Children and Young Peoples Services,Head of Education and Skills,Transport,230008,Contract Hire,12/11/2018,3513943-OCT2018-0,"1,139.00",ARMSTRONG`S TAXIS.
Regeneration and Local Services,Culture & Sport,Premises,108099,Service Repairs and Maintenance,12/11/2018,3513947-6517,900.00,AS AUDIO SERVICES.
Regeneration and Local Services,Culture & Sport,Supplies and Services,384199,Miscellaneous Expenses,12/11/2018,3513947-6518,"3,800.00",AS AUDIO SERVICES.
Regeneration and Local Services,Technical Services,Stock A926,926900,Stock in hand-Inventory system,12/11/2018,3513949-SIN387868,752.00,ATF SUPPLIES LTD.
Children and Young Peoples Services,Head of Education and Skills,Transport,230007,Contract Hire,12/11/2018,3513950-DCC11OCT18,"1,440.00",ATLAS TAXIS BISHOP AUCKLAND.
Children and Young Peoples Services,Head of Education and Skills,Transport,230008,Contract Hire,12/11/2018,3513950-DCC10OCT18,"1,775.44",ATLAS TAXIS BISHOP AUCKLAND.
Children and Young Peoples Services,Head of Education and Skills,Transport,230008,Contract Hire,12/11/2018,3513950-DCC13OCT18,"2,340.00",ATLAS TAXIS BISHOP AUCKLAND.
Children and Young Peoples Services,Head of Education and Skills,Transport,230008,Contract Hire,12/11/2018,3513950-DCC1OCT18,"1,859.75",ATLAS TAXIS BISHOP AUCKLAND.
Children and Young Peoples Services,Head of Education and Skills,Transport,230008,Contract Hire,12/11/2018,3513950-DCC6OCT18,"2,160.00",ATLAS TAXIS BISHOP AUCKLAND.
Adult and Health Services,Head of Adults,Transport,230005,Contract Hire,12/11/2018,3513950-DCC14OCT18,"1,620.00",ATLAS TAXIS BISHOP AUCKLAND.
Adult and Health Services,Head of Adults,Transport,230005,Contract Hire,12/11/2018,3513950-DCC2OCT18,"1,840.00",ATLAS TAXIS BISHOP AUCKLAND.
Children and Young Peoples Services,Head of Education and Skills,Transport,230007,Contract Hire,12/11/2018,3513951-03840,666.00,ATLAS TAXIS CONSETT.
Children and Young Peoples Services,Head of Education and Skills,Transport,230007,Contract Hire,12/11/2018,3513951-03842,695.40,ATLAS TAXIS CONSETT.
Children and Young Peoples Services,Head of Education and Skills,Transport,230007,Contract Hire,12/11/2018,3513951-03843,640.00,ATLAS TAXIS CONSETT.
Children and Young Peoples Services,Head of Education and Skills,Transport,230007,Contract Hire,12/11/2018,3513951-03847,553.60,ATLAS TAXIS CONSETT.
Children and Young Peoples Services,Head of Education and Skills,Transport,230009,Contract Hire,12/11/2018,3513951-03851,"1,270.00",ATLAS TAXIS CONSETT.
Children and Young Peoples Services,Head of Education and Skills,Transport,230006,Contract Hire,12/11/2018,3513951-03849,"1,047.27",ATLAS TAXIS CONSETT.
Regeneration and Local Services,Culture & Sport,Supplies and Services,338047,Services,12/11/2018,3513955-SIN021101,"1,500.00",AVALON PROMOTIONS LTD.
Regeneration and Local Services,Spatial Policy Planning Assets & Environment,Supplies and Services,384199,Miscellaneous Expenses,12/11/2018,3513956-14598,739.00,AWARDED 2 U LTD.
Regeneration and Local Services,Culture & Sport,Supplies and Services,304259,Equipment and Materials,12/11/2018,3513957-31553,950.00,AYCLIFFE FABRICATIONS LTD.
Children and Young Peoples Services,"Head of Early Help, Inclusion and Vulnerable Children",Supplies and Services,308013,Furniture,12/11/2018,3513958-86676,570.00,BAILEYS BLINDS LTD.
Children and Young Peoples Services,Head of Education and Skills,Transport,230003,Contract Hire,12/11/2018,3513965-2158,"1,944.00",BOB SMITH COACHES.
Children and Young Peoples Services,Head of Education and Skills,Transport,230008,Contract Hire,12/11/2018,3513966-73-W076,"1,260.00",BOBS TAXIS.
Adult and Health Services,Head of Adults,Third Party Payments 4THIRD,474101,Purchase of Care,12/11/2018,3513967-CAS-11-2018-068,"24,696.60",BONDCARE WILLINGTON LTD.
Adult and Health Services,Head of Adults,Transport,230005,Contract Hire,12/11/2018,3513972-BZ00276,720.00,BREZ`S TAXIS.
Children and Young Peoples Services,Head of Education and Skills,Transport,230008,Contract Hire,12/11/2018,3513976-A028013,"1,300.00",C & R TAXIS.
Children and Young Peoples Services,Head of Education and Skills,Transport,230008,Contract Hire,12/11/2018,3513976-S026013,"1,275.00",C & R TAXIS.
Children and Young Peoples Services,Head of Education and Skills,Transport,230008,Contract Hire,12/11/2018,3513976-W078013,"2,160.00",C & R TAXIS.
Adult and Health Services,Head of Adults,Supplies and Services,338366,Services,12/11/2018,3513978-54178,"2,492.30",CARE ABILITY.
Children and Young Peoples Services,Head of Education and Skills,Transport,230008,Contract Hire,12/11/2018,3513985-ES02,"1,305.00",CHIPPERS TAXIS.
Children and Young Peoples Services,Childrens Services Operational Support,Supplies and Services,338026,Services,12/11/2018,3513986-RT55,"1,151.50",CHOICES & VOICES CARE LTD.
Children and Young Peoples Services,Head of Education and Skills,Transport,230007,Contract Hire,12/11/2018,3513987-46461,"2,160.00",CHRISTOPHER JAMES GRIERSON T/A GRIERSONS COACHES.
Children and Young Peoples Services,Head of Education and Skills,Transport,230003,Contract Hire,12/11/2018,3513987-46462,"6,696.00",CHRISTOPHER JAMES GRIERSON T/A GRIERSONS COACHES.
Children and Young Peoples Services,Head of Childrens Social Care,Transport,230005,Contract Hire,12/11/2018,3513991-CLUB1841B,556.00,CLUBMAN CABS.
Children and Young Peoples Services,Head of Childrens Social Care,Transport,230005,Contract Hire,12/11/2018,3513991-CLUB1841N,610.00,CLUBMAN CABS.
Children and Young Peoples Services,Head of Childrens Social Care,Transport,230005,Contract Hire,12/11/2018,3513991-CLUB1842B,556.00,CLUBMAN CABS.
Children and Young Peoples Services,Head of Childrens Social Care,Transport,230005,Contract Hire,12/11/2018,3513991-CLUB1842L,610.00,CLUBMAN CABS.
Children and Young Peoples Services,Head of Childrens Social Care,Transport,230005,Contract Hire,12/11/2018,3513991-CLUB1844B,513.00,CLUBMAN CABS.
Children and Young Peoples Services,Head of Education and Skills,Transport,230007,Contract Hire,12/11/2018,3513994-C/10532,"2,864.50",COCHRANES T/A KELVIN TRAVEL.
Children and Young Peoples Services,Head of Education and Skills,Transport,230003,Contract Hire,12/11/2018,3513994-C/10531,"2,184.50",COCHRANES T/A KELVIN TRAVEL.
Adult and Health Services,Head of Adults,Transport,230005,Contract Hire,12/11/2018,3513995-WV104/1018,684.00,COLVIN`S CABS.
Regeneration and Local Services,Direct Services,Supplies and Services,304040,Equipment and Materials,12/11/2018,3514000-CL00224812,990.00,CONSTRUCTIONLINE.
Children and Young Peoples Services,Head of Childrens Social Care,Transport,230005,Contract Hire,12/11/2018,3514007-108329,658.81,CROFT BUSINESS SERVICES (UK) LTD T/A CROFT TAXIS.
Children and Young Peoples Services,Head of Education and Skills,Transport,230006,Contract Hire,12/11/2018,3514009-1598,"2,060.00",DA TAXIS.
Children and Young Peoples Services,Head of Education and Skills,Transport,230008,Contract Hire,12/11/2018,3514009-1596,"1,242.00",DA TAXIS.
Children and Young Peoples Services,Head of Education and Skills,Transport,230008,Contract Hire,12/11/2018,3514010-300,"1,194.00",DA TRAVEL.
Children and Young Peoples Services,Head of Education and Skills,Transport,230008,Contract Hire,12/11/2018,3514016-0052,"3,060.00",DAVID WALKER TAXIS.
Resources,Digital and Customer Services,Stock A926,926900,Stock in hand-Inventory system,12/11/2018,3514020-7402478464,"4,156.90",DELL COMPUTER CORPORATION LTD.
Regeneration and Local Services,Direct Services,Third Party Payments 4THIRD,430101,Rendered by Private Contractors,12/11/2018,3514023-IV1044991,"3,187.29",DIRECT TYRE MANAGEMENT LTD (DTM).
Regeneration and Local Services,Direct Services,Third Party Payments 4THIRD,430101,Rendered by Private Contractors,12/11/2018,3514023-IV1047153,"1,372.05",DIRECT TYRE MANAGEMENT LTD (DTM).
Regeneration and Local Services,Direct Services,Third Party Payments 4THIRD,430101,Rendered by Private Contractors,12/11/2018,3514023-IV1049204,"1,672.72",DIRECT TYRE MANAGEMENT LTD (DTM).
Regeneration and Local Services,Culture & Sport,Supplies and Services,384237,Miscellaneous Expenses,12/11/2018,3514028-RED-11-2018-066,"28,500.00",DURHAM UNIVERSITY.
Dedicated Schools Grant,DSG High Needs Block,Transport,230010,Contract Hire,12/11/2018,3514034-01102018-02-PL009,868.00,EAST DURHAM TAXIS.
Children and Young Peoples Services,Head of Education and Skills,Supplies and Services,372009,Subscriptions E372,12/11/2018,3514036-CAS-11-2018-070,"4,755.69",EDEN LEARNING TRUST T/A FERRYHILL BUSINESS & ENTERPRISE COLLEGE.
Regeneration and Local Services,Direct Services,Supplies and Services,304221,Equipment and Materials,12/11/2018,3514037-059-232908,"1,094.68",EDMUNDSON ELECTRICAL LTD.
Regeneration and Local Services,Direct Services,Supplies and Services,304221,Equipment and Materials,12/11/2018,3514037-059-233264,958.09,EDMUNDSON ELECTRICAL LTD.
Regeneration and Local Services,Direct Services,Premises,106082,Centrally Controlled Rep and Maint,12/11/2018,3514037-059-233770,"1,011.98",EDMUNDSON ELECTRICAL LTD.
Children and Young Peoples Services,Head of Education and Skills,Transport,230007,Contract Hire,12/11/2018,3514044-5124/1018,671.50,ELLIOTTS OF TRIMDON.
Children and Young Peoples Services,Head of Education and Skills,Transport,230007,Contract Hire,12/11/2018,3514044-5182/1018,612.00,ELLIOTTS OF TRIMDON.
Children and Young Peoples Services,Head of Education and Skills,Transport,230008,Contract Hire,12/11/2018,3514044-E065/1018,"1,296.00",ELLIOTTS OF TRIMDON.
Children and Young Peoples Services,Head of Education and Skills,Transport,230008,Contract Hire,12/11/2018,3514044-E122/1018,"1,003.00",ELLIOTTS OF TRIMDON.
Regeneration and Local Services,Technical Services,Stock A926,926900,Stock in hand-Inventory system,12/11/2018,3514046-78SI/62677,881.00,ENCON INSULATION LTD.
Regeneration and Local Services,Direct Services,Supplies and Services,304221,Equipment and Materials,12/11/2018,3514049-6828137,"1,947.00",ESE WORLD LTD.
Adult and Health Services,Head of Adults,Third Party Payments 4THIRD,473101,Purchase of Care,12/11/2018,3514050-9748,"25,669.50",ESPA RESEARCH LTD.
Children and Young Peoples Services,Head of Education and Skills,Construction work A908,908105,Construction work,12/11/2018,3514055-128884/01,675.00,FAIRHURST.
Regeneration and Local Services,Technical Services,Supplies and Services,338027,Services,12/11/2018,3514055-128452/01,525.00,FAIRHURST.
Regeneration and Local Services,Technical Services,Supplies and Services,384199,Miscellaneous Expenses,12/11/2018,3514055-127770/01,675.00,FAIRHURST.
Regeneration and Local Services,Spatial Policy Planning Assets & Environment,Fees,901002,Professional fees 901002,12/11/2018,3514055-128868/02,"1,250.00",FAIRHURST.
Children and Young Peoples Services,Head of Education and Skills,Transport,230009,Contract Hire,12/11/2018,3514058-3347-002,558.00,FERRYHILL VILLAGE TRAVEL.
Dedicated Schools Grant,DSG High Needs Block,Transport,230010,Contract Hire,12/11/2018,3514058-B001-002,"1,600.00",FERRYHILL VILLAGE TRAVEL.
Children and Young Peoples Services,Head of Education and Skills,Transport,230008,Contract Hire,12/11/2018,3514058-M107-002,"1,944.00",FERRYHILL VILLAGE TRAVEL.
Children and Young Peoples Services,Head of Education and Skills,Transport,230008,Contract Hire,12/11/2018,3514058-N060-024,"1,080.00",FERRYHILL VILLAGE TRAVEL.
Children and Young Peoples Services,Head of Education and Skills,Transport,230008,Contract Hire,12/11/2018,3514058-W053-024,"1,354.50",FERRYHILL VILLAGE TRAVEL.
Children and Young Peoples Services,Head of Education and Skills,Transport,230008,Contract Hire,12/11/2018,3514058-W063-002,"2,736.00",FERRYHILL VILLAGE TRAVEL.
Regeneration and Local Services,Transport and Contracted Services,Third Party Payments 4THIRD,430106,Rendered by Private Contractors,12/11/2018,3514058-PUBLICSERVICEOCT/NOV18,"5,692.10",FERRYHILL VILLAGE TRAVEL.
Regeneration and Local Services,Direct Services,Supplies and Services,304221,Equipment and Materials,12/11/2018,3514059-1810-102986,708.18,FLAME HEATING SPARES LTD.
Children and Young Peoples Services,Head of Education and Skills,Transport,230008,Contract Hire,12/11/2018,3514061-1809,"1,620.00",FRANK ATKINSON T/A FJ MINIBUS TRAVEL.
Children and Young Peoples Services,Head of Education and Skills,Transport,230007,Contract Hire,12/11/2018,3514067-101030,"1,040.00",G & P JOHNSON LTD T/A NIGHTINGALE COACHES.
Children and Young Peoples Services,Head of Education and Skills,Transport,230009,Contract Hire,12/11/2018,3514067-101026,"1,170.00",G & P JOHNSON LTD T/A NIGHTINGALE COACHES.
Dedicated Schools Grant,DSG High Needs Block,Transport,230010,Contract Hire,12/11/2018,3514067-101025,"1,020.00",G & P JOHNSON LTD T/A NIGHTINGALE COACHES.
Children and Young Peoples Services,Head of Education and Skills,Transport,230008,Contract Hire,12/11/2018,3514067-101010,"1,844.00",G & P JOHNSON LTD T/A NIGHTINGALE COACHES.
Children and Young Peoples Services,Head of Education and Skills,Transport,230008,Contract Hire,12/11/2018,3514067-101011,"1,404.00",G & P JOHNSON LTD T/A NIGHTINGALE COACHES.
Children and Young Peoples Services,Head of Education and Skills,Transport,230008,Contract Hire,12/11/2018,3514067-101012,"1,206.00",G & P JOHNSON LTD T/A NIGHTINGALE COACHES.
Children and Young Peoples Services,Head of Education and Skills,Transport,230008,Contract Hire,12/11/2018,3514067-101013,"1,566.00",G & P JOHNSON LTD T/A NIGHTINGALE COACHES.
Children and Young Peoples Services,Head of Education and Skills,Transport,230008,Contract Hire,12/11/2018,3514067-101014,"1,008.00",G & P JOHNSON LTD T/A NIGHTINGALE COACHES.
Children and Young Peoples Services,Head of Education and Skills,Transport,230008,Contract Hire,12/11/2018,3514067-101015,"1,260.00",G & P JOHNSON LTD T/A NIGHTINGALE COACHES.
Children and Young Peoples Services,Head of Education and Skills,Transport,230008,Contract Hire,12/11/2018,3514067-101016,882.00,G & P JOHNSON LTD T/A NIGHTINGALE COACHES.
Children and Young Peoples Services,Head of Education and Skills,Transport,230008,Contract Hire,12/11/2018,3514067-101017,"1,260.00",G & P JOHNSON LTD T/A NIGHTINGALE COACHES.
Children and Young Peoples Services,Head of Education and Skills,Transport,230008,Contract Hire,12/11/2018,3514067-101028,"2,124.00",G & P JOHNSON LTD T/A NIGHTINGALE COACHES.
Adult and Health Services,Head of Adults,Transport,230005,Contract Hire,12/11/2018,3514067-101031,"1,932.00",G & P JOHNSON LTD T/A NIGHTINGALE COACHES.
Adult and Health Services,Head of Adults,Transport,230005,Contract Hire,12/11/2018,3514067-101032,"2,216.00",G & P JOHNSON LTD T/A NIGHTINGALE COACHES.
Adult and Health Services,Head of Adults,Transport,230005,Contract Hire,12/11/2018,3514067-101035,897.00,G & P JOHNSON LTD T/A NIGHTINGALE COACHES.
Adult and Health Services,Head of Adults,Transport,230005,Contract Hire,12/11/2018,3514067-101036,920.00,G & P JOHNSON LTD T/A NIGHTINGALE COACHES.
Children and Young Peoples Services,Head of Education and Skills,Transport,230007,Contract Hire,12/11/2018,3514068-20863,"1,980.50",GARNETTS LTD (COACHES).
Children and Young Peoples Services,Head of Education and Skills,Transport,230003,Contract Hire,12/11/2018,3514068-20857-3004,"2,862.00",GARNETTS LTD (COACHES).
Children and Young Peoples Services,Head of Education and Skills,Transport,230003,Contract Hire,12/11/2018,3514068-20857-3008,"2,700.00",GARNETTS LTD (COACHES).
Children and Young Peoples Services,Head of Education and Skills,Transport,230003,Contract Hire,12/11/2018,3514068-20857-3203,"2,502.00",GARNETTS LTD (COACHES).
Children and Young Peoples Services,Head of Education and Skills,Transport,230003,Contract Hire,12/11/2018,3514068-20857-3333,"2,124.00",GARNETTS LTD (COACHES).
Children and Young Peoples Services,Head of Education and Skills,Employees,080025,Agency Staff,12/11/2018,3514070-41154,"3,596.00",GATENBY SANDERSON LTD.
Children and Young Peoples Services,Head of Education and Skills,Employees,080025,Agency Staff,12/11/2018,3514070-41187,"3,596.00",GATENBY SANDERSON LTD.
